Workbook

Sheet Inicio
O1: 6
D2: Indicadores Sistema Eléctrico CCAA | I2: www.ree.es
I3: Fecha de actualización: | K3: 2018-06-14

Sheet Cuadro mando
A3: Principales Indicadores Madrid 2017
B7: GENERACIÓN | H7: DEMANDA B.C.
A26: POTENCIA INSTALADA | H26: RED DE TRANSPORTE1
I45: (1) km líneas de la Red de Transporte

Sheet Generacion
A3: Generación Madrid 2017
B7: BALANCE (GWh) | H7: ESTRUCTURA DE LA GENERACIÓN
B8: Balance | D8: =generacion_bruta!Q137 -> Madrid | E8: España | F8: % del total
B9: Hidráulica | D9: =generacion_bruta!Q139 -> 135.6823106 | E9: =generacion_bruta!V139 -> 18363.78149 | F9: =IF(OR(E9=0,D9=0),"-",D9*100/E9) -> 0.7388582284
B10: Turbinación bombeo | D10: =generacion_bruta!Q140 -> 0 | E10: =generacion_bruta!V140 -> 2248.993858 | F10: =IF(OR(E10=0,D10=0),"-",D10*100/E10) -> -
B11: Nuclear | D11: =generacion_bruta!Q141 -> 0 | E11: =generacion_bruta!V141 -> 55608.922 | F11: -
B12: Carbón | D12: =generacion_bruta!Q142 -> 0 | E12: =generacion_bruta!V142 -> 45196.266 | F12: -
B13: Fuel / gas | D13: =generacion_bruta!Q143 -> 0 | E13: =generacion_bruta!V143 -> 7011.067 | F13: -
B14: Ciclo combinado | D14: =generacion_bruta!Q144 -> 0 | E14: =generacion_bruta!V144 -> 37296.487 | F14: -
B15: Hidroeólica | D15: =generacion_bruta!Q145 -> 0 | E15: =generacion_bruta!V145 -> 20.398516 | F15: -
B16: Eólica | D16: =generacion_bruta!Q146 -> 0 | E16: =generacion_bruta!V146 -> 47897.00993 | F16: -
B17: Solar fotovoltaica | D17: =generacion_bruta!Q147 -> 91.85357 | E17: =generacion_bruta!V147 -> 8385.036738 | F17: 1.095446244
B18: Solar térmica | D18: =generacion_bruta!Q148 -> 0 | E18: =generacion_bruta!V148 -> 5347.950886 | F18: -
B19: Otras renovables | D19: =generacion_bruta!Q149 -> 150.125387 | E19: =generacion_bruta!V149 -> 3614.103789 | F19: 4.15387592
B20: Cogeneración | D20: =generacion_bruta!Q150 -> 704.239024 | E20: =generacion_bruta!V150 -> 28170.44533 | F20: 2.499921516
B21: Residuos no renovables | D21: =generacion_bruta!Q151 -> 70.7030845 | E21: =generacion_bruta!V151 -> 2607.667946 | F21: 2.711353054
B22: Residuos renovables | D22: =generacion_bruta!Q152 -> 70.7030845 | E22: =generacion_bruta!V152 -> 877.006087 | F22: 8.061869301
B23: Generación neta | D23: =generacion_bruta!Q153 -> 1223.306461 | E23: =generacion_bruta!V153 -> 262645.1366 | F23: =IF(OR(E23=0,D23=0),"-",D23*100/E23) -> 0.4657639873
B24: Consumos en bombeo | D24: =generacion_bruta!Q154 -> 0 | E24: =generacion_bruta!V154 -> -3675.239 | F24: =IF(OR(E24=0,D24=0),"-",D24*100/E24) -> -
B25: Saldo Intercambios | D25: =generacion_bruta!Q155 -> 27544.33999 | E25: =generacion_bruta!V155 -> 9170.58027 | F25: -
B26: Demanda B.C | D26: =generacion_bruta!Q156 -> 28767.64645 | E26: =generacion_bruta!V156 -> 268140.4778 | F26: =IF(OR(E26=0,D26=0),"-",D26*100/E26) -> 10.72857283
H28: GENERACIÓN RENOVABLE Y NO RENOVABLE
B29: EVOLUCIÓN DE LA GENERACIÓN NETA

Sheet Potencia
A3: Potencia Madrid 2017
B7: BALANCE DE POTENCIA INSTALADA (MW) | H7: VARIACIONES DE LA POTENCIA INSTALADA
D9: =Potencias!Q102 -> Madrid | E9: España | F9: % del total
B10: Bombeo puro | D10: =Potencias!Q103 -> 0 | E10: =Potencias!V103 -> 3328.89 | F10: =IF(OR(E10=0,D10=0),"-",IF(D10*100/E10>200,"-",D10*100/E10)) -> -
B11: Hidráulica | D11: =Potencias!Q104 -> 108.5166 | E11: =Potencias!V104 -> 17031.59463 | F11: =IF(OR(E11=0,D11=0,),"-",IF(D11*100/E11>200,"-",D11*100/E11)) -> 0.6371487953
B12: Nuclear | D12: =Potencias!Q105 -> 0 | E12: =Potencias!V105 -> 7117.29 | F12: =IF(OR(E12=0,D12=0),"-",IF(D12*100/E12>200,"-",D12*100/E12)) -> -
B13: Carbón | D13: =Potencias!Q106 -> 0 | E13: =Potencias!V106 -> 10004.27 | F13: -
B14: Fuel / gas | D14: =Potencias!Q107 -> 0 | E14: =Potencias!V107 -> 2490.06 | F14: -
B15: Ciclo combinado | D15: =Potencias!Q108 -> 0 | E15: =Potencias!V108 -> 26669.86 | F15: -
B16: Hidroeólica | D16: =Potencias!Q109 -> 0 | E16: =Potencias!V109 -> 11.39 | F16: -
B17: Eólica | D17: =Potencias!Q110 -> 0 | E17: =Potencias!V110 -> 23132.08025 | F17: -
B18: Solar fotovoltaica | D18: =Potencias!Q111 -> 63.537581 | E18: =Potencias!V111 -> 4686.609468 | F18: 1.355725956
B19: Solar térmica | D19: =Potencias!Q112 -> 0 | E19: =Potencias!V112 -> 2304.113 | F19: -
B20: Otras renovables | D20: =Potencias!Q113 -> 42.584 | E20: =Potencias!V113 -> 858.152 | F20: 4.962291063
B21: Cogeneración | D21: =Potencias!Q114 -> 212.0519 | E21: =Potencias!V114 -> 5828.47401 | F21: 3.638206152
B22: Residuos renovables | D22: =Potencias!Q115 -> 16.15 | E22: =Potencias!V115 -> 161.5255 | F22: 9.998421302
B23: Residuos no renovables | D23: =Potencias!Q116 -> 16.15 | E23: =Potencias!V116 -> 497.3895 | F23: 3.246952338
B24: Total 2017 | D24: =Potencias!Q117 -> 458.990081 | E24: =Potencias!V117 -> 104121.6984 | F24: 0.4408207782
B25: Total 2016 | D25: =Potencias!Q97 -> 459.024782 | E25: =Potencias!V97 -> 104663.524
B26: Δ 2017/2016 | D26: =IF(D25="-","-",(D24/D25-1)) -> -7.55972256e-05 | E26: =IF(E25="-","-",(E24/E25-1)) -> -0.005176833631
B28: EVOLUCIÓN DE LA POTENCIA INSTALADA (MW) | H28: ESTRUCTURA DE LA POTENCIA INSTALADA
B46: Fuente: Comisión Nacional de los Mercados y la Competencia (CNMC) hasta 2014 en: hidráulica (no UGH), eólica, solar, otras renovables y cogeneración y residuos

Sheet Demanda
A3: Demanda Madrid 2017
B7: EVOLUCIÓN DE LA DEMANDA | H7: VARIACIÓN DE LA DEMANDA
B26: GENERACIÓN NETA C.A. vs. DEMANDA C.A. | H26: % DEMANDA C.A. vs. DEMANDA NACIONAL

Sheet Red_de_transporte
A3: Red de transporte Madrid 2017
B7: RED DE TRANSPORTE | H7: VARIACIONES DE LA RdT
B11: AÑO 2017 | D11: =datos_RdT!Q72 -> Madrid | E11: España | F11: % del total
B12: km circuitos 400 kV | D12: =datos_RdT!Q73 -> 942.1000257 | E12: =datos_RdT!V73 -> 21728.1684 | F12: =D12*100/E12 -> 4.335846484
B13: km circuitos 220 kV | D13: =datos_RdT!Q74 -> 1177.38 | E13: =datos_RdT!V74 -> 19616.37884 | F13: =D13*100/E13 -> 6.002025192
B14: km circuitos <220 kV | D14: =datos_RdT!Q75 -> 0 | E14: =datos_RdT!V75 -> 2585.686 | F14: 0
B15: km circuitos | D15: =datos_RdT!Q76 -> 2119.480026 | E15: =datos_RdT!V76 -> 43930.23324 | F15: 4.824650062
B16: Posiciones 400 kV | D16: =datos_RdT!Q78 -> 104 | E16: =datos_RdT!V78 -> 1484 | F16: =D16*100/E16 -> 7.008086253
B17: Posiciones 220 kV | D17: =datos_RdT!Q79 -> 523 | E17: =datos_RdT!V79 -> 3291 | F17: =D17*100/E17 -> 15.89182619
B18: Posiciones <220 kV | D18: =datos_RdT!Q80 -> 0 | E18: =datos_RdT!V80 -> 944 | F18: 0
B19: Posiciones | D19: =datos_RdT!Q81 -> 627 | E19: =datos_RdT!V81 -> 5719 | F19: 10.96345515
B20: Transformadores (MVA) | D20: =datos_RdT!Q83 -> 11548.4 | E20: =datos_RdT!V83 -> 86654.475 | F20: 13.32695167
B22: Incluye los activos de la red de transporte del resto de empresas.
B26: EVOLUCIÓN DE LA RdT | H26: % km LÍNEAS C.A. vs. KILÓMETROS TOTALES

Sheet AVISO LEGAL

Sheet generacion_bruta (hidden)
B1: 2012 | AA1: Andalucía | AB1: Aragón | AC1: Asturias, Principado de | AD1: Cantabria | AE1: Castilla - La Mancha | AF1: Castilla y León | AG1: Cataluña | AH1: Comunitat Valenciana | AI1: Extremadura | AJ1: Galicia
B2: CCAA | C2: Andalucía | D2: Aragón | E2: Asturias | F2: Baleares | G2: C. Valenciana | H2: Canarias | I2: Cantabria | J2: Castilla-La Mancha | K2: Castilla y León | L2: Cataluña | M2: Ceuta | N2: Extremadura | O2: Galicia | P2: La Rioja | Q2: Madrid | R2: Melilla | S2: Murcia | T2: Navarra | U2: País Vasco | V2: España | W2: PENINSULAR | X2: NO PENINSULAR | AA2: 309.2577937 | AB2: 260.211643 | AC2: 35.5589626 | AD2: 575.401949 | AE2: 102.59608 | AF2: 710.7745102 | AG2: 287.2659669 | AH2: 822.868819 | AI2: 7.15772564 | AJ2: 90.7962937
B4: Hidráulica | C4: 708.1282302 | D4: 2265.787237 | E4: 1215.651341 | F4: 0 | G4: 392.0489025 | H4: 1.791301 | I4: 301.9711024 | J4: 690.9236709 | K4: 4859.250175 | L4: 3314.245442 | M4: 0 | N4: 1104.482965 | O4: 4668.264175 | P4: 123.6939669 | Q4: 65.607027 | R4: 0 | S4: 108.1870743 | T4: 470.9745565 | U4: 333.2154926 | V4: =SUM(C4:U4) -> 20624.22266 | W4: =V4-F4-H4-M4-R4 -> 20622.43136 | X4: =F4+H4+M4+R4 -> 1.791301
B5: Turbinación bombeo | C5: 309.2577937 | D5: 260.211643 | E5: 35.5589626 | G5: 822.868819 | I5: 575.401949 | J5: 102.59608 | K5: 710.7745102 | L5: 287.2659669 | N5: 7.15772564 | O5: 90.7962937 | V5: =SUM(C5:U5) -> 3201.889744 | W5: =V5-F5-H5-M5-R5 -> 3201.889744 | X5: =F5+H5+M5+R5 -> 0
B6: Nuclear | C6: 0 | D6: 0 | E6: 0 | F6: 0 | G6: 9015.062 | H6: 0 | I6: 0 | J6: 7948.401 | K6: 3703.47 | L6: 22950.871 | M6: 0 | N6: 15049.183 | O6: 0 | P6: 0 | Q6: 0 | R6: 0 | S6: 0 | T6: 0 | U6: 0 | V6: =SUM(C6:U6) -> 58666.987 | W6: =V6-F6-H6-M6-R6 -> 58666.987 | X6: 0
B7: Carbón | C7: 10920.123 | D7: 4836.636 | E7: 10061.81 | F7: 2682.533 | G7: 0 | H7: 0 | I7: 0 | J7: 1741.818 | K7: 10341.323 | L7: 0 | M7: 0 | N7: 0 | O7: 12248.726 | P7: 0 | Q7: 0 | R7: 0 | S7: 0 | T7: 0 | U7: 980.45 | V7: 53813.419 | W7: 51130.886 | X7: 2682.533
B8: Fuel / gas | C8: 0 | D8: 0 | E8: 0 | F8: 1284.514 | G8: 0 | H8: 5386.647 | I8: 0 | J8: 0 | K8: 0 | L8: 0 | M8: 212.075 | N8: 0 | O8: 0 | P8: 0 | Q8: 0 | R8: 214.961 | S8: 0 | T8: 0 | U8: 0 | V8: 7098.197 | W8: 0 | X8: 7098.197
B9: Ciclo combinado | C9: 9738.885 | D9: 940.651 | E9: 774.103 | F9: 890.56 | G9: 4774.388 | H9: 2877.771 | I9: 0 | J9: 2553.928 | K9: 0 | L9: 8041.259 | M9: 0 | N9: 0 | O9: 1291.607 | P9: 1311.082 | Q9: 0 | R9: 0 | S9: 3097.972 | T9: 832.767 | U9: 4175.024 | V9: =SUM(C9:U9) -> 41299.997 | W9: =V9-F9-H9-M9-R9 -> 37531.666 | X9: =F9+H9+M9+R9 -> 3768.331
B10: Hidroeólica | C10: 0 | D10: 0 | E10: 0 | F10: 0 | G10: 0 | H10: 0 | I10: 0 | J10: 0 | K10: 0 | L10: 0 | M10: 0 | N10: 0 | O10: 0 | P10: 0 | Q10: 0 | R10: 0 | S10: 0 | T10: 0 | U10: 0 | V10: =SUM(C10:U10) -> 0 | W10: =V10-F10-H10-M10-R10 -> 0 | X10: =F10+H10+M10+R10 -> 0
B11: Eólica | C11: 5736.308595 | D11: 4453.409486 | E11: 884.396919 | F11: 6.504699 | G11: 2547.695238 | H11: 361.767325 | I11: 62.089362 | J11: 7948.26959 | K11: 11364.71053 | L11: 2647.569039 | M11: 0 | N11: 0 | O11: 8068.618604 | P11: 1005.869132 | Q11: 0 | R11: 0 | S11: 403.316864 | T11: 2677.948193 | U11: 339.864375 | V11: =SUM(C11:U11) -> 48508.33795 | W11: =V11-F11-H11-M11-R11 -> 48140.06593 | X11: =F11+H11+M11+R11 -> 368.272024
B12: Solar fotovoltaica | C12: 1530.531512 | D12: 285.432282 | E12: 0.733964 | F12: 115.593269 | G12: 527.544666 | H12: 256.513386 | I12: 2.136588 | J12: 1753.125784 | K12: 832.012892 | L12: 409.621922 | M12: 0 | N12: 1110.475662 | O12: 17.670515 | P12: 140.938202 | Q12: 80.340488 | R12: 0.083114 | S12: 792.422075 | T12: 317.696116 | U12: 29.217547 | V12: =SUM(C12:U12) -> 8202.089984 | W12: 7829.900215 | X12: 372.189769
B13: Solar termoeléctrica | C13: 1837.631894 | D13: 0 | E13: 0 | F13: 0 | G13: 0 | H13: 0 | I13: 0 | J13: 524.685992 | K13: 0 | L13: 0.568335 | M13: 0 | N13: 1057.869002 | O13: 0 | P13: 0 | Q13: 0 | R13: 0 | S13: 23.378823 | T13: 0 | U13: 0 | V13: =SUM(C13:U13) -> 3444.134046 | W13: 3444.134046 | X13: 0
B14: Otras renovables | C14: 1458.279697 | D14: 316.07291 | E14: 656.225611 | F14: 0.56983 | G14: 52.936557 | H14: 8.050447 | I14: 16.857638 | J14: 247.085179 | K14: 172.332889 | L14: 256.148812 | M14: 0 | N14: 150.31303 | O14: 597.385213 | P14: 15.679899 | Q14: 298.03054 | R14: 0 | S14: 28.802132 | T14: 290.992634 | U14: 189.007369 | V14: 4754.770387 | W14: 4746.15011 | X14: 8.620277
B15: Cogeneración | C15: 5795.412355 | D15: 3260.802705 | E15: 724.315327 | F15: 272.075742 | G15: 2117.863985 | H15: 0 | I15: 1669.321387 | J15: 1356.04973 | K15: 3326.20841 | L15: 6185.693079 | M15: 0 | N15: 29.9208 | O15: 2257.787662 | P15: 167.901741 | Q15: 1226.521454 | R15: 2.308958 | S15: 1959.679473 | T15: 960.600308 | U15: 2454.786218 | V15: 33767.24933 | W15: 33492.86463 | X15: 274.3847
B16: Residuos no renovables
B17: Residuos renovables
B18: Generación neta | C18: =SUM(C4:C17) -> 38034.55808 | D18: =SUM(D4:D17) -> 16619.00326 | E18: 14352.79512 | F18: 5252.35054 | G18: 20250.40817 | H18: 8892.540459 | I18: 2627.778026 | J18: 24866.88303 | K18: 35310.08241 | L18: 44093.2426 | M18: 212.075 | N18: 18509.40218 | O18: 29240.85546 | P18: 2765.164941 | Q18: 1670.499509 | R18: 217.353072 | S18: 6413.758441 | T18: 5550.978807 | U18: 8501.565002 | V18: 283381.2941 | W18: 268806.975 | X18: 14574.31907
B19: Consumos en bombeo | C19: -434.632 | D19: -351.542 | E19: -52.418 | F19: 0 | G19: -1114.342 | H19: 0 | I19: -795.603 | J19: -156.032 | K19: -1401.482 | L19: -381.441 | M19: 0 | N19: -15.193 | O19: -319.864 | P19: 0 | Q19: 0 | R19: 0 | S19: 0 | T19: 0 | U19: 0 | V19: =SUM(C19:U19) -> -5022.549 | W19: -5022.549 | X19: 0
B20: Saldo Intercambios | C20: 2108.937 | D20: -6028.722 | E20: -3960.954 | F20: 570.251 | G20: 7340.41 | H20: 0 | I20: 2567.336 | J20: -12690.622 | K20: -20179.093 | L20: 4039.265 | M20: 0 | N20: -13604.637 | O20: -9270.303 | P20: -1032.283 | Q20: 29330.89 | R20: 0 | S20: 2193.349 | T20: -752.15 | U20: 8168.372 | V20: -11199.954 | W20: -11770.205 | X20: 570.251
B21: Demanda B.C | C21: =SUM(C18:C20) -> 39708.86308 | D21: =SUM(D18:D20) -> 10238.73926 | E21: 10339.42312 | F21: 5822.60154 | G21: 26476.47617 | H21: 8892.540459 | I21: 4399.511026 | J21: 12020.22903 | K21: 13729.50741 | L21: 47751.0666 | M21: 212.075 | N21: 4889.572184 | O21: 19650.68846 | P21: 1732.881941 | Q21: 31001.38951 | R21: 217.353072 | S21: 8607.107441 | T21: 4798.828807 | U21: 16669.937 | V21: 267158.7911 | W21: 252014.221 | X21: 15144.57007
B22: Δ2012/2011 | C22: -0.00662539953 | D22: -0.01580229486 | E22: -0.0565772056 | F22: 0.01380968438 | G22: -0.02752761962 | H22: 0.002514592219 | I22: -0.01632979214 | J22: 0.001729340839 | K22: 0.01398570706 | L22: -0.009201677843 | M22: 0.04482281244 | N22: 0.03633475859 | O22: -0.00954018424 | P22: -0.008618162177 | Q22: -0.01751874719 | R22: 0.01138394609 | S22: 0.0339367014 | T22: -0.02987157311 | U22: -0.05803702744 | V22: -0.01282204667 | W22: -0.01401883475 | X22: 0.007528404213
B23: Renovable | C23: =C4+C10+C11+C12+C13+C14+C17 -> 11270.87993 | D23: =D4+D10+D11+D12+D13+D14+D17 -> 7320.701915 | E23: 2757.007835 | F23: 122.667798 | G23: 3520.225364 | H23: 628.122459 | I23: 383.0546904 | J23: 11164.09022 | K23: 17228.30649 | L23: 6628.15355 | M23: 0 | N23: 3423.140659 | O23: 13351.93851 | P23: 1286.1812 | Q23: 443.978055 | R23: 0.083114 | S23: 1356.106968 | T23: 3757.611499 | U23: 891.3047836 | V23: =SUM(C23:U23) -> 85533.55503 | W23: =V23-F23-H23-M23-R23 -> 84782.68166 | X23: =F23+H23+M23+R23 -> 750.873371
B24: No renovable | C24: =C5+C6+C7+C8+C9+C15+C16 -> 26763.67815 | D24: =D5+D6+D7+D8+D9+D15+D16 -> 9298.301348 | E24: 11595.78729 | F24: 5129.682742 | G24: 16730.1828 | H24: 8264.418 | I24: 2244.723336 | J24: 13702.79281 | K24: 18081.77592 | L24: 37465.08905 | M24: 212.075 | N24: 15086.26153 | O24: 15888.91696 | P24: 1478.983741 | Q24: 1226.521454 | R24: 217.269958 | S24: 5057.651473 | T24: 1793.367308 | U24: 7610.260218 | V24: 197847.7391 | W24: =V24-F24-H24-M24-R24 -> 184024.2934 | X24: 13823.4457
B25: % Renovable s/total | C25: =(C23)/C$18 -> 0.2963326117 | D25: =(D23)/D$18 -> 0.440501864 | E25: 0.1920885661 | F25: 0.02335483838 | G25: 0.1738347857 | H25: 0.07063475976 | I25: 0.1457713271 | J25: 0.4489541453 | K25: 0.4879146497 | L25: 0.1503213 | M25: 0 | N25: 0.1849406385 | O25: 0.4566192848 | P25: 0.465137244 | Q25: 0.2657756274 | R25: 0.0003823916508 | S25: 0.2114371754 | T25: 0.6769277329 | U25: 0.1048400834 | V25: =(V23)/V$18 -> 0.3018320433 | W25: 0.3154035778 | X25: 0.0515203055
B26: % No renovable s/total | C26: =(C24)/C$18 -> 0.7036673883 | D26: =(D24)/D$18 -> 0.559498136 | E26: 0.8079114339 | F26: 0.9766451616 | G26: 0.8261652143 | H26: 0.9293652402 | I26: 0.8542286729 | J26: 0.5510458547 | K26: 0.5120853503 | L26: 0.8496787 | M26: 1 | N26: 0.8150593615 | O26: 0.5433807152 | P26: 0.534862756 | Q26: 0.7342243726 | R26: 0.9996176083 | S26: 0.7885628246 | T26: 0.3230722671 | U26: 0.8951599166 | V26: =(V24)/V$18 -> 0.6981679567 | W26: 0.6845964222 | X26: 0.9484796945
B28: 2013
B29: CCAA | C29: Andalucía | D29: Aragón | E29: Asturias | F29: Baleares | G29: C. Valenciana | H29: Canarias | I29: Cantabria | J29: Castilla-La Mancha | K29: Castilla y León | L29: Cataluña | M29: Ceuta | N29: Extremadura | O29: Galicia | P29: La Rioja | Q29: Madrid | R29: Melilla | S29: Murcia | T29: Navarra | U29: País Vasco | V29: España | W29: PENINSULAR | X29: NO PENINSULAR
B31: Hidráulica | C31: 1286.132158 | D31: 4272.60998 | E31: 2166.271086 | F31: 0 | G31: 474.3754328 | H31: 3.049504 | I31: 344.9634205 | J31: 922.9322192 | K31: 8006.041412 | L31: 5406.846742 | M31: 0 | N31: 2826.832817 | O31: 9896.405471 | P31: 173.138124 | Q31: 167.9867334 | R31: 0 | S31: 131.7705803 | T31: 770.7881584 | U31: 539.5644955 | V31: =SUM(C31:U31) -> 37389.70833 | W31: =V31-F31-H31-M31-R31 -> 37386.65883 | X31: =F31+H31+M31+R31 -> 3.049504
B32: Turbinación bombeo | C32: 332.6293827 | D32: 292.337205 | E32: 53.9984088 | G32: 1116.192629 | I32: 537.83828 | J32: 113.22974 | K32: 485.5478034 | L32: 245.1489343 | N32: 33.4582688 | O32: 79.296532 | V32: =SUM(C32:U32) -> 3289.677184 | W32: =V32-F32-H32-M32-R32 -> 3289.677184 | X32: =F32+H32+M32+R32 -> 0
B33: Nuclear | C33: 0 | D33: 0 | E33: 0 | F33: 0 | G33: 8004.864 | H33: 0 | I33: 0 | J33: 7484.576 | K33: 0 | L33: 23719.595 | M33: 0 | N33: 15097.852 | O33: 0 | P33: 0 | Q33: 0 | R33: 0 | S33: 0 | T33: 0 | U33: 0 | V33: =SUM(C33:U33) -> 54306.887 | W33: =V33-F33-H33-M33-R33 -> 54306.887 | X33: 0
B34: Carbón | C34: 9277.597 | D34: 3435.268 | E34: 8564.474 | F34: 2350.681 | G34: 0 | H34: 0 | I34: 0 | J34: 786.558 | K34: 5717.388 | L34: 0 | M34: 0 | N34: 0 | O34: 9395.598 | P34: 0 | Q34: 0 | R34: 0 | S34: 0 | T34: 0 | U34: 0 | V34: 39527.564 | W34: 37176.883 | X34: 2350.681
B35: Fuel / gas | C35: 0 | D35: 0 | E35: 0 | F35: 1260.156 | G35: 0 | H35: 4910.132 | I35: 0 | J35: 0 | K35: 0 | L35: 0 | M35: 201.959 | N35: 0 | O35: 0 | P35: 0 | Q35: 0 | R35: 201.547 | S35: 0 | T35: 0 | U35: 0 | V35: 6573.794 | W35: -5.96855898e-13 | X35: 6573.794
B36: Ciclo combinado | C36: 5827.214 | D36: 89.443 | E36: 296.952 | F36: 413.575 | G36: 3940.293 | H36: 3052.68 | I36: 0 | J36: 1106.768 | K36: 0 | L36: 5685.038 | M36: 0 | N36: 0 | O36: 1157.169 | P36: 395.643 | Q36: 0 | R36: 0 | S36: 2342.329 | T36: 361.286 | U36: 3158.445 | V36: =SUM(C36:U36) -> 27826.835 | W36: =V36-F36-H36-M36-R36 -> 24360.58 | X36: =F36+H36+M36+R36 -> 3466.255
B37: Hidroeólica | C37: 0 | D37: 0 | E37: 0 | F37: 0 | G37: 0 | H37: 0 | I37: 0 | J37: 0 | K37: 0 | L37: 0 | M37: 0 | N37: 0 | O37: 0 | P37: 0 | Q37: 0 | R37: 0 | S37: 0 | T37: 0 | U37: 0 | V37: =SUM(C37:U37) -> 0 | W37: =V37-F37-H37-M37-R37 -> 0 | X37: =F37+H37+M37+R37 -> 0
B38: Eólica | C38: 6986.811481 | D38: 4869.472296 | E38: 1140.547903 | F38: 6.159468 | G38: 2594.854498 | H38: 362.733485 | I38: 74.550424 | J38: 8657.478624 | K38: 12684.69372 | L38: 3194.726668 | M38: 0 | N38: 0 | O38: 9497.906024 | P38: 1078.385075 | Q38: 0 | R38: 0 | S38: 543.819978 | T38: 2664.752186 | U38: 356.35345 | V38: =SUM(C38:U38) -> 54713.24529 | W38: =V38-F38-H38-M38-R38 -> 54344.35233 | X38: =F38+H38+M38+R38 -> 368.892953
B39: Solar fotovoltaica | C39: 1586.395935 | D39: 309.123951 | E39: 0.738135 | F39: 122.097173 | G39: 564.348676 | H39: 286.70133 | I39: 2.067143 | J39: 1697.856901 | K39: 848.076933 | L39: 431.350786 | M39: 0 | N39: 1110.442841 | O39: 20.475405 | P39: 130.107387 | Q39: 92.065937 | R39: 0.082323 | S39: 801.930575 | T39: 295.442564 | U39: 27.615431 | V39: =SUM(C39:U39) -> 8326.919426 | W39: 7918.0386 | X39: 408.880826
B40: Solar termoeléctrica | C40: 1987.787339 | D40: 0 | E40: 0 | F40: 0 | G40: 9.833162 | H40: 0 | I40: 0 | J40: 678.244937 | K40: 0 | L40: 73.81801 | M40: 0 | N40: 1648.82012 | O40: 0 | P40: 0 | Q40: 0 | R40: 0 | S40: 43.023967 | T40: 0 | U40: 0 | V40: 4441.527535 | W40: 4441.527535 | X40: 0
B41: Otras renovables | C41: 1764.006542 | D41: 228.211921 | E41: 666.235381 | F41: 0.74475 | G41: 52.924032 | H41: 8.386979 | I41: 81.926784 | J41: 239.06713 | K41: 181.366081 | L41: 258.64171 | M41: 0 | N41: 150.034926 | O41: 597.001972 | P41: 11.889307 | Q41: 286.105782 | R41: 0 | S41: 57.71906 | T41: 303.593267 | U41: 186.841747 | V41: 5074.697371 | W41: 5065.565642 | X41: 9.131729
B42: Cogeneración | C42: 5641.970907 | D42: 3287.808423 | E42: 756.72252 | F42: 251.614955 | G42: 2074.898626 | H42: 0 | I42: 1219.72415 | J42: 1145.635895 | K42: 2968.320088 | L42: 6131.311427 | M42: 0 | N42: 30.034799 | O42: 2441.242827 | P42: 149.740855 | Q42: 1086.329052 | R42: 8.037797 | S42: 1960.369182 | T42: 981.567399 | U42: 2161.04884 | V42: 32296.37774 | W42: 32036.72499 | X42: 259.652752
B43: Residuos no renovables
B44: Residuos renovables
B45: Generación neta | C45: =SUM(C31:C44) -> 34690.54475 | D45: =SUM(D31:D44) -> 16784.27478 | E45: 13645.93943 | F45: 4405.028346 | G45: 18832.58406 | H45: 8623.683298 | I45: 2261.070202 | J45: 22832.34745 | K45: 30891.43404 | L45: 45146.47728 | M45: 201.959 | N45: 20897.47577 | O45: 33085.09523 | P45: 1938.903748 | Q45: 1632.487504 | R45: 209.66712 | S45: 5880.962342 | T45: 5377.429574 | U45: 6429.868964 | V45: 273767.2329 | W45: 260326.8951 | X45: 13440.33776
B46: Consumos en bombeo | C46: -470.705 | D46: -367.52 | E46: -77.28 | F46: 0 | G46: -1520.008 | H46: 0 | I46: -758.749 | J46: -206.83 | K46: -1728.923 | L46: -335.168 | M46: 0 | N46: -56.837 | O46: -435.826 | P46: 0 | Q46: 0 | R46: 0 | S46: 0 | T46: 0 | U46: 0 | V46: =SUM(C46:U46) -> -5957.846 | W46: -5957.846 | X46: 0
B47: Saldo Intercambios | C47: 3967.898 | D47: -6311.901 | E47: -3153.97 | F47: 1268.509 | G47: 8582.518 | H47: 0 | I47: 2883.144 | J47: -10994.533 | K47: -15481.299 | L47: 1461.757 | M47: 0 | N47: -15974.309 | O47: -12778.904 | P47: -234.669 | Q47: 28075.127 | R47: 0 | S47: 2433.707 | T47: -601.343 | U47: 10126.138 | V47: -6732.13 | W47: -8000.639 | X47: 1268.509
B48: Demanda B.C | C48: =SUM(C45:C47) -> 38187.73775 | D48: =SUM(D45:D47) -> 10104.85378 | E48: 10414.68943 | F48: 5673.537346 | G48: 25895.09406 | H48: 8623.683298 | I48: 4385.465202 | J48: 11630.98445 | K48: 13681.21204 | L48: 46273.06628 | M48: 201.959 | N48: 4866.329772 | O48: 19870.36523 | P48: 1704.234748 | Q48: 29707.6145 | R48: 209.66712 | S48: 8314.669342 | T48: 4776.086574 | U48: 16556.00696 | V48: 261077.2569 | W48: 246368.4101 | X48: 14708.84676
B49: =CONCATENATE("Δ",B28,"/",B28-1) -> Δ2013/2012 | C49: =(C48/C21-1) -> -0.03830694746 | D49: -0.01307636451 | E49: 0.007279546242 | F49: -0.02560096084 | G49: -0.02195843994 | H49: -0.03023401043 | I49: -0.00319258771 | J49: -0.0323824595 | K49: -0.003517632808 | L49: -0.03095219489 | M49: -0.04770010609 | N49: -0.004753465434 | O49: 0.01117908762 | P49: -0.01653153182 | Q49: -0.04173280698 | R49: -0.0353615982 | S49: -0.03397635047 | T49: -0.004739121568 | U49: -0.006834461226 | V49: -0.02276374363 | W49: -0.02240274735 | X49: -0.02877092614
B50: Renovable | C50: =C31+C37+C38+C39+C40+C41+C44 -> 13611.13346 | D50: =D31+D37+D38+D39+D40+D41+D44 -> 9679.418148 | E50: 3973.792505 | F50: 129.001391 | G50: 3696.335801 | H50: 660.871298 | I50: 503.5077715 | J50: 12195.57981 | K50: 21720.17815 | L50: 9365.383916 | M50: 0 | N50: 5736.130704 | O50: 20011.78887 | P50: 1393.519893 | Q50: 546.1584524 | R50: 0.082323 | S50: 1578.26416 | T50: 4034.576175 | U50: 1110.375124 | V50: =SUM(C50:U50) -> 109946.098 | W50: =V50-F50-H50-M50-R50 -> 109156.1429 | X50: =F50+H50+M50+R50 -> 789.955012
B51: No renovable | C51: =C32+C33+C34+C35+C36+C42+C43 -> 21079.41129 | D51: =D32+D33+D34+D35+D36+D42+D43 -> 7104.856628 | E51: 9672.146929 | F51: 4276.026955 | G51: 15136.24825 | H51: 7962.812 | I51: 1757.56243 | J51: 10636.76764 | K51: 9171.255891 | L51: 35781.09336 | M51: 201.959 | N51: 15161.34507 | O51: 13073.30636 | P51: 545.383855 | Q51: 1086.329052 | R51: 209.584797 | S51: 4302.698182 | T51: 1342.853399 | U51: 5319.49384 | V51: =SUM(C51:U51) -> 163821.1349 | W51: =V51-F51-H51-M51-R51 -> 151170.7522 | X51: 12650.38275
B52: % Renovable s/total | C52: =(C50)/C$45 -> 0.3923585967 | D52: =(D50)/D$45 -> 0.5766956438 | E52: 0.2912069575 | F52: 0.02928503085 | G52: 0.1962734264 | H52: 0.07663445829 | I52: 0.2226855987 | J52: 0.5341360471 | K52: 0.7031133006 | L52: 0.2074444005 | M52: 0 | N52: 0.2744891664 | O52: 0.6048581312 | P52: 0.7187153537 | Q52: 0.3345559773 | R52: 0.0003926366709 | S52: 0.26836835 | T52: 0.7502796865 | U52: 0.1726901636 | V52: =(V50)/V$45 -> 0.4016043001 | W52: 0.4193041326 | X52: 0.0587749375
B53: % No renovable s/total | C53: =(C51)/C$45 -> 0.6076414033 | D53: =(D51)/D$45 -> 0.4233043562 | E53: 0.7087930425 | F53: 0.9707149692 | G53: 0.8037265736 | H53: 0.9233655417 | I53: 0.7773144013 | J53: 0.4658639529 | K53: 0.2968866994 | L53: 0.7925555995 | M53: 1 | N53: 0.7255108336 | O53: 0.3951418688 | P53: 0.2812846463 | Q53: 0.6654440227 | R53: 0.9996073633 | S53: 0.73163165 | T53: 0.2497203135 | U53: 0.8273098364 | V53: =(V51)/V$45 -> 0.5983956999 | W53: 0.5806958674 | X53: 0.9412250625
B55: 2014
B56: CCAA | C56: Andalucía | D56: Aragón | E56: Asturias | F56: Baleares | G56: C. Valenciana | H56: Canarias | I56: Cantabria | J56: Castilla-La Mancha | K56: Castilla y León | L56: Cataluña | M56: Ceuta | N56: Extremadura | O56: Galicia | P56: La Rioja | Q56: Madrid | R56: Melilla | S56: Murcia | T56: Navarra | U56: País Vasco | V56: España | W56: PENINSULAR | X56: NO PENINSULAR
B58: Hidráulica | C58: 936.3746776 | D58: 4039.786265 | E58: 1896.052339 | F58: 0 | G58: 607.1494165 | H58: 3.478906 | I58: 271.6123482 | J58: 1006.284682 | K58: 10365.32792 | L58: 5246.557073 | M58: 0 | N58: 3077.509924 | O58: 10108.64069 | P58: 159.6494475 | Q58: 205.9635249 | R58: 0 | S58: 126.6779254 | T58: 663.1264668 | U58: 401.6864306 | V58: =SUM(C58:U58) -> 39115.87804 | W58: =V58-F58-H58-M58-R58 -> 39112.39913 | X58: =F58+H58+M58+R58 -> 3.478906
B59: Turbinación bombeo | C59: 340.4861921 | D59: 327.190469 | E59: 53.9156891 | G59: 1170.074173 | I59: 606.802956 | J59: 61.01868 | K59: 497.2400575 | L59: 269.0966327 | M59: 0 | N59: 43.36111472 | O59: 46.8100626 | V59: =SUM(C59:U59) -> 3415.996027 | W59: =V59-F59-H59-M59-R59 -> 3415.996027 | X59: =F59+H59+M59+R59 -> 0
B60: Nuclear | C60: 0 | D60: 0 | E60: 0 | F60: 0 | G60: 9108.216 | H60: 0 | I60: 0 | J60: 7783.908 | K60: 0 | L60: 22776.108 | M60: 0 | N60: 15202.007 | O60: 0 | P60: 0 | Q60: 0 | R60: 0 | S60: 0 | T60: 0 | U60: 0 | V60: 54870.239 | W60: =V60-F60-H60-M60-R60 -> 54870.239 | X60: 0
B61: Carbón | C61: 9502.972 | D61: 4611.757 | E61: 8565.27 | F61: 2187.626 | G61: 0 | H61: 0 | I61: 0 | J61: 881.26 | K61: 8006.714 | L61: 0 | M61: 0 | N61: 0 | O61: 9564.704 | P61: 0 | Q61: 0 | R61: 0 | S61: 0 | T61: 0 | U61: 0 | V61: 43320.303 | W61: 41132.677 | X61: 2187.626
B62: Fuel / gas | C62: 0 | D62: 0 | E62: 0 | F62: 1260.664 | G62: 0 | H62: 4582.909 | I62: 0 | J62: 0 | K62: 0 | L62: 0 | M62: 212.253 | N62: 0 | O62: 0 | P62: 0 | Q62: 0 | R62: 200.881 | S62: 0 | T62: 0 | U62: 0 | V62: 6256.707 | W62: =V62-F62-H62-M62-R62 -> 0 | X62: =F62+H62+M62+R62 -> 6256.707
B63: Ciclo combinado | C63: 4403.777 | D63: 210.171 | E63: 289.476 | F63: 426.924 | G63: 4017.662 | H63: 3311.448 | I63: 0 | J63: 1045.816 | K63: 0 | L63: 5031.349 | M63: 0 | N63: 0 | O63: 509.427 | P63: 162.452 | Q63: 0 | R63: 0 | S63: 2336.522 | T63: 369.635 | U63: 2960.466 | V63: 25075.125 | W63: =V63-F63-H63-M63-R63 -> 21336.753 | X63: =F63+H63+M63+R63 -> 3738.372
B64: Hidroeólica | C64: 0 | D64: 0 | E64: 0 | F64: 0 | G64: 0 | H64: 1.071861 | I64: 0 | J64: 0 | K64: 0 | L64: 0 | M64: 0 | N64: 0 | O64: 0 | P64: 0 | Q64: 0 | R64: 0 | S64: 0 | T64: 0 | U64: 0 | V64: 1.071861 | W64: =V64-F64-H64-M64-R64 -> 0 | X64: =F64+H64+M64+R64 -> 1.071861
B65: Eólica | C65: 6450.411707 | D65: 4314.413658 | E65: 1140.608134 | F65: 5.839578 | G65: 2577.391476 | H65: 389.963924 | I65: 76.30895 | J65: 8389.137337 | K65: 12274.49252 | L65: 2867.133966 | M65: 0 | N65: 0 | O65: 8316.470118 | P65: 947.718085 | Q65: 0 | R65: 0 | S65: 512.017404 | T65: 2424.907764 | U65: 343.88037 | V65: =SUM(C65:U65) -> 51030.69499 | W65: =V65-F65-H65-M65-R65 -> 50634.89149 | X65: =F65+H65+M65+R65 -> 395.803502
B66: Solar fotovoltaica | C66: 1574.750163 | D66: 297.545781 | E66: 0.666843 | F66: 122.773391 | G66: 549.127528 | H66: 282.290384 | I66: 2.218715 | J66: 1684.592289 | K66: 840.0779 | L66: 413.306628 | M66: 0 | N66: 1071.175215 | O66: 19.445383 | P66: 128.873369 | Q66: 93.257066 | R66: 0.083833 | S66: 800.250034 | T66: 297.78241 | U66: 29.355719 | V66: 8207.572651 | W66: 7802.425043 | X66: 405.147608
B67: Solar termoeléctrica | C67: 2124.235754 | D67: 0 | E67: 0 | F67: 0 | G67: 93.85092 | H67: 0 | I67: 0 | J67: 734.252687 | K67: 0 | L67: 65.812195 | M67: 0 | N67: 1899.40041 | O67: 0 | P67: 0 | Q67: 0 | R67: 0 | S67: 41.36296 | T67: 0 | U67: 0 | V67: 4958.914926 | W67: 4958.914926 | X67: 0
B68: Otras renovables | C68: 1419.812004 | D68: 349.101284 | E68: 643.85856 | F68: 1.945659 | G68: 41.399133 | H68: 8.806584 | I68: 85.795958 | J68: 182.617011 | K68: 249.127088 | L68: 150.037289 | M68: 0 | N68: 215.011765 | O68: 574.685349 | P68: 7.290583 | Q68: 269.701459 | R68: 0 | S68: 53.782084 | T68: 306.316933 | U68: 169.441833 | V68: 4728.730576 | W68: 4717.978333 | X68: 10.752243
B69: Cogeneración | C69: 5244.119429 | D69: 2383.597542 | E69: 651.135688 | F69: 281.388233 | G69: 1795.944745 | H69: 0 | I69: 831.901583 | J69: 764.037102 | K69: 1682.016098 | L69: 4806.878171 | M69: 0 | N69: 13.840363 | O69: 2147.346433 | P69: 56.949525 | Q69: 736.528251 | R69: 8.898314 | S69: 1496.429749 | T69: 710.155483 | U69: 2274.656536 | V69: 25885.82324 | W69: 25595.5367 | X69: 290.286547
B70: Residuos no renovables
B71: Residuos renovables
B72: Generación neta | C72: =SUM(C58:C71) -> 31996.93893 | D72: =SUM(D58:D71) -> 16533.563 | E72: 13240.98325 | F72: 4287.160861 | G72: 19960.81539 | H72: 8579.968659 | I72: 1874.64051 | J72: 22532.92379 | K72: 33914.99558 | L72: 41626.27895 | M72: 212.253 | N72: 21522.30579 | O72: 31287.52903 | P72: 1462.933009 | Q72: 1305.450301 | R72: 209.863147 | S72: 5367.042156 | T72: 4771.924057 | U72: 6179.486889 | V72: =SUM(C72:U72) -> 266867.0563 | W72: 253577.8106 | X72: 13289.24567
B73: Consumos en bombeo | C73: -480.846 | D73: -440.736 | E73: -78.978 | F73: 0 | G73: -1576.303 | H73: 0 | I73: -851.231 | J73: -100.736 | K73: -1107.249 | L73: -361.031 | M73: 0 | N73: -70.939 | O73: -261.542 | P73: 0 | Q73: 0 | R73: 0 | S73: 0 | T73: 0 | U73: 0 | V73: =SUM(C73:U73) -> -5329.591 | W73: -5329.591 | X73: 0
B74: Saldo Intercambios | C74: 6021.988 | D74: -6003.143 | E74: -2849.358 | F74: 1298.266 | G74: 7501.359 | H74: 0 | I74: 3298.202 | J74: -10781.332 | K74: -19250.761 | L74: 4357.043 | M74: 0 | N74: -16813.589 | O74: -11276.998 | P74: 227.452 | Q74: 27142.168 | R74: 0 | S74: 3101.626 | T74: 8.066 | U74: 10612.884 | V74: -3406.127 | W74: -4704.393 | X74: 1298.266
B75: Demanda B.C | C75: =SUM(C72:C74) -> 37538.08093 | D75: =SUM(D72:D74) -> 10089.684 | E75: 10312.64725 | F75: 5585.426861 | G75: 25885.87139 | H75: 8579.968659 | I75: 4321.61151 | J75: 11650.85579 | K75: 13556.98558 | L75: 45622.29095 | M75: 212.253 | N75: 4637.777792 | O75: 19748.98903 | P75: 1690.385009 | Q75: 28447.6183 | R75: 209.863147 | S75: 8468.668156 | T75: 4779.990057 | U75: 16792.37089 | V75: 258131.3383 | W75: =V75-F75-H75-M75-R75 -> 243543.8266 | X75: 14587.51167
B76: =CONCATENATE("Δ",B55,"/",B55-1) -> Δ2014/2013 | C76: =(C75/C48-1) -> -0.01701218393 | D76: -0.001501236677 | E76: -0.009797909077 | F76: -0.01553007932 | G76: -0.0003561548871 | H76: -0.005069137802 | I76: -0.01456030053 | J76: 0.001708483202 | K76: -0.009080077265 | L76: -0.01406380373 | M76: 0.05097074159 | N76: -0.04696598693 | O76: -0.00610840291 | P76: -0.008126661255 | Q76: -0.04241324066 | R76: 0.0009349439244 | S76: 0.01852133955 | T76: 0.000817297245 | U76: 0.01427662634 | V76: -0.01128370431 | W76: -0.01146487681 | X76: -0.008249123738
B77: Renovable | C77: =C58+C64+C65+C66+C67+C68+C71 -> 12505.58431 | D77: =D58+D64+D65+D66+D67+D68+D71 -> 9000.846988 | E77: 3681.185876 | F77: 130.558628 | G77: 3868.918474 | H77: 685.611659 | I77: 435.9359712 | J77: 11996.88401 | K77: 23729.02542 | L77: 8742.847151 | M77: 0 | N77: 6263.097314 | O77: 19019.24154 | P77: 1243.531484 | Q77: 568.9220499 | R77: 0.083833 | S77: 1534.090407 | T77: 3692.133574 | U77: 944.3643526 | V77: =SUM(C77:U77) -> 108042.863 | W77: =V77-F77-H77-M77-R77 -> 107226.6089 | X77: =F77+H77+M77+R77 -> 816.25412
B78: No renovable | C78: =C59+C60+C61+C62+C63+C69+C70 -> 19491.35462 | D78: =D59+D60+D61+D62+D63+D69+D70 -> 7532.716011 | E78: 9559.797377 | F78: 4156.602233 | G78: 16091.89692 | H78: 7894.357 | I78: 1438.704539 | J78: 10536.03978 | K78: 10185.97016 | L78: 32883.4318 | M78: 212.253 | N78: 15259.20848 | O78: 12268.2875 | P78: 219.401525 | Q78: 736.528251 | R78: 209.779314 | S78: 3832.951749 | T78: 1079.790483 | U78: 5235.122536 | V78: 158824.1933 | W78: =V78-F78-H78-M78-R78 -> 146351.2017 | X78: =F78+H78+M78+R78 -> 12472.99155
B79: % Renovable s/total | C79: =(C77)/C$72 -> 0.3908368964 | D79: =(D77)/D$72 -> 0.5443985055 | E79: 0.2780145406 | F79: 0.0304534008 | G79: 0.1938256728 | H79: 0.07990841065 | I79: 0.2325437698 | J79: 0.5324157716 | K79: 0.6996617578 | L79: 0.2100319166 | M79: 0 | N79: 0.2910049404 | O79: =(O77)/O$72 -> 0.6078857016 | P79: 0.8500262667 | Q79: 0.4358052156 | R79: 0.0003994650857 | S79: 0.2858353564 | T79: 0.7737201032 | U79: 0.1528224543 | V79: 0.4048565025 | W79: 0.4228548572 | X79: 0.06142215596
B80: % No renovable s/total | C80: =(C78)/C$72 -> 0.6091631036 | D80: =(D78)/D$72 -> 0.4556014945 | E80: 0.7219854594 | F80: 0.9695465992 | G80: 0.8061743272 | H80: 0.9200915893 | I80: 0.7674562302 | J80: 0.4675842284 | K80: 0.3003382422 | L80: 0.7899680834 | M80: 1 | N80: 0.7089950596 | O80: 0.3921142984 | P80: 0.1499737333 | Q80: 0.5641947844 | R80: 0.9996005349 | S80: 0.7141646436 | T80: 0.2262798968 | U80: 0.8471775457 | V80: 0.5951434975 | W80: 0.5771451428 | X80: 0.938577844
B82: 2015
B83: CCAA | C83: Andalucía | D83: Aragón | E83: Asturias | F83: Baleares | G83: C. Valenciana | H83: Canarias | I83: Cantabria | J83: Castilla-La Mancha | K83: Castilla y León | L83: Cataluña | M83: Ceuta | N83: Extremadura | O83: Galicia | P83: La Rioja | Q83: Madrid | R83: Melilla | S83: Murcia | T83: Navarra | U83: País Vasco | V83: España | W83: PENINSULAR | X83: NO PENINSULAR
B85: Hidráulica | C85: 704.4459754 | D85: 3155.793042 | E85: 1607.183758 | F85: 0 | G85: 588.7847786 | H85: 3.585851 | I85: 286.0598481 | J85: 715.3475134 | K85: 7537.966521 | L85: 4414.391449 | M85: 0 | N85: 1584.738022 | O85: 6424.048457 | P85: 122.8522502 | Q85: 132.7728345 | R85: 0 | S85: 108.505957 | T85: 534.1834837 | U85: 405.3483536 | V85: =SUM(C85:U85) -> 28326.00809 | W85: =V85-F85-H85-M85-R85 -> 28322.42224 | X85: =F85+H85+M85+R85 -> 3.585851
B86: Turbinación bombeo | C86: =263.782367792 -> 263.7823678 | D86: 281.952085 | E86: 26.8631636 | G86: 1018.291565 | I86: 477.330023 | J86: 31.737669 | K86: 413.8450527 | L86: 321.1057216 | M86: 0 | N86: 27.01948198 | O86: 33.4386584 | V86: =SUM(C86:U86) -> 2895.365788 | W86: =V86-F86-H86-M86-R86 -> 2895.365788 | X86: =F86+H86+M86+R86 -> 0
B87: Nuclear | C87: 0 | D87: 0 | E87: 0 | F87: 0 | G87: 7430.802 | H87: 0 | I87: 0 | J87: 7926.359 | K87: 0 | L87: 23325.627 | M87: 0 | N87: 16072.051 | O87: 0 | P87: 0 | Q87: 0 | R87: 0 | S87: 0 | T87: 0 | U87: 0 | V87: 54754.839 | W87: 54754.839 | X87: 0
B88: Carbón | C88: 12701.04 | D88: 4459.456 | E88: 12480.174 | F88: 1865.27 | G88: 0 | H88: 0 | I88: 0 | J88: 906.899 | K88: 9310.097 | L88: 0 | M88: 0 | N88: 0 | O88: 11066.106 | P88: 0 | Q88: 0 | R88: 0 | S88: 0 | T88: 0 | U88: 0 | V88: 52789.042 | W88: 50923.772 | X88: 1865.27
B89: Fuel / gas | C89: 0 | D89: 0 | E89: 0 | F89: 1322.478 | G89: 0 | H89: 4763.92 | I89: 0 | J89: 0 | K89: 0 | L89: 0 | M89: 205.438 | N89: 0 | O89: 0 | P89: 0 | Q89: 0 | R89: 204.814 | S89: 0 | T89: 0 | U89: 0 | V89: 6496.65 | W89: 4.263256415e-13 | X89: 6496.65
B90: Ciclo combinado | C90: 5623.467 | D90: 177.911 | E90: 361.307 | F90: 809.239 | G90: 4858.863 | H90: 3213.044 | I90: 0 | J90: 1289.096 | K90: 0 | L90: 6831.698 | M90: 0 | N90: 0 | O90: 333.788 | P90: 590.159 | Q90: 0 | R90: 0 | S90: 2072.432 | T90: 724.07 | U90: 2405.677 | V90: 29290.751 | W90: 25268.468 | X90: 4022.283
B91: Hidroeólica | C91: 0 | D91: 0 | E91: 0 | F91: 0 | G91: 0 | H91: 8.557066 | I91: 0 | J91: 0 | K91: 0 | L91: 0 | M91: 0 | N91: 0 | O91: 0 | P91: 0 | Q91: 0 | R91: 0 | S91: 0 | T91: 0 | U91: 0 | V91: =SUM(C91:U91) -> 8.557066 | W91: 0 | X91: 8.557066
B92: Eólica | C92: 6363.837098 | D92: 4229.199223 | E92: 917.807752 | F92: 5.315563 | G92: 2195.993566 | H92: 396.660923 | I92: 70.740945 | J92: 7286.716406 | K92: 11135.29315 | L92: 2608.782257 | M92: 0 | N92: 0 | O92: 8554.758744 | P92: 934.741484 | Q92: 0 | R92: 0 | S92: 435.397331 | T92: 2637.926023 | U92: 341.95555 | V92: 48115.12602 | W92: 47713.14953 | X92: 401.976486
B93: Solar fotovoltaica | C93: 1570.07354 | D93: 304.325605 | E93: 0.651736 | F93: 122.646436 | G93: 523.085511 | H93: 275.555924 | I93: 2.05531 | J93: 1722.910268 | K93: 847.268851 | L93: 421.112084 | M93: 0 | N93: 1111.133989 | O93: 20.758184 | P93: 132.187662 | Q93: 93.788112 | R93: 0.07996 | S93: 762.396862 | T93: 304.335307 | U93: 28.715117 | V93: 8243.080458 | W93: 7844.798138 | X93: 398.28232
B94: Solar termoeléctrica | C94: 2110.236508 | D94: 0 | E94: 0 | F94: 0 | G94: 89.976464 | H94: 0 | I94: 0 | J94: 735.486298 | K94: 0 | L94: 75.591874 | M94: 0 | N94: 2037.844843 | O94: 0 | P94: 0 | Q94: 0 | R94: 0 | S94: 36.099527 | T94: 0 | U94: 0 | V94: 5085.235514 | W94: 5085.235514 | X94: 0
B95: Otras renovables | C95: 1265.903382 | D95: 57.287431 | E95: 228.786063 | F95: 1.971492 | G95: 40.643071 | H95: 8.053126 | I95: 85.075816 | J95: 240.960016 | K95: 201.185116 | L95: 174.427152 | M95: 0 | N95: 199.312358 | O95: 235.937514 | P95: 0.55284 | Q95: 156.870739 | R95: 0 | S95: 39.185057 | T95: 233.270322 | U95: 14.552711 | V95: 3183.974206 | W95: 3173.949588 | X95: 10.024618
B96: Cogeneración | C96: 5207.042735 | D96: 2443.058358 | E96: 357.122571 | F96: 31.518989 | G96: 1531.552624 | H96: 0 | I96: 716.346056 | J96: 778.594478 | K96: 1850.746959 | L96: 4678.848313 | M96: 0 | N96: 69.638162 | O96: 2629.349461 | P96: 82.116107 | Q96: 694.046949 | R96: 0 | S96: 1458.475687 | T96: 835.153377 | U96: 2085.884596 | V96: 25449.49542 | W96: 25417.97643 | X96: 31.518989
B97: Residuos no renovables | C97: 0 | D97: 404.302174 | E97: 720.741036 | F97: 151.0977295 | G97: 365.328105 | H97: 0 | I97: 33.14212 | J97: 0 | K97: 0 | L97: 136.54451 | M97: 0 | N97: 0 | O97: 187.9840255 | P97: 0 | Q97: 62.844877 | R97: 4.295929 | S97: 0 | T97: 0 | U97: 413.8278935 | V97: =SUM(C97:U97) -> 2480.108399 | W97: =V97-F97-H97-M97-R97 -> 2324.714741 | X97: =F97+H97+M97+R97 -> 155.3936585
B98: Residuos renovables | C98: 0 | D98: 0 | E98: 0 | F98: 151.0977295 | G98: 0 | H98: 0 | I98: 33.14212 | J98: 0 | K98: 0 | L98: 136.54451 | M98: 0 | N98: 0 | O98: 187.9840255 | P98: 0 | Q98: 62.844877 | R98: 4.295929 | S98: 0 | T98: 0 | U98: 242.1399425 | V98: =SUM(C98:U98) -> 818.0491335 | W98: =V98-F98-H98-M98-R98 -> 662.655475 | X98: =F98+H98+M98+R98 -> 155.3936585
B99: Generación neta | C99: =SUM(C85:C98) -> 35809.82861 | D99: =SUM(D85:D98) -> 15513.28492 | E99: 16700.63708 | F99: 4460.634939 | G99: 18643.32068 | H99: 8669.37689 | I99: 1703.892238 | J99: 21634.10665 | K99: 31296.40265 | L99: 43124.67287 | M99: 205.438 | N99: 21101.73786 | O99: 29674.15307 | P99: 1862.609343 | Q99: 1203.168389 | R99: 213.485818 | S99: 4912.492421 | T99: 5268.938513 | U99: 5938.101164 | V99: =SUM(C99:U99) -> 267936.2821 | W99: 254387.3465 | X99: 13548.93565
B100: Consumos en bombeo | C100: -391.213 | D100: -410.178 | E100: -41.477 | F100: 0 | G100: -1352.201 | H100: 0 | I100: -684.933 | J100: -44.284 | K100: -854.155 | L100: -463.465 | M100: 0 | N100: -43.287 | O100: -234.901 | P100: 0 | Q100: 0 | R100: 0 | S100: 0 | T100: 0 | U100: 0 | V100: =SUM(C100:U100) -> -4520.094 | W100: -4520.094 | X100: 0
B101: Saldo Intercambios | C101: 3241.863 | D101: -4802.101 | E101: -6191.354 | F101: 1335.783 | G101: 9454.445 | H101: 0 | I101: 3228.933 | J101: -10018.83 | K101: -16577.612 | L101: 3985.876 | M101: 0 | N101: -16222.839 | O101: -9721.055 | P101: -137.492 | Q101: 27670.776 | R101: 0 | S101: 4007.705 | T101: -425.816 | U101: 11038.563 | V101: -133.155 | W101: -1468.938 | X101: 1335.783
B102: Demanda B.C | C102: =SUM(C99:C101) -> 38660.47861 | D102: =SUM(D99:D101) -> 10301.00592 | E102: 10467.80608 | F102: 5796.417939 | G102: 26745.56468 | H102: 8669.37689 | I102: 4247.892238 | J102: 11570.99265 | K102: 13864.63565 | L102: 46647.08387 | M102: 205.438 | N102: 4835.611856 | O102: 19718.19707 | P102: 1725.117343 | Q102: 28873.94439 | R102: 213.485818 | S102: 8920.197421 | T102: 4843.122513 | U102: 16976.66416 | V102: 263283.0331 | W102: 248398.3145 | X102: 14884.71865
B103: =CONCATENATE("Δ",B82,"/",B82-1) -> Δ2015/2014 | C103: =(C102/C75-1) -> 0.02990024135 | D103: 0.0209443546 | E103: 0.01504548953 | F103: 0.03777528258 | G103: 0.03321090799 | H103: 0.01042057781 | I103: -0.01705828299 | J103: -0.006854701559 | K103: 0.02269310326 | L103: 0.02246254835 | M103: -0.03210790896 | N103: 0.04265708123 | O103: -0.001559166633 | P103: 0.02054699581 | Q103: 0.01498635433 | R103: 0.01726206364 | S103: 0.053317624 | T103: 0.01320765424 | U103: 0.01097482162 | V103: 0.01995764957 | W103: 0.01993270731 | X103: 0.02037406974
B104: Renovable | C104: =C85+C91+C92+C93+C94+C95+C98 -> 12014.4965 | D104: =D85+D91+D92+D93+D94+D95+D98 -> 7746.605301 | E104: 2754.429309 | F104: 281.0312205 | G104: 3438.483391 | H104: 692.41289 | I104: 477.0740391 | J104: 10701.4205 | K104: 19721.71364 | L104: 7830.849326 | M104: 0 | N104: 4933.029212 | O104: 15423.48692 | P104: 1190.334236 | Q104: 446.2765625 | R104: 4.375889 | S104: 1381.584734 | T104: 3709.715136 | U104: 1032.711674 | V104: =SUM(C104:U104) -> 93780.03049 | W104: =V104-F104-H104-M104-R104 -> 92802.21049 | X104: =F104+H104+M104+R104 -> 977.8199995
B105: No renovable | C105: =C86+C87+C88+C89+C90+C96+C97 -> 23795.3321 | D105: =D86+D87+D88+D89+D90+D96+D97 -> 7766.679617 | E105: 13946.20777 | F105: 4179.603719 | G105: 15204.83729 | H105: 7976.964 | I105: 1226.818199 | J105: 10932.68615 | K105: 11574.68901 | L105: 35293.82354 | M105: 205.438 | N105: 16168.70864 | O105: 14250.66614 | P105: 672.275107 | Q105: 756.891826 | R105: 209.109929 | S105: 3530.907687 | T105: 1559.223377 | U105: 4905.389489 | V105: =SUM(C105:U105) -> 174156.2516 | W105: =V105-F105-H105-M105-R105 -> 161585.136 | X105: =F105+H105+M105+R105 -> 12571.11565
B106: % Renovable s/total | C106: =(C104)/C$99 -> 0.3355083498 | D106: =(D104)/D$99 -> 0.499352996 | E106: 0.164929595 | F106: 0.06300251519 | G106: 0.1844351362 | H106: 0.07986881858 | I106: 0.2799907344 | J106: 0.4946550683 | K106: 0.6301591228 | L106: 0.1815862894 | M106: 0 | N106: 0.2337735994 | O106: 0.5197616555 | P106: 0.6390681119 | Q106: 0.3709177924 | R106: 0.02049732877 | S106: 0.2812390566 | T106: 0.7040725806 | U106: 0.1739127788 | V106: 0.3500087027 | W106: 0.3648067083 | X106: 0.07216950652
B107: % No renovable s/total | C107: =(C105)/C$99 -> 0.6644916502 | D107: =(D105)/D$99 -> 0.500647004 | E107: 0.835070405 | F107: 0.9369974848 | G107: 0.8155648638 | H107: 0.9201311814 | I107: 0.7200092656 | J107: 0.5053449317 | K107: 0.3698408772 | L107: 0.8184137106 | M107: 1 | N107: 0.7662264006 | O107: 0.4802383445 | P107: 0.3609318881 | Q107: 0.6290822076 | R107: 0.9795026712 | S107: 0.7187609434 | T107: 0.2959274194 | U107: 0.8260872212 | V107: 0.6499912973 | W107: 0.6351932917 | X107: 0.9278304935
B109: 2016
B110: CCAA | C110: Andalucía | D110: Aragón | E110: Asturias | F110: Baleares | G110: C. Valenciana | H110: Canarias | I110: Cantabria | J110: Castilla-La Mancha | K110: Castilla y León | L110: Cataluña | M110: Ceuta | N110: Extremadura | O110: Galicia | P110: La Rioja | Q110: Madrid | R110: Melilla | S110: Murcia | T110: Navarra | U110: País Vasco | V110: España | W110: PENINSULAR | X110: NO PENINSULAR
B112: Hidráulica | C112: 697.5211918 | D112: 3016.223531 | E112: 1960.186463 | F112: 0 | G112: 591.2243805 | H112: 3.472392 | I112: 238.6145954 | J112: 828.8266062 | K112: 11213.74733 | L112: 3956.296841 | M112: 0 | N112: 2468.803023 | O112: 9814.382764 | P112: 174.4320363 | Q112: 157.2971486 | R112: 0 | S112: 100.650005 | T112: 450.3620599 | U112: 370.5848097 | V112: =SUM(C112:U112) -> 36042.62518 | W112: =V112-F112-H112-M112-R112 -> 36039.15279 | X112: =F112+H112+M112+R112 -> 3.472392
B113: Turbinación bombeo | C113: 258.1047681 | D113: 317.108091 | E113: 25.5490438 | F113: 0 | G113: 1403.096403 | H113: 0 | I113: 428.064668 | J113: 45.31706 | K113: 356.1963241 | L113: 223.8100497 | M113: 0 | N113: 49.88669062 | O113: 27.195812 | P113: 0 | Q113: 0 | R113: 0 | S113: 0 | T113: 0 | U113: 0 | V113: =SUM(C113:U113) -> 3134.32891 | W113: =V113-F113-H113-M113-R113 -> 3134.32891 | X113: =F113+H113+M113+R113 -> 0
B114: Nuclear | C114: 0 | D114: 0 | E114: 0 | F114: 0 | G114: 9178.263 | H114: 0 | I114: 0 | J114: 8002.642 | K114: 0 | L114: 23743.211 | M114: 0 | N114: 15174.856 | O114: 0 | P114: 0 | Q114: 0 | R114: 0 | S114: 0 | T114: 0 | U114: 0 | V114: 56098.972 | W114: 56098.972 | X114: 0
B115: Carbón | C115: 8273.448 | D115: 3317.603 | E115: 7573.062 | F115: 2303.769 | G115: 0 | H115: 0 | I115: 0 | J115: 0.077 | K115: 6554.315 | L115: 0 | M115: 0 | N115: 0 | O115: 9468.999 | P115: 0 | Q115: 0 | R115: 0 | S115: 0 | T115: 0 | U115: 0 | V115: 37491.273 | W115: 35187.504 | X115: 2303.769
B116: Fuel / gas | C116: 0 | D116: 0 | E116: 0 | F116: 1311.771 | G116: 0 | H116: 5043.461 | I116: 0 | J116: 0 | K116: 0 | L116: 0 | M116: 210.736 | N116: 0 | O116: 0 | P116: 0 | Q116: 0 | R116: 198.57 | S116: 0 | T116: 0 | U116: 0 | V116: 6764.538 | W116: -3.97903932e-13 | X116: 6764.538
B117: Ciclo combinado | C117: 6185.609 | D117: 175.51 | E117: 354.817 | F117: 542.55 | G117: 4695.019 | H117: 3031.7 | I117: 0 | J117: 1266.46 | K117: 0 | L117: 6989.706 | M117: 0 | N117: 0 | O117: 670.215 | P117: 1015.822 | Q117: 0 | R117: 0 | S117: 1114.862 | T117: 1287.686 | U117: 1930.442 | V117: 29260.398 | W117: 25686.148 | X117: 3574.25
B118: Hidroeólica | C118: 0 | D118: 0 | E118: 0 | F118: 0 | G118: 0 | H118: 18.102639 | I118: 0 | J118: 0 | K118: 0 | L118: 0 | M118: 0 | N118: 0 | O118: 0 | P118: 0 | Q118: 0 | R118: 0 | S118: 0 | T118: 0 | U118: 0 | V118: 18.102639 | W118: 0 | X118: 18.102639
B119: Eólica | C119: 7060.264593 | D119: 4225.959252 | E119: 798.145695 | F119: 5.416058 | G119: 2224.688286 | H119: 393.085554 | I119: 70.502809 | J119: 7680.537222 | K119: 10939.94373 | L119: 2683.941945 | M119: 0 | N119: 0 | O119: 7318.713076 | P119: 933.709781 | Q119: 0 | R119: 0 | S119: 457.421152 | T119: 2571.923076 | U119: 332.418067 | V119: =SUM(C119:U119) -> 47696.6703 | W119: 47298.16869 | X119: 398.501612
B120: Solar fotovoltaica | C120: 1525.683551 | D120: 295.295939 | E120: 0.58737 | F120: 120.534661 | G120: 514.061468 | H120: 277.674761 | I120: 2.095262 | J120: 1624.757124 | K120: 829.744469 | L120: 413.621431 | M120: 0 | N120: 1061.744123 | O120: 20.147258 | P120: 131.425654 | Q120: 88.527027 | R120: 0.078082 | S120: 747.019136 | T120: 294.940998 | U120: 29.661534 | V120: 7977.599848 | W120: 7579.312344 | X120: 398.287504
B121: Solar termoeléctrica | C121: 2194.631009 | D121: 0 | E121: 0 | F121: 0 | G121: 70.150953 | H121: 0 | I121: 0 | J121: 721.879998 | K121: 0 | L121: 70.319427 | M121: 0 | N121: 1973.457652 | O121: 0 | P121: 0 | Q121: 0 | R121: 0 | S121: 40.762663 | T121: 0 | U121: 0 | V121: 5071.201702 | W121: 5071.201702 | X121: 0
B122: Otras renovables | C122: 1367.772666 | D122: 53.330302 | E122: 245.265981 | F122: 1.309715 | G122: 38.907042 | H122: 9.335775 | I122: 76.573037 | J122: 238.410359 | K122: 246.51016 | L122: 174.026421 | M122: 0 | N122: 235.610537 | O122: 232.034116 | P122: 7.593838 | Q122: 137.921649 | R122: 0 | S122: 55.348953 | T122: 273.716822 | U122: 30.889806 | V122: 3424.557179 | W122: 3413.911689 | X122: 10.64549
B123: Cogeneración | C123: 5102.743263 | D123: 2498.912457 | E123: 369.745856 | F123: 34.701317 | G123: 1579.402809 | H123: 0 | I123: 831.309878 | J123: 988.741079 | K123: 1857.917275 | L123: 4689.194371 | M123: 0 | N123: 50.701283 | O123: 2801.991939 | P123: 65.604554 | Q123: 709.290259 | R123: 0 | S123: 1446.650791 | T123: 850.04066 | U123: 2029.668237 | V123: 25906.61603 | W123: 25871.91471 | X123: 34.701317
B124: Residuos no renovables | C124: 181.57978 | D124: 366.541587 | E124: 707.87569 | F124: 130.8051835 | G124: 344.800935 | H124: 0 | I124: 39.0922205 | J124: 0 | K124: 0 | L124: 136.458882 | M124: 0 | N124: 0 | O124: 169.1174265 | P124: 0 | Q124: 67.762207 | R124: 4.8499525 | S124: 0 | T124: 0 | U124: 458.0799175 | V124: =SUM(C124:U124) -> 2606.963782 | W124: =V124-F124-H124-M124-R124 -> 2471.308646 | X124: =F124+H124+M124+R124 -> 135.655136
B125: Residuos renovables | C125: 0 | D125: 0 | E125: 0 | F125: 130.8050665 | G125: 0 | H125: 0 | I125: 39.0922205 | J125: 0 | K125: 0 | L125: 134.043918 | M125: 0 | N125: 0 | O125: 169.1174265 | P125: 0 | Q125: 67.762207 | R125: 4.8500525 | S125: 0 | T125: 0 | U125: 239.7241385 | V125: =SUM(C125:U125) -> 785.3950295 | W125: =V125-F125-H125-M125-R125 -> 649.7399105 | X125: =F125+H125+M125+R125 -> 135.655119
B126: Generación neta | C126: =SUM(C112:C125) -> 32847.35782 | D126: =SUM(D112:D125) -> 14266.48416 | E126: 12035.2351 | F126: 4581.662001 | G126: 20639.61428 | H126: 8776.832121 | I126: 1725.34469 | J126: 21397.64845 | K126: 31998.37429 | L126: 43214.63029 | M126: 210.736 | N126: 21015.05931 | O126: 30691.91382 | P126: 2328.587863 | Q126: 1228.560498 | R126: 208.348087 | S126: 3962.7147 | T126: 5728.669616 | U126: =SUM(U112:U125) -> 5421.46851 | V126: =SUM(V112:V125) -> 262279.2416 | W126: =V126-F126-H126-M126-R126 -> 248501.6634 | X126: 13777.57821
B127: Consumos en bombeo | C127: -370.583 | D127: -421.737 | E127: -38.751 | F127: 0 | G127: -1830.747 | H127: 0 | I127: -611.804 | J127: -65.597 | K127: -919.611 | L127: -303.502 | M127: 0 | N127: -84.442 | O127: -172.642 | P127: 0 | Q127: 0 | R127: 0 | S127: 0 | T127: 0 | U127: 0 | V127: -4819.416 | W127: =V127-F127-H127-M127-R127 -> -4819.416 | X127: 0
B128: Saldo Intercambios | C128: 7129.363 | D128: -3406.842 | E128: -1487.886 | F128: 1250.582 | G128: 8043.827 | H128: 0 | I128: 3090.931 | J128: -9620.951 | K128: -17052.596 | L128: 3999.883 | M128: 0 | N128: -15961.991 | O128: -10557.892 | P128: -596.534 | Q128: 27740.176 | R128: 0 | S128: 5090.398 | T128: -780.105 | U128: 10786.96 | V128: 7667.323 | W128: 6416.741 | X128: 1250.582
B129: Demanda B.C | C129: =SUM(C126:C128) -> 39606.13782 | D129: =SUM(D126:D128) -> 10437.90516 | E129: 10508.5981 | F129: 5832.244001 | G129: 26852.69428 | H129: 8776.832121 | I129: 4204.47169 | J129: 11711.10045 | K129: 14026.16729 | L129: 46911.01129 | M129: 210.736 | N129: 4968.626308 | O129: 19961.37982 | P129: 1732.053863 | Q129: 28968.7365 | R129: 208.348087 | S129: 9053.1127 | T129: 4948.564616 | U129: 16208.42851 | V129: =SUM(V126:V128) -> 265127.1486 | W129: 250098.9884 | X129: 15028.16021
B130: =CONCATENATE("Δ",B109,"/",B109-1) -> Δ2016/2015 | C130: =(C129/C102-1) -> 0.02446061844 | D130: 0.01328989048 | E130: 0.003896902438 | F130: 0.006180724437 | G130: 0.004005508696 | H130: 0.01239480442 | I130: -0.01022166885 | J130: 0.01210853761 | K130: 0.01165062269 | L130: 0.005657961714 | M130: 0.02578880246 | N130: 0.02750726417 | O130: 0.01233290992 | P130: 0.00402089758 | Q130: 0.003282963623 | R130: -0.02406591243 | S130: 0.01490048625 | T130: 0.02177151267 | U130: -0.04525245045 | V130: =(V129/V102-1) -> 0.007004308144 | W130: 0.006846559868 | X130: 0.00963683395
B131: Renovable | C131: =C112+C118+C119+C120+C121+C122+C125 -> 12845.87301 | D131: =D112+D118+D119+D120+D121+D122+D125 -> 7590.809024 | E131: 3004.185509 | F131: 258.0655005 | G131: 3439.03213 | H131: 701.671121 | I131: 426.8779239 | J131: 11094.41131 | K131: 23229.94569 | L131: 7432.249983 | M131: 0 | N131: 5739.615335 | O131: 17554.39464 | P131: 1247.161309 | Q131: 451.5080316 | R131: 4.9281345 | S131: 1401.201909 | T131: 3590.942956 | U131: 1003.278355 | V131: =SUM(C131:U131) -> 101016.1519 | W131: =V131-F131-H131-M131-R131 -> 100051.4871 | X131: =F131+H131+M131+R131 -> 964.664756
B132: No renovable | C132: =C113+C114+C115+C116+C117+C123+C124 -> 20001.48481 | D132: =D113+D114+D115+D116+D117+D123+D124 -> 6675.675135 | E132: 9031.04959 | F132: 4323.5965 | G132: 17200.58215 | H132: 8075.161 | I132: 1298.466766 | J132: 10303.23714 | K132: 8768.428599 | L132: 35782.3803 | M132: 210.736 | N132: 15275.44397 | O132: 13137.51918 | P132: 1081.426554 | Q132: 777.052466 | R132: 203.4199525 | S132: 2561.512791 | T132: 2137.72666 | U132: 4418.190155 | V132: 161263.0897 | W132: 148450.1763 | X132: 12812.91345
B133: % Renovable s/total | C133: =(C131)/C$126 -> 0.3910778176 | D133: =(D131)/D$126 -> 0.5320728597 | E133: 0.2496158558 | F133: 0.05632573953 | G133: 0.1666228876 | H133: 0.07994582912 | I133: 0.2474160243 | J133: 0.5184874093 | K133: 0.7259726848 | L133: 0.1719845787 | M133: 0 | N133: 0.2731191595 | O133: 0.5719550349 | P133: 0.5355869662 | Q133: 0.3675098072 | R133: 0.02365337053 | S133: 0.3535964648 | T133: 0.6268371536 | U133: 0.1850565679 | V133: =(V131)/V$126 -> 0.3851473386 | W133: 0.4026189835 | X133: 0.07001700454
B134: % No renovable s/total | C134: =(C132)/C$126 -> 0.6089221824 | D134: =(D132)/D$126 -> 0.4679271403 | E134: 0.7503841442 | F134: 0.9436742605 | G134: 0.8333771124 | H134: 0.9200541709 | I134: 0.7525839757 | J134: 0.4815125907 | K134: 0.2740273152 | L134: 0.8280154213 | M134: 1 | N134: 0.7268808405 | O134: 0.4280449651 | P134: 0.4644130338 | Q134: 0.6324901928 | R134: 0.9763466295 | S134: 0.6464035352 | T134: 0.3731628464 | U134: 0.8149434321 | V134: =(V132)/V$126 -> 0.6148526614 | W134: 0.5973810165 | X134: 0.9299829955
B136: 2017
B137: CCAA | C137: Andalucía | D137: Aragón | E137: Asturias | F137: Baleares | G137: C. Valenciana | H137: Canarias | I137: Cantabria | J137: Castilla-La Mancha | K137: Castilla y León | L137: Cataluña | M137: Ceuta | N137: Extremadura | O137: Galicia | P137: La Rioja | Q137: Madrid | R137: Melilla | S137: Murcia | T137: Navarra | U137: País Vasco | V137: España | W137: PENINSULAR | X137: NO PENINSULAR
B139: Hidráulica | C139: 559.7154546 | D139: 2411.79845 | E139: 981.0889161 | F139: 0 | G139: 377.6633678 | H139: 3.281487 | I139: 160.9890272 | J139: 409.4536188 | K139: 4138.013162 | L139: 3720.153158 | M139: 0 | N139: 1358.708115 | O139: 3307.962658 | P139: 101.2904004 | Q139: 135.6823106 | R139: 0 | S139: 72.45690006 | T139: 339.680209 | U139: 285.8442551 | V139: =SUM(C139:U139) -> 18363.78149 | W139: =V139-F139-H139-M139-R139 -> 18360.5 | X139: =F139+H139+M139+R139 -> 3.281487
B140: Turbinación bombeo | C140: 146.5207041 | D140: 148.838275 | E140: 12.6857136 | F140: 0 | G140: 1011.231914 | H140: 0 | I140: 400.064735 | J140: 41.51776 | K140: 331.8822021 | L140: 113.5452056 | M140: 0 | N140: 19.64006648 | O140: 23.067282 | P140: 0 | Q140: 0 | R140: 0 | S140: 0 | T140: 0 | U140: 0 | V140: =SUM(C140:U140) -> 2248.993858 | W140: =V140-F140-H140-M140-R140 -> 2248.993858 | X140: =F140+H140+M140+R140 -> 0
B141: Nuclear | C141: 0 | D141: 0 | E141: 0 | F141: 0 | G141: 7050.499 | H141: 0 | I141: 0 | J141: 7980.991 | K141: 0 | L141: 24232.649 | M141: 0 | N141: 16344.783 | O141: 0 | P141: 0 | Q141: 0 | R141: 0 | S141: 0 | T141: 0 | U141: 0 | V141: 55608.922 | W141: 55608.922 | X141: 0
B142: Carbón | C142: 10550.373 | D142: 4711.257 | E142: 10104.345 | F142: 2603.342 | G142: 0 | H142: 0 | I142: 0 | J142: 0 | K142: 6409.889 | L142: 0 | M142: 0 | N142: 0 | O142: 10817.06 | P142: 0 | Q142: 0 | R142: 0 | S142: 0 | T142: 0 | U142: 0 | V142: 45196.266 | W142: 42592.924 | X142: 2603.342
B143: Fuel / gas | C143: 0 | D143: 0 | E143: 0 | F143: 1367.754 | G143: 0 | H143: 5239.887 | I143: 0 | J143: 0 | K143: 0 | L143: 0 | M143: 202.862 | N143: 0 | O143: 0 | P143: 0 | Q143: 0 | R143: 200.564 | S143: 0 | T143: 0 | U143: 0 | V143: 7011.067 | W143: 3.97903932e-13 | X143: 7011.067
B144: Ciclo combinado | C144: 7767.905 | D144: 1099.596 | E144: 685.076 | F144: 426.186 | G144: 4173.693 | H144: 3015.773 | I144: 0 | J144: 1666.529 | K144: 0 | L144: 7892.601 | M144: 0 | N144: 0 | O144: 1762.76 | P144: 1689.878 | Q144: 0 | R144: 0 | S144: 3446.795 | T144: 1405.111 | U144: 2264.584 | V144: 37296.487 | W144: 33854.528 | X144: 3441.959
B145: Hidroeólica | C145: 0 | D145: 0 | E145: 0 | F145: 0 | G145: 0 | H145: 20.398516 | I145: 0 | J145: 0 | K145: 0 | L145: 0 | M145: 0 | N145: 0 | O145: 0 | P145: 0 | Q145: 0 | R145: 0 | S145: 0 | T145: 0 | U145: 0 | V145: =SUM(C145:U145) -> 20.398516 | W145: 0 | X145: 20.398516
B146: Eólica | C146: 7189.701545 | D146: 4478.169687 | E146: 826.673782 | F146: 2.924276 | G146: 2175.513937 | H146: 395.943068 | I146: 65.882128 | J146: 7504.434283 | K146: 10988.59327 | L146: 2825.1245 | M146: 0 | N146: 0 | O146: 7001.676526 | P146: 976.655417 | Q146: 0 | R146: 0 | S146: 434.662 | T146: 2703.405309 | U146: 327.650205 | V146: =SUM(C146:U146) -> 47897.00993 | W146: 47498.14259 | X146: 398.867344
B147: Solar fotovoltaica | C147: 1579.890905 | D147: 311.32922 | E147: 0.595457 | F147: 123.205418 | G147: 543.183977 | H147: 273.540098 | I147: 1.94555 | J147: 1742.016914 | K147: 895.315233 | L147: 420.488717 | M147: 0 | N147: 1118.869162 | O147: 20.79275 | P147: 139.475496 | Q147: 91.85357 | R147: 0.075193 | S147: 773.359442 | T147: 317.864443 | U147: 31.235193 | V147: =SUM(C147:U147) -> 8385.036738 | W147: 7988.216029 | X147: 396.820709
B148: Solar termoeléctrica | C148: 2319.75783 | D148: 0 | E148: 0 | F148: 0 | G148: 98.825012 | H148: 0 | I148: 0 | J148: 742.678029 | K148: 0 | L148: 87.196205 | M148: 0 | N148: 2056.387518 | O148: 0 | P148: 0 | Q148: 0 | R148: 0 | S148: 43.106292 | T148: 0 | U148: 0 | V148: 5347.950886 | W148: 5347.950886 | X148: 0
B149: Otras renovables | C149: 1388.417699 | D149: 57.833376 | E149: 271.442845 | F149: 1.626741 | G149: 32.430802 | H149: 9.565259 | I149: 83.494891 | J149: 265.550596 | K149: 263.332669 | L149: 190.729997 | M149: 0 | N149: 233.859795 | O149: 252.743776 | P149: 9.109402 | Q149: 150.125387 | R149: 0 | S149: 53.861952 | T149: 305.447179 | U149: 44.531423 | V149: 3614.103789 | W149: 3602.911789 | X149: 11.192
B150: Cogeneración | C150: 5274.82428 | D150: 2967.775543 | E150: 392.172133 | F150: 36.169351 | G150: 1590.502917 | H150: 0 | I150: 1165.282101 | J150: 1088.043923 | K150: 2333.151669 | L150: 5082.4916 | M150: 0 | N150: 53.094291 | O150: 2825.64776 | P150: 74.725204 | Q150: 704.239024 | R150: 0 | S150: 1688.406075 | T150: 903.281042 | U150: 1990.638419 | V150: =SUM(C150:U150) -> 28170.44533 | W150: 28134.27598 | X150: 36.169351
B151: Residuos no renovables | C151: 298.960653 | D151: 413.402689 | E151: 733.90796 | F151: 143.878668 | G151: 53.738847 | H151: 0 | I151: 36.8432765 | J151: 0 | K151: 0 | L151: 145.2090725 | M151: 0 | N151: 0 | O151: 178.464568 | P151: 0 | Q151: 70.7030845 | R151: 4.976986 | S151: 0 | T151: 0 | U151: 527.5821415 | V151: 2607.667946 | W151: 2458.812292 | X151: 148.855654
B152: Residuos renovables | C152: 0 | D152: 0 | E152: 0 | F152: 143.878668 | G152: 0 | H152: 0 | I152: 36.8432765 | J152: 0 | K152: 0 | L152: 141.3955805 | M152: 0 | N152: 0 | O152: 178.464568 | P152: 0 | Q152: 70.7030845 | R152: 4.976986 | S152: 0 | T152: 0 | U152: 300.7439235 | V152: 877.006087 | W152: 728.150433 | X152: 148.855654
B153: Generación neta | C153: =SUM(C139:C152) -> 37076.06707 | D153: =SUM(D139:D152) -> 16600.00024 | E153: 14007.98781 | F153: 4848.965122 | G153: 17107.28277 | H153: 8958.388428 | I153: 1951.344985 | J153: 21441.21512 | K153: 25360.17721 | L153: 44851.58404 | M153: 202.862 | N153: 21185.34195 | O153: 26368.63989 | P153: 2991.133919 | Q153: 1223.306461 | R153: 210.593165 | S153: 6512.647661 | T153: 5974.789182 | U153: 5772.80956 | V153: =SUM(V139:V152) -> 262645.1366 | W153: =V153-F153-H153-M153-R153 -> 248424.3279 | X153: 14220.80871
B154: Consumos en bombeo | C154: -223.799 | D154: -205.806 | E154: -21.576 | F154: 0 | G154: -1345.953 | H154: 0 | I154: -666.737 | J154: -67.9 | K154: -748.069 | L154: -165.142 | M154: 0 | N154: -35.523 | O154: -194.734 | P154: 0 | Q154: 0 | R154: 0 | S154: 0 | T154: 0 | U154: 0 | V154: =SUM(C154:U154) -> -3675.239 | W154: =V154-F154-H154-M154-R154 -> -3675.239 | X154: =F154+H154+M154+R154 -> 0
B155: Saldo Intercambios | C155: 3420.023305 | D155: -5782.625277 | E155: -3403.460946 | F155: 1179.300653 | G155: 11261.93235 | H155: 0 | I155: 3083.68772 | J155: -9660.376389 | K155: -10501.9384 | L155: 2965.850536 | M155: 0 | N155: -16082.27538 | O155: -6315.664838 | P155: -1277.239209 | Q155: 27544.33999 | R155: 0 | S155: 2886.859197 | T155: -918.2403623 | U155: 10770.40732 | V155: 9170.58027 | W155: 7991.279617 | X155: 1179.300653
B156: Demanda B.C | C156: =SUM(C153:C155) -> 40272.29138 | D156: =SUM(D153:D155) -> 10611.56896 | E156: 10582.95086 | F156: 6028.265775 | G156: 27023.26213 | H156: 8958.388428 | I156: 4368.295706 | J156: 11712.93873 | K156: 14110.1698 | L156: =SUM(L153:L155)-0.1 -> 47652.19257 | M156: =SUM(M153:M155) -> 202.862 | N156: 5067.543563 | O156: 19858.24105 | P156: 1713.89471 | Q156: 28767.64645 | R156: 210.593165 | S156: 9399.506858 | T156: 5056.54882 | U156: 16543.21688 | V156: =SUM(V153:V155) -> 268140.4778 | W156: 252740.3685 | X156: 15400.10937
B157: =CONCATENATE("Δ",B136,"/",B136-1) -> Δ2017/2016 | C157: =(C156/C129-1) -> 0.01681945249 | D157: 0.01663780246 | E157: 0.007075421618 | F157: 0.03361000911 | G157: 0.006351982735 | H157: 0.02068585846 | I157: 0.03896423317 | J157: 0.0001569695464 | K157: 0.005988985492 | L157: 0.01579972943 | M157: -0.03736428517 | N157: 0.0199083708 | O157: -0.005166915759 | P157: -0.01048417364 | Q157: -0.006941622883 | R157: 0.0107756113 | S157: 0.03826243738 | T157: 0.02182131835 | U157: 0.02065520238 | V157: 0.01136560049 | W157: 0.01056133857 | X157: 0.02475014598
B158: Renovable | C158: =C139+C145+C146+C147+C148+C149+C152 -> 13037.48343 | D158: =D139+D145+D146+D147+D148+D149+D152 -> 7259.130733 | E158: 2079.801 | F158: 271.635103 | G158: 3227.617096 | H158: 702.728428 | I158: 349.1548727 | J158: 10664.13344 | K158: 16285.25433 | L158: 7385.088157 | M158: 0 | N158: 4767.82459 | O158: 10761.64028 | P158: 1226.530715 | Q158: 448.3643521 | R158: 5.052179 | S158: 1377.446586 | T158: 3666.39714 | U158: 990.0049996 | V158: =V139+V145+V146+V147+V148+V149+V152 -> 84505.28744 | W158: =V158-F158-H158-M158-R158 -> 83525.87173 | X158: =F158+H158+M158+R158 -> 979.41571
B159: No renovable | C159: =C140+C141+C142+C143+C144+C150+C151 -> 24038.58364 | D159: =D140+D141+D142+D143+D144+D150+D151 -> 9340.869507 | E159: 11928.18681 | F159: 4577.330019 | G159: 13879.66568 | H159: 8255.66 | I159: 1602.190112 | J159: 10777.08168 | K159: 9074.922871 | L159: 37466.49588 | M159: 202.862 | N159: 16417.51736 | O159: 15606.99961 | P159: 1764.603204 | Q159: 774.9421085 | R159: 205.540986 | S159: 5135.201075 | T159: 2308.392042 | U159: 4782.80456 | V159: =V140+V141+V142+V143+V144+V150+V151 -> 178139.8491 | W159: =V159-F159-H159-M159-R159 -> 164898.4561 | X159: =F159+H159+M159+R159 -> 13241.393
B160: % Renovable s/total | C160: =(C158)/C$153 -> 0.3516414891 | D160: =(D158)/D$153 -> 0.4372970258 | E160: 0.1484725022 | F160: 0.05601919093 | G160: 0.1886691848 | H160: 0.07844362115 | I160: 0.1789303662 | J160: 0.4973660951 | K160: 0.6421585387 | L160: 0.1646561279 | M160: 0 | N160: 0.2250529919 | O160: 0.4081226913 | P160: 0.4100554333 | Q160: 0.3665184208 | R160: 0.02399023254 | S160: 0.2115033175 | T160: 0.6136446037 | U160: 0.1714944845 | V160: =(V158)/V$153 -> 0.3217470102 | W160: 0.3362225932 | X160: 0.06887201211
B161: % No renovable s/total | C161: =(C159)/C$153 -> 0.6483585109 | D161: =(D159)/D$153 -> 0.5627029742 | E161: 0.8515274978 | F161: 0.9439808091 | G161: 0.8113308152 | H161: 0.9215563788 | I161: 0.8210696338 | J161: 0.5026339049 | K161: 0.3578414613 | L161: 0.8353438721 | M161: 1 | N161: 0.7749470081 | O161: 0.5918773087 | P161: 0.5899445667 | Q161: 0.6334815792 | R161: 0.9760097675 | S161: 0.7884966825 | T161: 0.3863553963 | U161: 0.8285055155 | V161: =(V159)/V$153 -> 0.6782529898 | W161: 0.6637774068 | X161: 0.9311279879

Sheet Potencias (hidden)
B1: 2012
B2: CCAA | C2: Andalucía | D2: Aragón | E2: Asturias | F2: Baleares | G2: C. Valenciana | H2: Canarias | I2: Cantabria | J2: Castilla-La Mancha | K2: Castilla y León | L2: Cataluña | M2: Ceuta | N2: Extremadura | O2: Galicia | P2: La Rioja | Q2: Madrid | R2: Melilla | S2: Murcia | T2: Navarra | U2: País Vasco | V2: España | W2: PENINSULAR | X2: NO PENINSULAR
B3: Bombeo puro | C3: 582.88 | D3: 219.14 | E3: 0 | F3: 0 | G3: 633.95 | H3: 0 | I3: 360.6 | J3: 215 | K3: 0 | L3: 439.32 | M3: 0 | N3: 0 | O3: 0 | P3: 0 | Q3: 0 | R3: 0 | S3: 0 | T3: 0 | U3: 0 | V3: =SUM(C3:U3) -> 2450.89 | W3: =V3-F3-H3-M3-R3 -> 2450.89 | X3: =F3+H3+M3+R3 -> 0
B4: Hidráulica | C4: 595.951 | D4: 1328.137 | E4: 804.37 | F4: 0 | G4: 639.809 | H4: 1.263 | I4: 98.324 | J4: 651.258 | K4: 4393.5515 | L4: 1911.35825 | M4: 0 | N4: 2277.775 | O4: 3637.3372 | P4: 55.55073 | Q4: 101.451 | R4: 0 | S4: 35.628 | T4: 223.235 | U4: 172.8931 | V4: =SUM(C4:U4) -> 16927.89178 | W4: =V4-F4-H4-M4-R4 -> 16926.62878 | X4: =F4+H4+M4+R4 -> 1.263
B5: Nuclear | G5: 1063.94 | J5: 1003.41 | K5: 455.29 | L5: 3032.81 | N5: 2017.13 | V5: 7572.58 | W5: =V5-F5-H5-M5-R5 -> 7572.58 | X5: =F5+H5+M5+R5 -> 0
B6: Carbón | C6: 1989.4 | D6: 1198.12 | E6: 2364.59 | F6: 468.4 | J6: 502.64 | K6: 2595.23 | O6: 1945.49 | V6: 11571.79 | W6: 11103.39 | X6: 468.4
B7: Fuel / gas | F7: 739.4 | H7: 1693.67 | L7: 505.52 | M7: 90.82 | R7: 76.14 | V7: 3382.55 | W7: 782.52 | X7: 2600.03
B8: Ciclo combinado | C8: 5951.72 | D8: 1869.68 | E8: 854.17 | F8: 857.95 | G8: 2853.54 | H8: 864.2 | J8: 758.74 | L8: 4174.08 | O8: 1246.98 | P8: 784.7 | S8: 3263.71 | T8: 1222.32 | U8: 1968.07 | V8: 26633.88 | W8: 24911.73 | X8: 1722.15
B9: Hidroeólica | V9: 0 | W9: 0 | X9: 0
B10: Eólica | C10: 3249.997 | D10: 1792.55 | E10: 452.03 | F10: 3.6763 | G10: 1193.2446 | H10: 145.475 | I10: 35.307 | J10: 3799.9272 | K10: 5596.7845 | L10: 1274.51 | N10: 0 | O10: 3320.897 | P10: 448.18 | Q10: 0 | R10: 0 | S10: 263.286 | T10: 988.13875 | U10: 193.85 | V10: =SUM(C10:U10) -> 22757.85335 | W10: 22608.70205 | X10: 149.1513
B11: Solar fotovoltaica | C11: 840.56516 | D11: 164.19366 | E11: 0.77793 | F11: 77.50613 | G11: 343.22616 | H11: 161.15558 | I11: 2.04776 | J11: 903.85472 | K11: 483.70754 | L11: 244.03536 | N11: 532.69149 | O11: 14.93037 | P11: 85.0807 | Q11: 64.46753 | R11: 0.0579 | S11: 428.12928 | T11: 160.73786 | U11: 25.14571 | V11: =SUM(C11:U11) -> 4532.31084 | W11: 4293.59123 | X11: 238.71961
B12: Solar térmica | C12: 947.32 | D12: 0 | E12: 0 | F12: 0 | G12: 0 | H12: 0 | I12: 0 | J12: 349.4 | K12: 0 | L12: 22.5 | N12: 599.3 | O12: 0 | P12: 0 | Q12: 0 | R12: 0 | S12: 31.4 | T12: 0 | U12: 0 | V12: 1949.92 | W12: 1949.92 | X12: 0
B13: Otras renovables | C13: 289.488 | D13: 86.866 | E13: 85.57 | F13: 2.13 | G13: 33.393 | H13: 3.368 | I13: 12.862 | J13: 58.009 | K13: 27.46141 | L13: 66.678 | N13: 17.1 | O13: 93.852 | P13: 4.353 | Q13: 42.545 | R13: 0 | S13: 19.969 | T13: 46.362 | U13: 83.924 | V13: 973.93041 | W13: 968.43241 | X13: 5.498
B14: Cogeneración | C14: 973.198 | D14: 600.266 | E14: 152.121 | F14: 85.625 | G14: 646.6275 | H14: 33.268 | I14: 313.626 | J14: 462.114 | K14: 635.7355 | L14: 1323.6009 | N14: 19.4 | O14: 578.838 | P14: 46.316 | Q14: 329.9779 | R14: 2.168 | S14: 340.082 | T14: 173.741 | U14: 521.5064 | V14: 7238.2112 | W14: 7117.1502 | X14: 121.061
B15: Residuos renovables
B16: Residuos no renovables
B17: Potencia 2012 | C17: =SUM(C3:C16) -> 15420.51916 | D17: =SUM(D3:D16) -> 7258.95266 | E17: 4713.62893 | F17: 2234.68743 | G17: 7407.73026 | H17: 2902.39958 | I17: 822.76676 | J17: 8704.35292 | K17: 14187.76045 | L17: 12994.41251 | M17: 90.82 | N17: 5463.39649 | O17: 10838.32457 | P17: 1424.18043 | Q17: 538.44143 | R17: 78.3659 | S17: 4382.20428 | T17: 2814.53461 | U17: 2965.38921 | V17: =SUM(C17:U17) -> 105242.8676 | W17: =V17-F17-H17-M17-R17 -> 99936.59467 | X17: 5306.27291
B18: % Potencia s/total | C18: 0.1433541909 | D18: 0.06967598797 | E18: 0.04662897053 | F18: 0.02127908891 | G18: 0.07051907968 | H18: 0.02797701438 | I18: 0.007901206991 | J18: 0.08405880619 | K18: 0.1308358254 | L18: 0.1246040375 | M18: 0.0008821996189 | N18: 0.05012428768 | O18: 0.1032714744 | P18: 0.01384680813 | Q18: 0.005062208965 | R18: 0.0007612240378 | S18: 0.04103682157 | T18: 0.02724593152 | U18: 0.03093483562 | V18: 1 | W18: 0.949100473 | X18: 0.05089952695
B19: Δ2012/2011 | C19: 0.04515280899 | D19: 0.01200704206 | E19: -0.02067160569 | F19: 0.02006548614 | G19: 0.02086308628 | H19: 0.008147194903 | I19: 0.01116244062 | J19: 0.006708233195 | K19: 0.05351019198 | L19: 0.013447453 | M19: 0 | N19: 0.06034034059 | O19: 0.02162756705 | P19: -0.0005354598533 | Q19: 0.03810000441 | R19: 0 | S19: 0.03777588632 | T19: 0.004660019556 | U19: -0.06880984563 | V19: 0.02278520188 | W19: 0.0233172047 | X19: 0.01286794759
B21: 2013
B22: CCAA | C22: Andalucía | D22: Aragón | E22: Asturias | F22: Baleares | G22: C. Valenciana | H22: Canarias | I22: Cantabria | J22: Castilla-La Mancha | K22: Castilla y León | L22: Cataluña | M22: Ceuta | N22: Extremadura | O22: Galicia | P22: La Rioja | Q22: Madrid | R22: Melilla | S22: Murcia | T22: Navarra | U22: País Vasco | V22: España | W22: PENINSULAR | X22: NO PENINSULAR
B23: Bombeo puro | C23: 582.88 | D23: 219.14 | E23: 0 | F23: 0 | G23: 633.95 | H23: 0 | I23: 360.6 | J23: 215 | K23: 0 | L23: 439.32 | M23: 0 | N23: 0 | O23: 0 | P23: 0 | Q23: 0 | R23: 0 | S23: 0 | T23: 0 | U23: 0 | V23: =SUM(C23:U23) -> 2450.89 | W23: =V23-F23-H23-M23-R23 -> 2450.89 | X23: =F23+H23+M23+R23 -> 0
B24: Hidráulica | C24: 600.561 | D24: 1329.017 | E24: 804.37 | F24: 0 | G24: 639.809 | H24: 1.263 | I24: 98.324 | J24: 651.258 | K24: 4394.9545 | L24: 1910.95825 | M24: 0 | N24: 2277.775 | O24: 3666.5772 | P24: 55.55073 | Q24: 103.751 | R24: 0 | S24: 35.628 | T24: 243.235 | U24: 172.8931 | V24: =SUM(C24:U24) -> 16985.92478 | W24: =V24-F24-H24-M24-R24 -> 16984.66178 | X24: =F24+H24+M24+R24 -> 1.263
B25: Nuclear | C25: 0 | D25: 0 | E25: 0 | F25: 0 | G25: 1063.94 | H25: 0 | I25: 0 | J25: 1003.41 | K25: 455.29 | L25: 3032.81 | M25: 0 | N25: 2017.13 | O25: 0 | P25: 0 | Q25: 0 | R25: 0 | S25: 0 | T25: 0 | U25: 0 | V25: =SUM(C25:U25) -> 7572.58 | W25: 7572.58 | X25: =F25+H25+M25+R25 -> 0
B26: Carbón | C26: 1989.4 | D26: 1198.12 | E26: 2364.59 | F26: 468.4 | G26: 0 | H26: 0 | I26: 0 | J26: 502.64 | K26: 2595.23 | L26: 0 | M26: 0 | N26: 0 | O26: 1960.39 | P26: 0 | Q26: 0 | R26: 0 | S26: 0 | T26: 0 | U26: 0 | V26: 11078.77 | W26: 10610.37 | X26: 468.4
B27: Fuel / gas | C27: 0 | D27: 0 | E27: 0 | F27: 787.4 | G27: 0 | H27: 1536 | I27: 0 | J27: 0 | K27: 0 | L27: 505.52 | M27: 90.82 | N27: 0 | O27: 0 | P27: 0 | Q27: 0 | R27: 76.14 | S27: 0 | T27: 0 | U27: 0 | V27: 2995.88 | W27: 505.52 | X27: 2490.36
B28: Ciclo combinado | C28: 5951.72 | D28: 1869.68 | E28: 854.17 | F28: 857.95 | G28: 2853.54 | H28: 864.2 | I28: 0 | J28: 758.74 | K28: 0 | L28: 4174.08 | M28: 0 | N28: 0 | O28: 1246.98 | P28: 784.7 | Q28: 0 | R28: 0 | S28: 3263.71 | T28: 1222.32 | U28: 1968.07 | V28: 26669.86 | W28: 24947.71 | X28: 1722.15
B29: Hidroeólica | C29: 0 | D29: 0 | E29: 0 | F29: 0 | G29: 0 | H29: 0 | I29: 0 | J29: 0 | K29: 0 | L29: 0 | M29: 0 | N29: 0 | O29: 0 | P29: 0 | Q29: 0 | R29: 0 | S29: 0 | T29: 0 | U29: 0 | V29: 0 | W29: 0 | X29: 0
B30: Eólica | C30: 3324.497 | D30: 1797.05 | E30: 494.03 | F30: 3.6763 | G30: 1193.2446 | H30: 152.59 | I30: 35.307 | J30: 3799.9992 | K30: 5652.1845 | L30: 1283.51 | N30: 0 | O30: 3351.197 | P30: 448.18 | Q30: 0 | R30: 0 | S30: 263.286 | T30: 1016.63875 | U30: 193.85 | V30: 23009.24035 | W30: 22852.97405 | X30: 156.2663
B31: Solar fotovoltaica | C31: 864.96854 | D31: 167.04606 | E31: 0.77793 | F31: 77.67493 | G31: 346.32708 | H31: 164.19108 | I31: 2.04606 | J31: 919.32851 | K31: 489.75649 | L31: 260.05445 | N31: 553.73834 | O31: 15.99383 | P31: 85.4707 | Q31: 65.18803 | R31: 0.0579 | S31: 439.12198 | T31: 161.11356 | U31: 25.56861 | V31: 4638.42408 | W31: 4396.50017 | X31: 241.92391
B32: Solar térmica | C32: 997.2275 | D32: 0 | E32: 0 | F32: 0 | G32: 49.9 | H32: 0 | I32: 0 | J32: 349.4 | K32: 0 | L32: 22.5 | N32: 849 | O32: 0 | P32: 0 | Q32: 0 | R32: 0 | S32: 31.4 | T32: 0 | U32: 0 | V32: 2299.4275 | W32: 2299.4275 | X32: 0
B33: Otras renovables | C33: 290.903 | D33: 86.866 | E33: 86.569 | F33: 2.13 | G33: 26.089 | H33: 3.368 | I33: 12.862 | J33: 58.009 | K33: 27.52141 | L33: 74.775 | N33: 17.1 | O33: 65.939 | P33: 4.353 | Q33: 42.545 | R33: 0 | S33: 21.094 | T33: 46.362 | U33: 83.455 | V33: 949.94041 | W33: 944.44241 | X33: 5.498
B34: Cogeneración | C34: 931.648 | D34: 601.766 | E34: 156.069 | F34: 85.625 | G34: 650.6015 | H34: 33.268 | I34: 311.563 | J34: 458.467 | K34: 635.1665 | L34: 1319.5709 | N34: 19.4 | O34: 598.708 | P34: 46.316 | Q34: 326.5779 | R34: 2.168 | S34: 315.386 | T34: 172.7315 | U34: 513.9094 | V34: 7178.9417 | W34: 7057.8807 | X34: 121.061
B35: Residuos renovables
B36: Residuos no renovables
B37: =CONCATENATE("Potencia ",B21) -> Potencia 2013 | C37: =SUM(C23:C35) -> 15533.80504 | D37: 7268.68506 | E37: 4760.57593 | F37: 2282.85623 | G37: 7457.40118 | H37: 2754.88008 | I37: 820.70206 | J37: 8716.25171 | K37: 14250.1034 | L37: 13023.0986 | M37: 90.82 | N37: 5734.14334 | O37: 10905.78503 | P37: 1424.57043 | Q37: 538.06193 | R37: 78.3659 | S37: 4369.62598 | T37: 2862.40081 | U37: =SUM(U23:U35) -> 2957.74611 | V37: =SUM(C37:U37) -> 105829.8788 | W37: =V37-F37-H37-M37-R37 -> 100622.9566 | X37: 5206.92221
B38: % Potencia s/total | C38: =C37/$V37 -> 0.1467809017 | D38: =D37/$V37 -> 0.06868273063 | E38: 0.04498328811 | F38: 0.02157099919 | G38: 0.07046593328 | H38: 0.02603121265 | I38: 0.007754918263 | J38: 0.08236097222 | K38: 0.1346510415 | L38: 0.1230569169 | M38: 0.0008581697439 | N38: 0.05418265053 | O38: 0.1030501514 | P38: 0.01346094738 | Q38: 0.005084215687 | R38: 0.0007404893672 | S38: 0.04128915226 | T38: 0.02704718972 | U38: 0.0279481196 | V38: 1 | W38: =W37/$V37 -> 0.9507991291 | X38: =X37/$V37 -> 0.04920087095
B39: =CONCATENATE("Δ",B21,"/",B21-1) -> Δ2013/2012 | C39: =(C37/C17-1) -> 0.007346437485 | D39: 0.001340744382 | E39: 0.00995984213 | F39: 0.02155505032 | G39: 0.00670528195 | H39: -0.05082673696 | I39: -0.002509459668 | J39: 0.001366993056 | K39: 0.004394136074 | L39: 0.002207571137 | M39: 0 | N39: 0.04955650766 | O39: 0.006224251688 | P39: 0.000273841707 | Q39: -0.000704812035 | R39: 0 | S39: -0.002870313476 | T39: 0.01700679033 | U39: -0.002577435695 | V39: 0.005577681923 | W39: 0.006867974062 | X39: -0.01872325485
B41: 2014
B42: CCAA | C42: Andalucía | D42: Aragón | E42: Asturias | F42: Baleares | G42: C. Valenciana | H42: Canarias | I42: Cantabria | J42: Castilla-La Mancha | K42: Castilla y León | L42: Cataluña | M42: Ceuta | N42: Extremadura | O42: Galicia | P42: La Rioja | Q42: Madrid | R42: Melilla | S42: Murcia | T42: Navarra | U42: País Vasco | V42: España | W42: PENINSULAR | X42: NO PENINSULAR
B43: Bombeo puro | C43: 582.88 | D43: 219.14 | E43: 0 | F43: 0 | G43: 633.95 | H43: 0 | I43: 360.6 | J43: 215 | K43: 0 | L43: 439.32 | M43: 0 | N43: 0 | O43: 0 | P43: 0 | Q43: 0 | R43: 0 | S43: 0 | T43: 0 | U43: 0 | V43: =SUM(C43:U43) -> 2450.89 | W43: =V43-F43-H43-M43-R43 -> 2450.89 | X43: =F43+H43+M43+R43 -> 0
B44: Hidráulica | C44: 600.561 | D44: 1329.017 | E44: 804.37 | F44: 0 | G44: 639.809 | H44: 1.263 | I44: 98.324 | J44: 651.258 | K44: 4394.9545 | L44: 1910.95825 | M44: 0 | N44: 2277.775 | O44: 3667.1972 | P44: 55.55073 | Q44: 109.361 | R44: 0 | S44: 35.628 | T44: 243.235 | U44: 172.8931 | V44: =SUM(C44:U44) -> 16992.15478 | W44: =V44-F44-H44-M44-R44 -> 16990.89178 | X44: =F44+H44+M44+R44 -> 1.263
B45: Nuclear | C45: 0 | D45: 0 | E45: 0 | F45: 0 | G45: 1063.94 | H45: 0 | I45: 0 | J45: 1003.41 | K45: 455.29 | L45: 3032.81 | M45: 0 | N45: 2017.13 | O45: 0 | P45: 0 | Q45: 0 | R45: 0 | S45: 0 | T45: 0 | U45: 0 | V45: =SUM(C45:U45) -> 7572.58 | W45: 7572.58 | X45: =F45+H45+M45+R45 -> 0
B46: Carbón | C46: 1989.4 | D46: 1055.77 | E46: 2364.59 | F46: 468.4 | G46: 0 | H46: 0 | I46: 0 | J46: 502.64 | K46: 2595.23 | L46: 0 | M46: 0 | N46: 0 | O46: 1960.39 | P46: 0 | Q46: 0 | R46: 0 | S46: 0 | T46: 0 | U46: 0 | V46: 10936.42 | W46: 10468.02 | X46: 468.4
B47: Fuel / gas | C47: 0 | D47: 0 | E47: 0 | F47: 787.4 | G47: 0 | H47: 1535.72 | I47: 0 | J47: 0 | K47: 0 | L47: 505.52 | M47: 90.82 | N47: 0 | O47: 0 | P47: 0 | Q47: 0 | R47: 76.14 | S47: 0 | T47: 0 | U47: 0 | V47: 2995.6 | W47: 505.52 | X47: 2490.08
B48: Ciclo combinado | C48: 5951.72 | D48: 1869.68 | E48: 854.17 | F48: 857.95 | G48: 2853.54 | H48: 864.2 | I48: 0 | J48: 758.74 | K48: 0 | L48: 4174.08 | M48: 0 | N48: 0 | O48: 1246.98 | P48: 784.7 | Q48: 0 | R48: 0 | S48: 3263.71 | T48: 1222.32 | U48: 1968.07 | V48: 26669.86 | W48: 24947.71 | X48: 1722.15
B49: Hidroeólica | C49: 0 | D49: 0 | E49: 0 | F49: 0 | G49: 0 | H49: 11.39 | I49: 0 | J49: 0 | K49: 0 | L49: 0 | M49: 0 | N49: 0 | O49: 0 | P49: 0 | Q49: 0 | R49: 0 | S49: 0 | T49: 0 | U49: 0 | V49: 11.39 | W49: 0 | X49: 11.39
B50: Eólica | C50: 3324.5075 | D50: 1815.51 | E50: 494.03 | F50: 3.6763 | G50: 1193.2446 | H50: 152.59 | I50: 35.307 | J50: 3799.9992 | K50: 5652.1845 | L50: 1283.51 | M50: 0 | N50: 0 | O50: 3351.197 | P50: 448.18 | Q50: 0 | R50: 0 | S50: 263.286 | T50: 1016.63875 | U50: 193.85 | V50: 23027.71085 | W50: 22871.44455 | X50: 156.2663
B51: Solar fotovoltaica | C51: 865.78927 | D51: 167.24526 | E51: 0.77793 | F51: 77.73383 | G51: 346.47007 | H51: 165.24328 | I51: 2.04726 | J51: 919.39996 | K51: 492.75971 | L51: 260.9468 | M51: 0 | N51: 553.73834 | O51: 16.19383 | P51: 85.4707 | Q51: 66.00003 | R51: 0.0579 | S51: 439.12328 | T51: 161.11356 | U51: 25.58861 | V51: 4645.69962 | W51: 4402.66461 | X51: 243.03501
B52: Solar térmica | C52: 997.2275 | D52: 0 | E52: 0 | F52: 0 | G52: 49.9 | H52: 0 | I52: 0 | J52: 349.4 | K52: 0 | L52: 22.5 | M52: 0 | N52: 849 | O52: 0 | P52: 0 | Q52: 0 | R52: 0 | S52: 31.4 | T52: 0 | U52: 0 | V52: 2299.4275 | W52: 2299.4275 | X52: 0
B53: Otras renovables | C53: 290.903 | D53: 86.866 | E53: 86.569 | F53: 2.13 | G53: 26.089 | H53: 3.368 | I53: 12.862 | J53: 58.009 | K53: 44.54541 | L53: 75.274 | M53: 0 | N53: 37.1 | O53: 65.939 | P53: 4.353 | Q53: 42.545 | R53: 0 | S53: 21.094 | T53: 46.362 | U53: 83.455 | V53: 987.46341 | W53: 981.96541 | X53: 5.498
B54: Cogeneración | C54: 931.6645 | D54: 598.829 | E54: 156.069 | F54: 85.625 | G54: 650.6015 | H54: 33.268 | I54: 311.563 | J54: 451.437 | K54: 637.2745 | L54: 1319.5709 | M54: 0 | N54: 19.4 | O54: 598.708 | P54: 46.316 | Q54: 326.5779 | R54: 2.168 | S54: 332.586 | T54: 172.7315 | U54: 494.4734 | V54: 7168.8632 | W54: 7047.8022 | X54: 121.061
B55: Residuos renovables
B56: Residuos no renovables
B57: =CONCATENATE("Potencia ",B41) -> Potencia 2014 | C57: =SUM(C43:C56) -> 15534.65277 | D57: =SUM(D43:D56) -> 7142.05726 | E57: 4760.57593 | F57: 2282.91513 | G57: 7457.54417 | H57: 2767.04228 | I57: 820.70326 | J57: 8709.29316 | K57: 14272.23862 | L57: 13024.48995 | M57: 90.82 | N57: 5754.14334 | O57: 10906.60503 | P57: 1424.57043 | Q57: 544.48393 | R57: 78.3659 | S57: 4386.82728 | T57: 2862.40081 | U57: 2938.33011 | V57: =SUM(C57:U57) -> 105758.0594 | W57: =V57-F57-H57-M57-R57 -> 100538.9161 | X57: 5219.14331
B58: % Potencia s/total | C58: =C57/$V57 -> 0.1468885952 | D58: =D57/$V57 -> 0.06753203778 | E58: 0.04501383591 | F58: 0.02158620481 | G58: 0.07051513819 | H58: 0.02616389046 | I58: 0.007760195913 | J58: 0.08235110603 | K58: 0.1349517825 | L58: 0.1231536398 | M58: 0.0008587525201 | N58: 0.05440855642 | O58: 0.1031278854 | P58: 0.0134700886 | Q58: 0.005148391842 | R58: 0.0007409922277 | S58: 0.04147983905 | T58: 0.02706555725 | U58: 0.0277835101 | V58: 1 | W58: =W57/$V57 -> 0.95065016 | X58: =X57/$V57 -> 0.04934984002
B59: =CONCATENATE("Δ",B41,"/",B41-1) -> Δ2014/2013 | C59: =(C57/C37-1) -> 5.457323546e-05 | D59: -0.01742100517 | E59: 0 | F59: 2.580101157e-05 | G59: 1.917424e-05 | H59: 0.004414783819 | I59: 1.462162773e-06 | J59: -0.0007983420203 | K59: 0.001553337501 | L59: 0.0001068370933 | M59: 0 | N59: 0.003487879325 | O59: 7.5189452e-05 | P59: 0 | Q59: 0.01193542907 | R59: 0 | S59: 0.003936561179 | T59: 0 | U59: -0.006564457962 | V59: -0.0006786312221 | W59: -0.0008352026499 | X59: 0.00234708711
B61: 2015 | G61: =G63-878 -> 633.95
B62: CCAA | C62: Andalucía | D62: Aragón | E62: Asturias | F62: Baleares | G62: C. Valenciana | H62: Canarias | I62: Cantabria | J62: Castilla-La Mancha | K62: Castilla y León | L62: Cataluña | M62: Ceuta | N62: Extremadura | O62: Galicia | P62: La Rioja | Q62: Madrid | R62: Melilla | S62: Murcia | T62: Navarra | U62: País Vasco | V62: España | W62: PENINSULAR | X62: NO PENINSULAR
B63: Bombeo puro | C63: 582.88 | D63: 219.14 | E63: 0 | F63: 0 | G63: 1511.95 | H63: 0 | I63: 360.6 | J63: 215 | K63: 0 | L63: 439.32 | M63: 0 | N63: 0 | O63: 0 | P63: 0 | Q63: 0 | R63: 0 | S63: 0 | T63: 0 | U63: 0 | V63: =SUM(C63:U63) -> 3328.89 | W63: =V63-F63-H63-M63-R63 -> 3328.89 | X63: =F63+H63+M63+R63 -> 0
B64: Hidráulica | C64: 592.153 | D64: 1333.8325 | E64: 804.7518 | F64: 0 | G64: 639.784 | H64: 2.02 | I64: 98.417 | J64: 649.967 | K64: 4400.8609 | L64: 1913.3928 | M64: 0 | N64: 2277.8123 | O64: 3698.59569 | P64: 52.20554 | Q64: 108.5166 | R64: 0 | S64: 33.158 | T64: 254.763 | U64: 170.6765 | V64: =SUM(C64:U64) -> 17030.90663 | W64: =V64-F64-H64-M64-R64 -> 17028.88663 | X64: =F64+H64+M64+R64 -> 2.02
B65: Nuclear | C65: 0 | D65: 0 | E65: 0 | F65: 0 | G65: 1063.94 | H65: 0 | I65: 0 | J65: 1003.41 | K65: 455.29 | L65: 3032.81 | M65: 0 | N65: 2017.13 | O65: 0 | P65: 0 | Q65: 0 | R65: 0 | S65: 0 | T65: 0 | U65: 0 | V65: =SUM(C65:U65) -> 7572.58 | W65: 7572.58 | X65: =F65+H65+M65+R65 -> 0
B66: Carbón | C66: 1989.4 | D66: 1055.77 | E66: 2364.59 | F66: 468.4 | G66: 0 | H66: 0 | I66: 0 | J66: 502.64 | K66: 2595.23 | L66: 0 | M66: 0 | N66: 0 | O66: 1960.39 | P66: 0 | Q66: 0 | R66: 0 | S66: 0 | T66: 0 | U66: 0 | V66: 10936.42 | W66: =V66-F66-H66-M66-R66 -> 10468.02 | X66: 468.4
B67: Fuel / gas | C67: 0 | D67: 0 | E67: 0 | F67: 787.4 | G67: 0 | H67: 1535.7 | I67: 0 | J67: 0 | K67: 0 | L67: 0 | M67: 90.82 | N67: 0 | O67: 0 | P67: 0 | Q67: 0 | R67: 76.14 | S67: 0 | T67: 0 | U67: 0 | V67: 2490.06 | W67: -1.847411113e-13 | X67: 2490.06
B68: Ciclo combinado | C68: 5951.72 | D68: 1869.68 | E68: 854.17 | F68: 857.95 | G68: 2853.54 | H68: 864.2 | I68: 0 | J68: 758.74 | K68: 0 | L68: 4174.08 | M68: 0 | N68: 0 | O68: 1246.98 | P68: 784.7 | Q68: 0 | R68: 0 | S68: 3263.71 | T68: 1222.32 | U68: 1968.07 | V68: 26669.86 | W68: 24947.71 | X68: 1722.15
B69: Hidroeólica | C69: 0 | D69: 0 | E69: 0 | F69: 0 | G69: 0 | H69: 11.39 | I69: 0 | J69: 0 | K69: 0 | L69: 0 | M69: 0 | N69: 0 | O69: 0 | P69: 0 | Q69: 0 | R69: 0 | S69: 0 | T69: 0 | U69: 0 | V69: 11.39 | W69: 0 | X69: 11.39
B70: Eólica | C70: 3327.1805 | D70: 1907.97 | E70: 518.45 | F70: 3.6475 | G70: 1205.24 | H70: 152.055 | I70: 35.3105 | J70: 3846.7592 | K70: 5557.502 | L70: 1267.01 | M70: 0 | N70: 0 | O70: 3333.677 | P70: 448.12 | Q70: 0 | R70: 0 | S70: 262.776 | T70: 986.92375 | U70: 153.2862 | V70: 23005.90765 | W70: 22850.20515 | X70: 155.7025
B71: Solar fotovoltaica | C71: 875.175827 | D71: 168.56774 | E71: 0.7992 | F71: 78.83146 | G71: 348.233355 | H71: 167.26167 | I71: 2.119485 | J71: 923.40259 | K71: 494.63796 | L71: 266.123885 | M71: 0 | N71: 563.982984 | O71: 16.48934 | P71: 85.60418 | Q71: 63.368492 | R71: 0.0597 | S71: 438.890986 | T71: 160.72225 | U71: 26.88384 | V71: 4681.154944 | W71: 4435.002114 | X71: 246.15283
B72: Solar térmica | C72: 1000.023 | D72: 0 | E72: 0 | F72: 0 | G72: 49.9 | H72: 0 | I72: 0 | J72: 349.4 | K72: 0 | L72: 24.29 | M72: 0 | N72: 849.1 | O72: 0 | P72: 0 | Q72: 0 | R72: 0 | S72: 31.4 | T72: 0 | U72: 0 | V72: 2304.113 | W72: 2304.113 | X72: 0
B73: Otras renovables | C73: 232.26 | D73: 42.335 | E73: 86.71 | F73: 2.13 | G73: 14.043 | H73: 3.696 | I73: 12.862 | J73: 88.277 | K73: 60.58 | L73: 63.382 | M73: 0 | N73: 35.8 | O73: 64.221 | P73: 4.295 | Q73: 42.584 | R73: 0 | S73: 15.524 | T73: 49.011 | U73: 53.972 | V73: 871.682 | W73: 865.856 | X73: 5.826
B74: Cogeneración | C74: 903.4805 | D74: 493.732 | E74: 81.517 | F74: 10.487 | G74: 521.24261 | H74: 0 | I74: 295.5995 | J74: 391.477 | K74: 605.98 | L74: 1105.2655 | M74: 0 | N74: 18.077 | O74: 550.8756 | P74: 43.103 | Q74: 244.6449 | R74: 0 | S74: 326.806 | T74: 167.2925 | U74: 422.6919 | V74: 6182.27201 | W74: 6171.78501 | X74: 10.487
B75: Residuos renovables | C75: 0 | D75: 0 | E75: 0 | F75: 37.4 | G75: 0 | H75: 0 | I75: 4.967 | J75: 0 | K75: 0 | L75: 27.1745 | M75: 0 | N75: 0 | O75: 25 | P75: 0 | Q75: 14.9 | R75: 1.084 | S75: 0 | T75: 0 | U75: 49.75 | V75: 160.2755 | W75: 121.7915 | X75: 38.484
B76: Residuos no renovables | C76: 95.473 | D76: 49.9 | E76: 74.387 | F76: 37.4 | G76: 63.088 | H76: 0 | I76: 4.967 | J76: 0.68 | K76: 0 | L76: 32.3745 | M76: 0 | N76: 0 | O76: 40.68 | P76: 0 | Q76: 14.9 | R76: 1.084 | S76: 9.68 | T76: 0 | U76: 83.458 | V76: 508.0715 | W76: 469.5875 | X76: 38.484
B77: =CONCATENATE("Potencia ",B61) -> Potencia 2015 | C77: =SUM(C63:C76) -> 15549.74583 | D77: =SUM(D63:D76) -> 7140.92724 | E77: 4785.375 | F77: 2283.64596 | G77: 8270.960965 | H77: 2736.32267 | I77: 814.842485 | J77: 8729.75279 | K77: 14170.08086 | L77: 12345.22318 | M77: 90.82 | N77: 5761.902284 | O77: 10936.90863 | P77: 1418.02772 | Q77: 488.913992 | R77: 78.3677 | S77: 4381.944986 | T77: 2841.0325 | U77: 2928.78844 | V77: =SUM(C77:U77) -> 105753.5832 | W77: =V77-F77-H77-M77-R77 -> 100564.4269 | X77: =F77+H77+M77+R77 -> 5189.15633
B78: % Potencia s/total | C78: =C77/$V77 -> 0.1470375315 | D78: =D77/$V77 -> 0.06752421073 | E78: 0.04525023979 | F78: 0.02159402916 | G78: 0.07820974677 | H78: 0.02587451495 | I78: 0.007705105209 | J78: 0.08254805675 | K78: 0.1339914963 | L78: 0.1167357437 | M78: 0.0008587888677 | N78: 0.05448422746 | O78: 0.1034187996 | P78: 0.01340879124 | Q78: 0.00462314351 | R78: 0.0007410406116 | S78: 0.04143542802 | T78: 0.02686464527 | U78: 0.02769446056 | V78: 1 | W78: =W77/$V77 -> 0.9509316264 | X78: =X77/$V77 -> 0.04906837358
B79: =CONCATENATE("Δ",B61,"/",B61-1) -> Δ2015/2014 | C79: =(C77/C57-1) -> 0.0009715735024 | D79: -0.0001582205181 | E79: 0.005209258368 | F79: 0.0003201301662 | G79: 0.1090730107 | H79: -0.01110196625 | I79: -0.007141162081 | J79: 0.002349172272 | K79: -0.007157795124 | L79: -0.05215304151 | M79: 0 | N79: 0.001348409927 | O79: 0.002778463135 | P79: -0.004592759938 | Q79: -0.1020598312 | R79: 2.296917409e-05 | S79: -0.001112944205 | T79: -0.00746517047 | U79: -0.003247310426 | V79: -4.232420704e-05 | W79: 0.0002537410885 | X79: -0.00574557513
B81: 2016
B82: CCAA | C82: Andalucía | D82: Aragón | E82: Asturias | F82: Baleares | G82: C. Valenciana | H82: Canarias | I82: Cantabria | J82: Castilla-La Mancha | K82: Castilla y León | L82: Cataluña | M82: Ceuta | N82: Extremadura | O82: Galicia | P82: La Rioja | Q82: Madrid | R82: Melilla | S82: Murcia | T82: Navarra | U82: País Vasco | V82: España | W82: PENINSULAR | X82: NO PENINSULAR
B83: Bombeo puro | C83: 582.88 | D83: 219.14 | E83: 0 | F83: 0 | G83: 1511.95 | H83: 0 | I83: 360.6 | J83: 215 | K83: 0 | L83: 439.32 | M83: 0 | N83: 0 | O83: 0 | P83: 0 | Q83: 0 | R83: 0 | S83: 0 | T83: 0 | U83: 0 | V83: =SUM(C83:U83) -> 3328.89 | W83: =V83-F83-H83-M83-R83 -> 3328.89 | X83: =F83+H83+M83+R83 -> 0
B84: Hidráulica | C84: 592.683 | D84: 1333.8325 | E84: 804.7518 | F84: 0 | G84: 639.784 | H84: 2.02 | I84: 98.417 | J84: 650.242 | K84: 4400.8609 | L84: 1913.4378 | M84: 0 | N84: 2277.8123 | O84: 3701.37569 | P84: 52.20554 | Q84: 108.5166 | R84: 0 | S84: 33.203 | T84: 254.763 | U84: 170.6765 | V84: =SUM(C84:U84) -> 17034.58163 | W84: =V84-F84-H84-M84-R84 -> 17032.56163 | X84: =F84+H84+M84+R84 -> 2.02
B85: Nuclear | C85: 0 | D85: 0 | E85: 0 | F85: 0 | G85: 1063.94 | H85: 0 | I85: 0 | J85: 1003.41 | K85: 455.29 | L85: 3032.81 | M85: 0 | N85: 2017.13 | O85: 0 | P85: 0 | Q85: 0 | R85: 0 | S85: 0 | T85: 0 | U85: 0 | V85: =SUM(C85:U85) -> 7572.58 | W85: 7572.58 | X85: =F85+H85+M85+R85 -> 0
B86: Carbón | C86: 1989.4 | D86: 1055.77 | E86: 2073.42 | F86: 468.4 | G86: 0 | H86: 0 | I86: 0 | J86: 0 | K86: 2456.89 | L86: 0 | M86: 0 | N86: 0 | O86: 1960.39 | P86: 0 | Q86: 0 | R86: 0 | S86: 0 | T86: 0 | U86: 0 | V86: 10004.27 | W86: =V86-F86-H86-M86-R86 -> 9535.87 | X86: 468.4
B87: Fuel / gas | C87: 0 | D87: 0 | E87: 0 | F87: 787.4 | G87: 0 | H87: 1535.7 | I87: 0 | J87: 0 | K87: 0 | L87: 0 | M87: 90.82 | N87: 0 | O87: 0 | P87: 0 | Q87: 0 | R87: 76.14 | S87: 0 | T87: 0 | U87: 0 | V87: 2490.06 | W87: -1.847411113e-13 | X87: 2490.06
B88: Ciclo combinado | C88: 5951.72 | D88: 1869.68 | E88: 854.17 | F88: 857.95 | G88: 2853.54 | H88: 864.2 | I88: 0 | J88: 758.74 | K88: 0 | L88: 4174.08 | M88: 0 | N88: 0 | O88: 1246.98 | P88: 784.7 | Q88: 0 | R88: 0 | S88: 3263.71 | T88: 1222.32 | U88: 1968.07 | V88: 26669.86 | W88: 24947.71 | X88: 1722.15
B89: Hidroeólica | C89: 0 | D89: 0 | E89: 0 | F89: 0 | G89: 0 | H89: 11.39 | I89: 0 | J89: 0 | K89: 0 | L89: 0 | M89: 0 | N89: 0 | O89: 0 | P89: 0 | Q89: 0 | R89: 0 | S89: 0 | T89: 0 | U89: 0 | V89: 11.39 | W89: 0 | X89: 11.39
B90: Eólica | C90: 3327.1805 | D90: 1907.97 | E90: 518.45 | F90: 3.6475 | G90: 1205.24 | H90: 152.055 | I90: 35.3105 | J90: 3846.7592 | K90: 5591.002 | L90: 1268.81 | M90: 0 | N90: 0 | O90: 3336.077 | P90: 448.12 | Q90: 0 | R90: 0 | S90: 262.776 | T90: 995.15875 | U90: 153.3862 | V90: 23051.94265 | W90: 22896.24015 | X90: 155.7025
B91: Solar fotovoltaica | C91: 877.836447 | D91: 168.60274 | E91: 0.7992 | F91: 79.489215 | G91: 348.25408 | H91: 167.26667 | I91: 2.119485 | J91: 923.41945 | K91: 494.787605 | L91: 266.531985 | M91: 0 | N91: 563.982984 | O91: 16.66678 | P91: 85.60418 | Q91: 63.607282 | R91: 0.0597 | S91: 438.890986 | T91: 160.84009 | U91: 26.90984 | V91: 4685.668719 | W91: 4438.853134 | X91: 246.815585
B92: Solar térmica | C92: 1000.023 | D92: 0 | E92: 0 | F92: 0 | G92: 49.9 | H92: 0 | I92: 0 | J92: 349.4 | K92: 0 | L92: 24.29 | M92: 0 | N92: 849.1 | O92: 0 | P92: 0 | Q92: 0 | R92: 0 | S92: 31.4 | T92: 0 | U92: 0 | V92: 2304.113 | W92: 2304.113 | X92: 0
B93: Otras renovables | C93: 233.644 | D93: 42.335 | E93: 86.71 | F93: 2.13 | G93: 12.393 | H93: 3.696 | I93: 12.862 | J93: 88.277 | K93: 46.895 | L93: 63.707 | M93: 0 | N93: 35.8 | O93: 64.221 | P93: 3.78 | Q93: 42.584 | R93: 0 | S93: 15.472 | T93: 49.011 | U93: 53.972 | V93: 857.489 | W93: 851.663 | X93: 5.826
B94: Cogeneración | C94: 897.4405 | D94: 490.937 | E94: 74.906 | F94: 10.487 | G94: 501.85561 | H94: 0 | I94: 295.5995 | J94: 381.485 | K94: 596.421 | L94: 1061.6035 | M94: 0 | N94: 18.077 | O94: 516.5286 | P94: 41.713 | Q94: 212.0169 | R94: 0 | S94: 314.102 | T94: 160.2285 | U94: 420.3629 | V94: 5993.76401 | W94: 5983.27701 | X94: 10.487
B95: Residuos renovables | C95: 0 | D95: 0 | E95: 0 | F95: 37.4 | G95: 0 | H95: 0 | I95: 4.967 | J95: 0 | K95: 0 | L95: 27.1745 | M95: 0 | N95: 0 | O95: 25 | P95: 0 | Q95: 16.15 | R95: 1.084 | S95: 0 | T95: 0 | U95: 49.75 | V95: 161.5255 | W95: 123.0415 | X95: 38.484
B96: Residuos no renovables | C96: 83.541 | D96: 49.9 | E96: 74.387 | F96: 37.4 | G96: 63.088 | H96: 0 | I96: 4.967 | J96: 0.68 | K96: 0 | L96: 32.3745 | M96: 0 | N96: 0 | O96: 40.68 | P96: 0 | Q96: 16.15 | R96: 1.084 | S96: 9.68 | T96: 0 | U96: 83.458 | V96: 497.3895 | W96: 458.9055 | X96: 38.484
B97: =CONCATENATE("Potencia ",B81) -> Potencia 2016 | C97: =SUM(C83:C96) -> 15536.34845 | D97: =SUM(D83:D96) -> 7138.16724 | E97: 4487.594 | F97: 2284.303715 | G97: 8249.94469 | H97: 2736.32767 | I97: 814.842485 | J97: 8217.41265 | K97: 14042.14651 | L97: 12304.13928 | M97: 90.82 | N97: 5761.902284 | O97: 10907.91907 | P97: 1416.12272 | Q97: 459.024782 | R97: 78.3677 | S97: 4369.233986 | T97: 2842.32134 | U97: 2926.58544 | V97: =SUM(C97:U97) -> 104663.524 | W97: =V97-F97-H97-M97-R97 -> 99473.70492 | X97: =F97+H97+M97+R97 -> 5189.819085
B98: % Potencia s/total | C98: =C97/$V97 -> 0.1484409071 | D98: =D97/$V97 -> 0.06820109783 | E98: 0.04287638929 | F98: 0.0218252131 | G98: 0.07882349432 | H98: 0.02614404298 | I98: 0.007785353042 | J98: 0.07851266932 | K98: 0.1341646637 | L98: 0.1175590006 | M98: 0.0008677330604 | N98: 0.05505167477 | O98: 0.1042189165 | P98: 0.01353024116 | Q98: 0.004385718772 | R98: 0.000748758469 | S98: 0.04174552718 | T98: 0.02715675176 | U98: 0.02796184695 | V98: 1 | W98: =W97/$V97 -> 0.9504142524 | X98: =X97/$V97 -> 0.04958574761
B99: =CONCATENATE("Δ",B81,"/",B81-1) -> Δ2016/2015 | C99: =(C97/C77-1) -> -0.0008615819287 | D99: -0.0003865044282 | E99: -0.06222730716 | F99: 0.0002880284473 | G99: -0.002540971368 | H99: 1.827269881e-06 | I99: 0 | J99: -0.05868896317 | K99: -0.009028484471 | L99: -0.003327918773 | M99: 0 | N99: 0 | O99: -0.002650617371 | P99: -0.001343415205 | Q99: -0.0611338814 | R99: 0 | S99: -0.002900766678 | T99: 0.0004536519734 | U99: -0.0007521881642 | V99: -0.01030753939 | W99: -0.01084600205 | X99: 0.0001277192202
B101: 2017
B102: CCAA | C102: Andalucía | D102: Aragón | E102: Asturias | F102: Baleares | G102: C. Valenciana | H102: Canarias | I102: Cantabria | J102: Castilla-La Mancha | K102: Castilla y León | L102: Cataluña | M102: Ceuta | N102: Extremadura | O102: Galicia | P102: La Rioja | Q102: Madrid | R102: Melilla | S102: Murcia | T102: Navarra | U102: País Vasco | V102: España | W102: PENINSULAR | X102: NO PENINSULAR
B103: Bombeo puro | C103: 582.88 | D103: 219.14 | E103: 0 | F103: 0 | G103: 1511.95 | H103: 0 | I103: 360.6 | J103: 215 | K103: 0 | L103: 439.32 | M103: 0 | N103: 0 | O103: 0 | P103: 0 | Q103: 0 | R103: 0 | S103: 0 | T103: 0 | U103: 0 | V103: =SUM(C103:U103) -> 3328.89 | W103: =V103-F103-H103-M103-R103 -> 3328.89 | X103: =F103+H103+M103+R103 -> 0
B104: Hidráulica | C104: 589.574 | D104: 1333.7075 | E104: 804.7518 | F104: 0 | G104: 639.784 | H104: 2.02 | I104: 98.417 | J104: 650.242 | K104: 4401.1029 | L104: 1913.0778 | M104: 0 | N104: 2277.8123 | O104: 3701.37569 | P104: 52.20554 | Q104: 108.5166 | R104: 0 | S104: 33.568 | T104: 254.763 | U104: 170.6765 | V104: =SUM(C104:U104) -> 17031.59463 | W104: =V104-F104-H104-M104-R104 -> 17029.57463 | X104: =F104+H104+M104+R104 -> 2.02
B105: Nuclear | C105: 0 | D105: 0 | E105: 0 | F105: 0 | G105: 1063.94 | H105: 0 | I105: 0 | J105: 1003.41 | K105: 0 | L105: 3032.81 | M105: 0 | N105: 2017.13 | O105: 0 | P105: 0 | Q105: 0 | R105: 0 | S105: 0 | T105: 0 | U105: 0 | V105: =SUM(C105:U105) -> 7117.29 | W105: =V105-F105-H105-M105-R105 -> 7117.29 | X105: =F105+H105+M105+R105 -> 0
B106: Carbón | C106: 1989.4 | D106: 1055.77 | E106: 2073.42 | F106: 468.4 | G106: 0 | H106: 0 | I106: 0 | J106: 0 | K106: 2456.89 | L106: 0 | M106: 0 | N106: 0 | O106: 1960.39 | P106: 0 | Q106: 0 | R106: 0 | S106: 0 | T106: 0 | U106: 0 | V106: 10004.27 | W106: 9535.87 | X106: 468.4
B107: Fuel / gas | C107: 0 | D107: 0 | E107: 0 | F107: 787.4 | G107: 0 | H107: 1535.7 | I107: 0 | J107: 0 | K107: 0 | L107: 0 | M107: 90.82 | N107: 0 | O107: 0 | P107: 0 | Q107: 0 | R107: 76.14 | S107: 0 | T107: 0 | U107: 0 | V107: 2490.06 | W107: -1.847411113e-13 | X107: 2490.06
B108: Ciclo combinado | C108: 5951.72 | D108: 1869.68 | E108: 854.17 | F108: 857.95 | G108: 2853.54 | H108: 864.2 | I108: 0 | J108: 758.74 | K108: 0 | L108: 4174.08 | M108: 0 | N108: 0 | O108: 1246.98 | P108: 784.7 | Q108: 0 | R108: 0 | S108: 3263.71 | T108: 1222.32 | U108: 1968.07 | V108: 26669.86 | W108: 24947.71 | X108: 1722.15
B109: Hidroeólica | C109: 0 | D109: 0 | E109: 0 | F109: 0 | G109: 0 | H109: 11.39 | I109: 0 | J109: 0 | K109: 0 | L109: 0 | M109: 0 | N109: 0 | O109: 0 | P109: 0 | Q109: 0 | R109: 0 | S109: 0 | T109: 0 | U109: 0 | V109: 11.39 | W109: 0 | X109: 11.39
B110: Eólica | C110: 3327.1805 | D110: 1925.97 | E110: 518.45 | F110: 3.6475 | G110: 1205.24 | H110: 206.9 | I110: 35.3105 | J110: 3846.9842 | K110: 5591.002 | L110: 1268.81 | M110: 0 | N110: 0 | O110: 3343.152 | P110: 448.12 | Q110: 0 | R110: 0 | S110: 262.77 | T110: 995.15875 | U110: 153.3848 | V110: 23132.08025 | W110: 22921.53275 | X110: 210.5475
B111: Solar fotovoltaica | C111: 878.256647 | D111: 168.67934 | E111: 0.7453 | F111: 80.057285 | G111: 348.21607 | H111: 167.22557 | I111: 2.193005 | J111: 924.83869 | K111: 495.10765 | L111: 266.248365 | M111: 0 | N111: 563.977984 | O111: 16.671415 | P111: 85.60298 | Q111: 63.537581 | R111: 0.0597 | S111: 437.544696 | T111: 160.83001 | U111: 26.81718 | V111: 4686.609468 | W111: =V111-F111-H111-M111-R111 -> 4439.266913 | X111: 247.342555
B112: Solar térmica | C112: 1000.023 | D112: 0 | E112: 0 | F112: 0 | G112: 49.9 | H112: 0 | I112: 0 | J112: 349.4 | K112: 0 | L112: 24.29 | M112: 0 | N112: 849.1 | O112: 0 | P112: 0 | Q112: 0 | R112: 0 | S112: 31.4 | T112: 0 | U112: 0 | V112: 2304.113 | W112: 2304.113 | X112: 0
B113: Otras renovables | C113: 229.929 | D113: 42.335 | E113: 86.71 | F113: 2.13 | G113: 12.893 | H113: 3.696 | I113: 12.862 | J113: 88.277 | K113: 46.895 | L113: 64.538 | M113: 0 | N113: 35.8 | O113: 65.821 | P113: 4.127 | Q113: 42.584 | R113: 0 | S113: 15.472 | T113: 50.111 | U113: 53.972 | V113: 858.152 | W113: 852.326 | X113: 5.826
B114: Cogeneración | C114: 849.7185 | D114: 478.227 | E114: 68.924 | F114: 10.487 | G114: 499.40561 | H114: 0 | I114: 295.5995 | J114: 354.219 | K114: 593.091 | L114: 1027.1405 | M114: 0 | N114: 18.077 | O114: 500.9056 | P114: 40.737 | Q114: 212.0519 | R114: 0 | S114: 314.102 | T114: 157.3805 | U114: 408.4079 | V114: 5828.47401 | W114: 5817.98701 | X114: 10.487
B115: Residuos renovables | C115: 0 | D115: 0 | E115: 0 | F115: 37.4 | G115: 0 | H115: 0 | I115: 4.967 | J115: 0 | K115: 0 | L115: 27.1745 | M115: 0 | N115: 0 | O115: 25 | P115: 0 | Q115: 16.15 | R115: 1.084 | S115: 0 | T115: 0 | U115: 49.75 | V115: =SUM(C115:U115) -> 161.5255 | W115: =V115-F115-H115-M115-R115 -> 123.0415 | X115: =F115+H115+M115+R115 -> 38.484
B116: Residuos no renovables | C116: 83.541 | D116: 49.9 | E116: 74.387 | F116: 37.4 | G116: 63.088 | H116: 0 | I116: 4.967 | J116: 0.68 | K116: 0 | L116: 32.3745 | M116: 0 | N116: 0 | O116: 40.68 | P116: 0 | Q116: 16.15 | R116: 1.084 | S116: 9.68 | T116: 0 | U116: 83.458 | V116: =SUM(C116:U116) -> 497.3895 | W116: =V116-F116-H116-M116-R116 -> 458.9055 | X116: =F116+H116+M116+R116 -> 38.484
B117: =CONCATENATE("Potencia ",B101) -> Potencia 2017 | C117: =SUM(C103:C116) -> 15482.22265 | D117: =SUM(D103:D116) -> 7143.40884 | E117: 4481.5581 | F117: 2284.871785 | G117: 8247.95668 | H117: 2791.13157 | I117: 814.916005 | J117: 8191.79089 | K117: 13584.08855 | L117: 12269.86367 | M117: 90.82 | N117: 5761.897284 | O117: 10900.97571 | P117: 1415.49252 | Q117: 458.990081 | R117: 78.3677 | S117: 4368.246696 | T117: 2840.56326 | U117: 2914.53638 | V117: =SUM(C117:U117) -> 104121.6984 | W117: =V117-F117-H117-M117-R117 -> 98876.5073 | X117: =F117+H117+M117+R117 -> 5245.191055
B118: % Potencia s/total | C118: =C117/$V117 -> 0.1486935278 | D118: =D117/$V117 -> 0.06860634193 | E118: =E117/$V117 -> 0.04304153861 | F118: 0.02194424237 | G118: 0.07921458073 | H118: 0.0268064353 | I118: 0.007826572346 | J118: 0.07867515628 | K118: 0.1304635707 | L118: 0.1178415629 | M118: 0.000872248546 | N118: 0.05533810315 | O118: 0.104694563 | P118: 0.01359459692 | Q118: 0.004408207782 | R118: 0.0007526548379 | S118: 0.04195327933 | T118: 0.02728118447 | U118: 0.02799163312 | V118: =V117/$V117 -> 1 | W118: =W117/$V117 -> 0.9496244189 | X118: =X117/$V117 -> 0.05037558105
B119: =CONCATENATE("Δ",B101,"/",B101-1) -> Δ2017/2016 | C119: =(C117/C97-1) -> -0.003483817332 | D119: =(D117/D97-1) -> 0.0007343061354 | E119: -0.00134501918 | F119: 0.0002486840941 | G119: -0.0002409725246 | H119: 0.02002826657 | I119: 9.022602694e-05 | J119: -0.003117983858 | K119: -0.03262022333 | L119: -0.002785698309 | M119: 0 | N119: -8.677689683e-07 | O119: -0.0006365435016 | P119: -0.000445017929 | Q119: -7.55972256e-05 | R119: 0 | S119: -0.0002259640942 | T119: -0.0006185366782 | U119: -0.004117105154 | V119: -0.005176833631 | W119: -0.006003572718 | X119: 0.01066934494

Sheet demandas (hidden)
A2: años | B2: datos | C2: Andalucía | D2: Aragón | E2: Asturias | F2: Baleares | G2: C. Valenciana | H2: Canarias | I2: Cantabria | J2: Castilla-La Mancha | K2: Castilla y León | L2: Cataluña | M2: Ceuta | N2: Extremadura | O2: Galicia | P2: La Rioja | Q2: Madrid | R2: Melilla | S2: Murcia | T2: Navarra | U2: País Vasco | V2: España | W2: PENINSULAR | X2: NO PENINSULAR | Z2: Resto nacional
A3: 2012 | B3: demanda | C3: =generacion_bruta!C21 -> 39708.86308 | D3: =generacion_bruta!D21 -> 10238.73926 | E3: =generacion_bruta!E21 -> 10339.42312 | F3: =generacion_bruta!F21 -> 5822.60154 | G3: =generacion_bruta!G21 -> 26476.47617 | H3: =generacion_bruta!H21 -> 8892.540459 | I3: =generacion_bruta!I21 -> 4399.511026 | J3: =generacion_bruta!J21 -> 12020.22903 | K3: =generacion_bruta!K21 -> 13729.50741 | L3: =generacion_bruta!L21 -> 47751.0666 | M3: =generacion_bruta!M21 -> 212.075 | N3: =generacion_bruta!N21 -> 4889.572184 | O3: =generacion_bruta!O21 -> 19650.68846 | P3: =generacion_bruta!P21 -> 1732.881941 | Q3: =generacion_bruta!Q21 -> 31001.38951 | R3: =generacion_bruta!R21 -> 217.353072 | S3: =generacion_bruta!S21 -> 8607.107441 | T3: =generacion_bruta!T21 -> 4798.828807 | U3: =generacion_bruta!U21 -> 16669.937 | V3: =SUM(C3:U3) -> 267158.7911 | W3: =V3-F3-H3-M3-R3 -> 252014.221 | X3: =F3+H3+M3+R3 -> 15144.57007 | Z3: =V3-Q3 -> 236157.4016
A4: 2012 | B4: =CONCATENATE("Δ",A3,"/",A3-1) -> Δ2012/2011 | C4: =generacion_bruta!C22 -> -0.00662539953 | D4: =generacion_bruta!D22 -> -0.01580229486 | E4: =generacion_bruta!E22 -> -0.0565772056 | F4: =generacion_bruta!F22 -> 0.01380968438 | G4: =generacion_bruta!G22 -> -0.02752761962 | H4: =generacion_bruta!H22 -> 0.002514592219 | I4: =generacion_bruta!I22 -> -0.01632979214 | J4: =generacion_bruta!J22 -> 0.001729340839 | K4: =generacion_bruta!K22 -> 0.01398570706 | L4: =generacion_bruta!L22 -> -0.009201677843 | M4: =generacion_bruta!M22 -> 0.04482281244 | N4: =generacion_bruta!N22 -> 0.03633475859 | O4: =generacion_bruta!O22 -> -0.00954018424 | P4: =generacion_bruta!P22 -> -0.008618162177 | Q4: =generacion_bruta!Q22 -> -0.01751874719 | R4: =generacion_bruta!R22 -> 0.01138394609 | S4: =generacion_bruta!S22 -> 0.0339367014 | T4: =generacion_bruta!T22 -> -0.02987157311 | U4: =generacion_bruta!U22 -> -0.05803702744 | V4: =generacion_bruta!V22 -> -0.01282204667
A5: 2013 | B5: demanda | C5: =generacion_bruta!C48 -> 38187.73775 | D5: =generacion_bruta!D48 -> 10104.85378 | E5: =generacion_bruta!E48 -> 10414.68943 | F5: =generacion_bruta!F48 -> 5673.537346 | G5: =generacion_bruta!G48 -> 25895.09406 | H5: =generacion_bruta!H48 -> 8623.683298 | I5: =generacion_bruta!I48 -> 4385.465202 | J5: =generacion_bruta!J48 -> 11630.98445 | K5: =generacion_bruta!K48 -> 13681.21204 | L5: =generacion_bruta!L48 -> 46273.06628 | M5: =generacion_bruta!M48 -> 201.959 | N5: =generacion_bruta!N48 -> 4866.329772 | O5: =generacion_bruta!O48 -> 19870.36523 | P5: =generacion_bruta!P48 -> 1704.234748 | Q5: =generacion_bruta!Q48 -> 29707.6145 | R5: =generacion_bruta!R48 -> 209.66712 | S5: =generacion_bruta!S48 -> 8314.669342 | T5: =generacion_bruta!T48 -> 4776.086574 | U5: =generacion_bruta!U48 -> 16556.00696 | V5: =SUM(C5:U5) -> 261077.2569 | W5: =V5-F5-H5-M5-R5 -> 246368.4101 | X5: =F5+H5+M5+R5 -> 14708.84676 | Z5: =V5-Q5 -> 231369.6424
A6: 2013 | B6: =CONCATENATE("Δ",A5,"/",A5-1) -> Δ2013/2012 | C6: =generacion_bruta!C49 -> -0.03830694746 | D6: =generacion_bruta!D49 -> -0.01307636451 | E6: =generacion_bruta!E49 -> 0.007279546242 | F6: =generacion_bruta!F49 -> -0.02560096084 | G6: =generacion_bruta!G49 -> -0.02195843994 | H6: =generacion_bruta!H49 -> -0.03023401043 | I6: =generacion_bruta!I49 -> -0.00319258771 | J6: =generacion_bruta!J49 -> -0.0323824595 | K6: =generacion_bruta!K49 -> -0.003517632808 | L6: =generacion_bruta!L49 -> -0.03095219489 | M6: =generacion_bruta!M49 -> -0.04770010609 | N6: =generacion_bruta!N49 -> -0.004753465434 | O6: =generacion_bruta!O49 -> 0.01117908762 | P6: =generacion_bruta!P49 -> -0.01653153182 | Q6: =generacion_bruta!Q49 -> -0.04173280698 | R6: =generacion_bruta!R49 -> -0.0353615982 | S6: =generacion_bruta!S49 -> -0.03397635047 | T6: =generacion_bruta!T49 -> -0.004739121568 | U6: =generacion_bruta!U49 -> -0.006834461226 | V6: =generacion_bruta!V49 -> -0.02276374363
A7: 2014 | B7: demanda | C7: =generacion_bruta!C75 -> 37538.08093 | D7: =generacion_bruta!D75 -> 10089.684 | E7: =generacion_bruta!E75 -> 10312.64725 | F7: =generacion_bruta!F75 -> 5585.426861 | G7: =generacion_bruta!G75 -> 25885.87139 | H7: =generacion_bruta!H75 -> 8579.968659 | I7: =generacion_bruta!I75 -> 4321.61151 | J7: =generacion_bruta!J75 -> 11650.85579 | K7: =generacion_bruta!K75 -> 13556.98558 | L7: =generacion_bruta!L75 -> 45622.29095 | M7: =generacion_bruta!M75 -> 212.253 | N7: =generacion_bruta!N75 -> 4637.777792 | O7: =generacion_bruta!O75 -> 19748.98903 | P7: =generacion_bruta!P75 -> 1690.385009 | Q7: =generacion_bruta!Q75 -> 28447.6183 | R7: =generacion_bruta!R75 -> 209.863147 | S7: =generacion_bruta!S75 -> 8468.668156 | T7: =generacion_bruta!T75 -> 4779.990057 | U7: =generacion_bruta!U75 -> 16792.37089 | V7: =SUM(C7:U7) -> 258131.3383 | W7: =V7-F7-H7-M7-R7 -> 243543.8266 | X7: =F7+H7+M7+R7 -> 14587.51167 | Z7: =V7-Q7 -> 229683.72
A8: 2014 | B8: =CONCATENATE("Δ",A7,"/",A7-1) -> Δ2014/2013 | C8: =generacion_bruta!C76 -> -0.01701218393 | D8: =generacion_bruta!D76 -> -0.001501236677 | E8: =generacion_bruta!E76 -> -0.009797909077 | F8: =generacion_bruta!F76 -> -0.01553007932 | G8: =generacion_bruta!G76 -> -0.0003561548871 | H8: =generacion_bruta!H76 -> -0.005069137802 | I8: =generacion_bruta!I76 -> -0.01456030053 | J8: =generacion_bruta!J76 -> 0.001708483202 | K8: =generacion_bruta!K76 -> -0.009080077265 | L8: =generacion_bruta!L76 -> -0.01406380373 | M8: =generacion_bruta!M76 -> 0.05097074159 | N8: =generacion_bruta!N76 -> -0.04696598693 | O8: =generacion_bruta!O76 -> -0.00610840291 | P8: =generacion_bruta!P76 -> -0.008126661255 | Q8: =generacion_bruta!Q76 -> -0.04241324066 | R8: =generacion_bruta!R76 -> 0.0009349439244 | S8: =generacion_bruta!S76 -> 0.01852133955 | T8: =generacion_bruta!T76 -> 0.000817297245 | U8: =generacion_bruta!U76 -> 0.01427662634 | V8: =generacion_bruta!V76 -> -0.01128370431
A9: 2015 | B9: demanda | C9: =generacion_bruta!C102 -> 38660.47861 | D9: =generacion_bruta!D102 -> 10301.00592 | E9: =generacion_bruta!E102 -> 10467.80608 | F9: =generacion_bruta!F102 -> 5796.417939 | G9: =generacion_bruta!G102 -> 26745.56468 | H9: =generacion_bruta!H102 -> 8669.37689 | I9: =generacion_bruta!I102 -> 4247.892238 | J9: =generacion_bruta!J102 -> 11570.99265 | K9: =generacion_bruta!K102 -> 13864.63565 | L9: =generacion_bruta!L102 -> 46647.08387 | M9: =generacion_bruta!M102 -> 205.438 | N9: =generacion_bruta!N102 -> 4835.611856 | O9: =generacion_bruta!O102 -> 19718.19707 | P9: =generacion_bruta!P102 -> 1725.117343 | Q9: =generacion_bruta!Q102 -> 28873.94439 | R9: =generacion_bruta!R102 -> 213.485818 | S9: =generacion_bruta!S102 -> 8920.197421 | T9: =generacion_bruta!T102 -> 4843.122513 | U9: =generacion_bruta!U102 -> 16976.66416 | V9: =SUM(C9:U9) -> 263283.0331 | W9: =V9-F9-H9-M9-R9 -> 248398.3145 | X9: =F9+H9+M9+R9 -> 14884.71865 | Z9: =V9-Q9 -> 234409.0887
A10: 2015 | B10: =CONCATENATE("Δ",A9,"/",A9-1) -> Δ2015/2014 | C10: =generacion_bruta!C103 -> 0.02990024135 | D10: =generacion_bruta!D103 -> 0.0209443546 | E10: =generacion_bruta!E103 -> 0.01504548953 | F10: =generacion_bruta!F103 -> 0.03777528258 | G10: =generacion_bruta!G103 -> 0.03321090799 | H10: =generacion_bruta!H103 -> 0.01042057781 | I10: =generacion_bruta!I103 -> -0.01705828299 | J10: =generacion_bruta!J103 -> -0.006854701559 | K10: =generacion_bruta!K103 -> 0.02269310326 | L10: =generacion_bruta!L103 -> 0.02246254835 | M10: =generacion_bruta!M103 -> -0.03210790896 | N10: =generacion_bruta!N103 -> 0.04265708123 | O10: =generacion_bruta!O103 -> -0.001559166633 | P10: =generacion_bruta!P103 -> 0.02054699581 | Q10: =generacion_bruta!Q103 -> 0.01498635433 | R10: =generacion_bruta!R103 -> 0.01726206364 | S10: =generacion_bruta!S103 -> 0.053317624 | T10: =generacion_bruta!T103 -> 0.01320765424 | U10: =generacion_bruta!U103 -> 0.01097482162 | V10: =generacion_bruta!V103 -> 0.01995764957
A11: 2016 | B11: demanda | C11: =generacion_bruta!C129 -> 39606.13782 | D11: =generacion_bruta!D129 -> 10437.90516 | E11: =generacion_bruta!E129 -> 10508.5981 | F11: =generacion_bruta!F129 -> 5832.244001 | G11: =generacion_bruta!G129 -> 26852.69428 | H11: =generacion_bruta!H129 -> 8776.832121 | I11: =generacion_bruta!I129 -> 4204.47169 | J11: =generacion_bruta!J129 -> 11711.10045 | K11: =generacion_bruta!K129 -> 14026.16729 | L11: =generacion_bruta!L129 -> 46911.01129 | M11: =generacion_bruta!M129 -> 210.736 | N11: =generacion_bruta!N129 -> 4968.626308 | O11: =generacion_bruta!O129 -> 19961.37982 | P11: =generacion_bruta!P129 -> 1732.053863 | Q11: =generacion_bruta!Q129 -> 28968.7365 | R11: =generacion_bruta!R129 -> 208.348087 | S11: =generacion_bruta!S129 -> 9053.1127 | T11: =generacion_bruta!T129 -> 4948.564616 | U11: =generacion_bruta!U129 -> 16208.42851 | V11: =SUM(C11:U11) -> 265127.1486 | W11: =V11-F11-H11-M11-R11 -> 250098.9884 | X11: =F11+H11+M11+R11 -> 15028.16021 | Z11: =V11-Q11 -> 236158.4121
A12: 2016 | B12: =CONCATENATE("Δ",A11,"/",A11-1) -> Δ2016/2015 | C12: =generacion_bruta!C130 -> 0.02446061844 | D12: =generacion_bruta!D130 -> 0.01328989048 | E12: =generacion_bruta!E130 -> 0.003896902438 | F12: =generacion_bruta!F130 -> 0.006180724437 | G12: =generacion_bruta!G130 -> 0.004005508696 | H12: =generacion_bruta!H130 -> 0.01239480442 | I12: =generacion_bruta!I130 -> -0.01022166885 | J12: =generacion_bruta!J130 -> 0.01210853761 | K12: =generacion_bruta!K130 -> 0.01165062269 | L12: =generacion_bruta!L130 -> 0.005657961714 | M12: =generacion_bruta!M130 -> 0.02578880246 | N12: =generacion_bruta!N130 -> 0.02750726417 | O12: =generacion_bruta!O130 -> 0.01233290992 | P12: =generacion_bruta!P130 -> 0.00402089758 | Q12: =generacion_bruta!Q130 -> 0.003282963623 | R12: =generacion_bruta!R130 -> -0.02406591243 | S12: =generacion_bruta!S130 -> 0.01490048625 | T12: =generacion_bruta!T130 -> 0.02177151267 | U12: =generacion_bruta!U130 -> -0.04525245045 | V12: =generacion_bruta!V130 -> 0.007004308144
A13: 2017 | B13: demanda | C13: =generacion_bruta!C156 -> 40272.29138 | D13: =generacion_bruta!D156 -> 10611.56896 | E13: =generacion_bruta!E156 -> 10582.95086 | F13: =generacion_bruta!F156 -> 6028.265775 | G13: =generacion_bruta!G156 -> 27023.26213 | H13: =generacion_bruta!H156 -> 8958.388428 | I13: =generacion_bruta!I156 -> 4368.295706 | J13: =generacion_bruta!J156 -> 11712.93873 | K13: =generacion_bruta!K156 -> 14110.1698 | L13: =generacion_bruta!L156 -> 47652.19257 | M13: =generacion_bruta!M156 -> 202.862 | N13: =generacion_bruta!N156 -> 5067.543563 | O13: =generacion_bruta!O156 -> 19858.24105 | P13: =generacion_bruta!P156 -> 1713.89471 | Q13: =generacion_bruta!Q156 -> 28767.64645 | R13: =generacion_bruta!R156 -> 210.593165 | S13: =generacion_bruta!S156 -> 9399.506858 | T13: =generacion_bruta!T156 -> 5056.54882 | U13: =generacion_bruta!U156 -> 16543.21688 | V13: =generacion_bruta!V156 -> 268140.4778 | W13: =V13-F13-H13-M13-R13 -> 252740.3685 | X13: =F13+H13+M13+R13 -> 15400.10937 | Z13: =V13-Q13 -> 239372.8314
A14: 2017 | B14: =CONCATENATE("Δ",A13,"/",A13-1) -> Δ2017/2016 | C14: =generacion_bruta!C157 -> 0.01681945249 | D14: =generacion_bruta!D157 -> 0.01663780246 | E14: =generacion_bruta!E157 -> 0.007075421618 | F14: =generacion_bruta!F157 -> 0.03361000911 | G14: =generacion_bruta!G157 -> 0.006351982735 | H14: =generacion_bruta!H157 -> 0.02068585846 | I14: =generacion_bruta!I157 -> 0.03896423317 | J14: =generacion_bruta!J157 -> 0.0001569695464 | K14: =generacion_bruta!K157 -> 0.005988985492 | L14: =generacion_bruta!L157 -> 0.01579972943 | M14: =generacion_bruta!M157 -> -0.03736428517 | N14: =generacion_bruta!N157 -> 0.0199083708 | O14: =generacion_bruta!O157 -> -0.005166915759 | P14: =generacion_bruta!P157 -> -0.01048417364 | Q14: =generacion_bruta!Q157 -> -0.006941622883 | R14: =generacion_bruta!R157 -> 0.0107756113 | S14: =generacion_bruta!S157 -> 0.03826243738 | T14: =generacion_bruta!T157 -> 0.02182131835 | U14: =generacion_bruta!U157 -> 0.02065520238 | V14: =generacion_bruta!V157 -> 0.01136560049

Sheet datos_genanual (hidden)
B1: CCAA | C1: Andalucía | D1: Aragón | E1: Asturias | F1: Baleares | G1: C. Valenciana | H1: Canarias | I1: Cantabria | J1: Castilla-La Mancha | K1: Castilla y León | L1: Cataluña | M1: Ceuta | N1: Extremadura | O1: Galicia | P1: La Rioja | Q1: Madrid | R1: Melilla | S1: Murcia | T1: Navarra | U1: País Vasco | V1: España
A2: 2012 | B2: Hidráulica | C2: =generacion_bruta!C4 -> 708.1282302 | D2: =generacion_bruta!D4 -> 2265.787237 | E2: =generacion_bruta!E4 -> 1215.651341 | F2: =generacion_bruta!F4 -> 0 | G2: =generacion_bruta!G4 -> 392.0489025 | H2: =generacion_bruta!H4 -> 1.791301 | I2: =generacion_bruta!I4 -> 301.9711024 | J2: =generacion_bruta!J4 -> 690.9236709 | K2: =generacion_bruta!K4 -> 4859.250175 | L2: =generacion_bruta!L4 -> 3314.245442 | M2: =generacion_bruta!M4 -> 0 | N2: =generacion_bruta!N4 -> 1104.482965 | O2: =generacion_bruta!O4 -> 4668.264175 | P2: =generacion_bruta!P4 -> 123.6939669 | Q2: =generacion_bruta!Q4 -> 65.607027 | R2: =generacion_bruta!R4 -> 0 | S2: =generacion_bruta!S4 -> 108.1870743 | T2: =generacion_bruta!T4 -> 470.9745565 | U2: =generacion_bruta!U4 -> 333.2154926 | V2: =generacion_bruta!V4 -> 20624.22266
B3: Turbinación bombeo | C3: =generacion_bruta!C5 -> 309.2577937 | D3: =generacion_bruta!D5 -> 260.211643 | E3: =generacion_bruta!E5 -> 35.5589626 | F3: =generacion_bruta!F5 -> 0 | G3: =generacion_bruta!G5 -> 822.868819 | H3: =generacion_bruta!H5 -> 0 | I3: =generacion_bruta!I5 -> 575.401949 | J3: =generacion_bruta!J5 -> 102.59608 | K3: =generacion_bruta!K5 -> 710.7745102 | L3: =generacion_bruta!L5 -> 287.2659669 | M3: =generacion_bruta!M5 -> 0 | N3: =generacion_bruta!N5 -> 7.15772564 | O3: =generacion_bruta!O5 -> 90.7962937 | P3: =generacion_bruta!P5 -> 0 | Q3: =generacion_bruta!Q5 -> 0 | R3: =generacion_bruta!R5 -> 0 | S3: =generacion_bruta!S5 -> 0 | T3: =generacion_bruta!T5 -> 0 | U3: =generacion_bruta!U5 -> 0 | V3: =generacion_bruta!V5 -> 3201.889744
B4: Nuclear | C4: =generacion_bruta!C6 -> 0 | D4: =generacion_bruta!D6 -> 0 | E4: =generacion_bruta!E6 -> 0 | F4: =generacion_bruta!F6 -> 0 | G4: =generacion_bruta!G6 -> 9015.062 | H4: =generacion_bruta!H6 -> 0 | I4: =generacion_bruta!I6 -> 0 | J4: =generacion_bruta!J6 -> 7948.401 | K4: =generacion_bruta!K6 -> 3703.47 | L4: =generacion_bruta!L6 -> 22950.871 | M4: =generacion_bruta!M6 -> 0 | N4: =generacion_bruta!N6 -> 15049.183 | O4: =generacion_bruta!O6 -> 0 | P4: =generacion_bruta!P6 -> 0 | Q4: =generacion_bruta!Q6 -> 0 | R4: =generacion_bruta!R6 -> 0 | S4: =generacion_bruta!S6 -> 0 | T4: =generacion_bruta!T6 -> 0 | U4: =generacion_bruta!U6 -> 0 | V4: =generacion_bruta!V6 -> 58666.987
B5: Carbón | C5: =generacion_bruta!C7 -> 10920.123 | D5: =generacion_bruta!D7 -> 4836.636 | E5: =generacion_bruta!E7 -> 10061.81 | F5: =generacion_bruta!F7 -> 2682.533 | G5: =generacion_bruta!G7 -> 0 | H5: =generacion_bruta!H7 -> 0 | I5: =generacion_bruta!I7 -> 0 | J5: =generacion_bruta!J7 -> 1741.818 | K5: =generacion_bruta!K7 -> 10341.323 | L5: =generacion_bruta!L7 -> 0 | M5: =generacion_bruta!M7 -> 0 | N5: =generacion_bruta!N7 -> 0 | O5: =generacion_bruta!O7 -> 12248.726 | P5: =generacion_bruta!P7 -> 0 | Q5: =generacion_bruta!Q7 -> 0 | R5: =generacion_bruta!R7 -> 0 | S5: =generacion_bruta!S7 -> 0 | T5: =generacion_bruta!T7 -> 0 | U5: =generacion_bruta!U7 -> 980.45 | V5: =generacion_bruta!V7 -> 53813.419
B6: Fuel / gas | C6: =generacion_bruta!C8 -> 0 | D6: =generacion_bruta!D8 -> 0 | E6: =generacion_bruta!E8 -> 0 | F6: =generacion_bruta!F8 -> 1284.514 | G6: =generacion_bruta!G8 -> 0 | H6: =generacion_bruta!H8 -> 5386.647 | I6: =generacion_bruta!I8 -> 0 | J6: =generacion_bruta!J8 -> 0 | K6: =generacion_bruta!K8 -> 0 | L6: =generacion_bruta!L8 -> 0 | M6: =generacion_bruta!M8 -> 212.075 | N6: =generacion_bruta!N8 -> 0 | O6: =generacion_bruta!O8 -> 0 | P6: =generacion_bruta!P8 -> 0 | Q6: =generacion_bruta!Q8 -> 0 | R6: =generacion_bruta!R8 -> 214.961 | S6: =generacion_bruta!S8 -> 0 | T6: =generacion_bruta!T8 -> 0 | U6: =generacion_bruta!U8 -> 0 | V6: =generacion_bruta!V8 -> 7098.197
B7: Ciclo combinado | C7: =generacion_bruta!C9 -> 9738.885 | D7: =generacion_bruta!D9 -> 940.651 | E7: =generacion_bruta!E9 -> 774.103 | F7: =generacion_bruta!F9 -> 890.56 | G7: =generacion_bruta!G9 -> 4774.388 | H7: =generacion_bruta!H9 -> 2877.771 | I7: =generacion_bruta!I9 -> 0 | J7: =generacion_bruta!J9 -> 2553.928 | K7: =generacion_bruta!K9 -> 0 | L7: =generacion_bruta!L9 -> 8041.259 | M7: =generacion_bruta!M9 -> 0 | N7: =generacion_bruta!N9 -> 0 | O7: =generacion_bruta!O9 -> 1291.607 | P7: =generacion_bruta!P9 -> 1311.082 | Q7: =generacion_bruta!Q9 -> 0 | R7: =generacion_bruta!R9 -> 0 | S7: =generacion_bruta!S9 -> 3097.972 | T7: =generacion_bruta!T9 -> 832.767 | U7: =generacion_bruta!U9 -> 4175.024 | V7: =generacion_bruta!V9 -> 41299.997
B8: Hidroeólica | C8: =generacion_bruta!C10 -> 0 | D8: =generacion_bruta!D10 -> 0 | E8: =generacion_bruta!E10 -> 0 | F8: =generacion_bruta!F10 -> 0 | G8: =generacion_bruta!G10 -> 0 | H8: =generacion_bruta!H10 -> 0 | I8: =generacion_bruta!I10 -> 0 | J8: =generacion_bruta!J10 -> 0 | K8: =generacion_bruta!K10 -> 0 | L8: =generacion_bruta!L10 -> 0 | M8: =generacion_bruta!M10 -> 0 | N8: =generacion_bruta!N10 -> 0 | O8: =generacion_bruta!O10 -> 0 | P8: =generacion_bruta!P10 -> 0 | Q8: =generacion_bruta!Q10 -> 0 | R8: =generacion_bruta!R10 -> 0 | S8: =generacion_bruta!S10 -> 0 | T8: =generacion_bruta!T10 -> 0 | U8: =generacion_bruta!U10 -> 0 | V8: =generacion_bruta!V10 -> 0
B9: Eólica | C9: =generacion_bruta!C11 -> 5736.308595 | D9: =generacion_bruta!D11 -> 4453.409486 | E9: =generacion_bruta!E11 -> 884.396919 | F9: =generacion_bruta!F11 -> 6.504699 | G9: =generacion_bruta!G11 -> 2547.695238 | H9: =generacion_bruta!H11 -> 361.767325 | I9: =generacion_bruta!I11 -> 62.089362 | J9: =generacion_bruta!J11 -> 7948.26959 | K9: =generacion_bruta!K11 -> 11364.71053 | L9: =generacion_bruta!L11 -> 2647.569039 | M9: =generacion_bruta!M11 -> 0 | N9: =generacion_bruta!N11 -> 0 | O9: =generacion_bruta!O11 -> 8068.618604 | P9: =generacion_bruta!P11 -> 1005.869132 | Q9: =generacion_bruta!Q11 -> 0 | R9: =generacion_bruta!R11 -> 0 | S9: =generacion_bruta!S11 -> 403.316864 | T9: =generacion_bruta!T11 -> 2677.948193 | U9: =generacion_bruta!U11 -> 339.864375 | V9: =generacion_bruta!V11 -> 48508.33795
B10: Solar fotovoltaica | C10: =generacion_bruta!C12 -> 1530.531512 | D10: =generacion_bruta!D12 -> 285.432282 | E10: =generacion_bruta!E12 -> 0.733964 | F10: =generacion_bruta!F12 -> 115.593269 | G10: =generacion_bruta!G12 -> 527.544666 | H10: =generacion_bruta!H12 -> 256.513386 | I10: =generacion_bruta!I12 -> 2.136588 | J10: =generacion_bruta!J12 -> 1753.125784 | K10: =generacion_bruta!K12 -> 832.012892 | L10: =generacion_bruta!L12 -> 409.621922 | M10: =generacion_bruta!M12 -> 0 | N10: =generacion_bruta!N12 -> 1110.475662 | O10: =generacion_bruta!O12 -> 17.670515 | P10: =generacion_bruta!P12 -> 140.938202 | Q10: =generacion_bruta!Q12 -> 80.340488 | R10: =generacion_bruta!R12 -> 0.083114 | S10: =generacion_bruta!S12 -> 792.422075 | T10: =generacion_bruta!T12 -> 317.696116 | U10: =generacion_bruta!U12 -> 29.217547 | V10: =generacion_bruta!V12 -> 8202.089984
B11: Solar térmica | C11: =generacion_bruta!C13 -> 1837.631894 | D11: =generacion_bruta!D13 -> 0 | E11: =generacion_bruta!E13 -> 0 | F11: =generacion_bruta!F13 -> 0 | G11: =generacion_bruta!G13 -> 0 | H11: =generacion_bruta!H13 -> 0 | I11: =generacion_bruta!I13 -> 0 | J11: =generacion_bruta!J13 -> 524.685992 | K11: =generacion_bruta!K13 -> 0 | L11: =generacion_bruta!L13 -> 0.568335 | M11: =generacion_bruta!M13 -> 0 | N11: =generacion_bruta!N13 -> 1057.869002 | O11: =generacion_bruta!O13 -> 0 | P11: =generacion_bruta!P13 -> 0 | Q11: =generacion_bruta!Q13 -> 0 | R11: =generacion_bruta!R13 -> 0 | S11: =generacion_bruta!S13 -> 23.378823 | T11: =generacion_bruta!T13 -> 0 | U11: =generacion_bruta!U13 -> 0 | V11: =generacion_bruta!V13 -> 3444.134046
B12: Otras renovables | C12: =generacion_bruta!C14 -> 1458.279697 | D12: =generacion_bruta!D14 -> 316.07291 | E12: =generacion_bruta!E14 -> 656.225611 | F12: =generacion_bruta!F14 -> 0.56983 | G12: =generacion_bruta!G14 -> 52.936557 | H12: =generacion_bruta!H14 -> 8.050447 | I12: =generacion_bruta!I14 -> 16.857638 | J12: =generacion_bruta!J14 -> 247.085179 | K12: =generacion_bruta!K14 -> 172.332889 | L12: =generacion_bruta!L14 -> 256.148812 | M12: =generacion_bruta!M14 -> 0 | N12: =generacion_bruta!N14 -> 150.31303 | O12: =generacion_bruta!O14 -> 597.385213 | P12: =generacion_bruta!P14 -> 15.679899 | Q12: =generacion_bruta!Q14 -> 298.03054 | R12: =generacion_bruta!R14 -> 0 | S12: =generacion_bruta!S14 -> 28.802132 | T12: =generacion_bruta!T14 -> 290.992634 | U12: =generacion_bruta!U14 -> 189.007369 | V12: =generacion_bruta!V14 -> 4754.770387
B13: Cogeneración | C13: =generacion_bruta!C15 -> 5795.412355 | D13: =generacion_bruta!D15 -> 3260.802705 | E13: =generacion_bruta!E15 -> 724.315327 | F13: =generacion_bruta!F15 -> 272.075742 | G13: =generacion_bruta!G15 -> 2117.863985 | H13: =generacion_bruta!H15 -> 0 | I13: =generacion_bruta!I15 -> 1669.321387 | J13: =generacion_bruta!J15 -> 1356.04973 | K13: =generacion_bruta!K15 -> 3326.20841 | L13: =generacion_bruta!L15 -> 6185.693079 | M13: =generacion_bruta!M15 -> 0 | N13: =generacion_bruta!N15 -> 29.9208 | O13: =generacion_bruta!O15 -> 2257.787662 | P13: =generacion_bruta!P15 -> 167.901741 | Q13: =generacion_bruta!Q15 -> 1226.521454 | R13: =generacion_bruta!R15 -> 2.308958 | S13: =generacion_bruta!S15 -> 1959.679473 | T13: =generacion_bruta!T15 -> 960.600308 | U13: =generacion_bruta!U15 -> 2454.786218 | V13: =generacion_bruta!V15 -> 33767.24933
B14: Residuos no renovables
B15: Residuos renovables
A16: 2013 | B16: Hidráulica | C16: =generacion_bruta!C31 -> 1286.132158 | D16: =generacion_bruta!D31 -> 4272.60998 | E16: =generacion_bruta!E31 -> 2166.271086 | F16: =generacion_bruta!F31 -> 0 | G16: =generacion_bruta!G31 -> 474.3754328 | H16: =generacion_bruta!H31 -> 3.049504 | I16: =generacion_bruta!I31 -> 344.9634205 | J16: =generacion_bruta!J31 -> 922.9322192 | K16: =generacion_bruta!K31 -> 8006.041412 | L16: =generacion_bruta!L31 -> 5406.846742 | M16: =generacion_bruta!M31 -> 0 | N16: =generacion_bruta!N31 -> 2826.832817 | O16: =generacion_bruta!O31 -> 9896.405471 | P16: =generacion_bruta!P31 -> 173.138124 | Q16: =generacion_bruta!Q31 -> 167.9867334 | R16: =generacion_bruta!R31 -> 0 | S16: =generacion_bruta!S31 -> 131.7705803 | T16: =generacion_bruta!T31 -> 770.7881584 | U16: =generacion_bruta!U31 -> 539.5644955 | V16: =generacion_bruta!V31 -> 37389.70833
B17: Turbinación bombeo | C17: =generacion_bruta!C32 -> 332.6293827 | D17: =generacion_bruta!D32 -> 292.337205 | E17: =generacion_bruta!E32 -> 53.9984088 | F17: =generacion_bruta!F32 -> 0 | G17: =generacion_bruta!G32 -> 1116.192629 | H17: =generacion_bruta!H32 -> 0 | I17: =generacion_bruta!I32 -> 537.83828 | J17: =generacion_bruta!J32 -> 113.22974 | K17: =generacion_bruta!K32 -> 485.5478034 | L17: =generacion_bruta!L32 -> 245.1489343 | M17: =generacion_bruta!M32 -> 0 | N17: =generacion_bruta!N32 -> 33.4582688 | O17: =generacion_bruta!O32 -> 79.296532 | P17: =generacion_bruta!P32 -> 0 | Q17: =generacion_bruta!Q32 -> 0 | R17: =generacion_bruta!R32 -> 0 | S17: =generacion_bruta!S32 -> 0 | T17: =generacion_bruta!T32 -> 0 | U17: =generacion_bruta!U32 -> 0 | V17: =generacion_bruta!V32 -> 3289.677184
B18: Nuclear | C18: =generacion_bruta!C33 -> 0 | D18: =generacion_bruta!D33 -> 0 | E18: =generacion_bruta!E33 -> 0 | F18: =generacion_bruta!F33 -> 0 | G18: =generacion_bruta!G33 -> 8004.864 | H18: =generacion_bruta!H33 -> 0 | I18: =generacion_bruta!I33 -> 0 | J18: =generacion_bruta!J33 -> 7484.576 | K18: =generacion_bruta!K33 -> 0 | L18: =generacion_bruta!L33 -> 23719.595 | M18: =generacion_bruta!M33 -> 0 | N18: =generacion_bruta!N33 -> 15097.852 | O18: =generacion_bruta!O33 -> 0 | P18: =generacion_bruta!P33 -> 0 | Q18: =generacion_bruta!Q33 -> 0 | R18: =generacion_bruta!R33 -> 0 | S18: =generacion_bruta!S33 -> 0 | T18: =generacion_bruta!T33 -> 0 | U18: =generacion_bruta!U33 -> 0 | V18: =generacion_bruta!V33 -> 54306.887
B19: Carbón | C19: =generacion_bruta!C34 -> 9277.597 | D19: =generacion_bruta!D34 -> 3435.268 | E19: =generacion_bruta!E34 -> 8564.474 | F19: =generacion_bruta!F34 -> 2350.681 | G19: =generacion_bruta!G34 -> 0 | H19: =generacion_bruta!H34 -> 0 | I19: =generacion_bruta!I34 -> 0 | J19: =generacion_bruta!J34 -> 786.558 | K19: =generacion_bruta!K34 -> 5717.388 | L19: =generacion_bruta!L34 -> 0 | M19: =generacion_bruta!M34 -> 0 | N19: =generacion_bruta!N34 -> 0 | O19: =generacion_bruta!O34 -> 9395.598 | P19: =generacion_bruta!P34 -> 0 | Q19: =generacion_bruta!Q34 -> 0 | R19: =generacion_bruta!R34 -> 0 | S19: =generacion_bruta!S34 -> 0 | T19: =generacion_bruta!T34 -> 0 | U19: =generacion_bruta!U34 -> 0 | V19: =generacion_bruta!V34 -> 39527.564
B20: Fuel / gas | C20: =generacion_bruta!C35 -> 0 | D20: =generacion_bruta!D35 -> 0 | E20: =generacion_bruta!E35 -> 0 | F20: =generacion_bruta!F35 -> 1260.156 | G20: =generacion_bruta!G35 -> 0 | H20: =generacion_bruta!H35 -> 4910.132 | I20: =generacion_bruta!I35 -> 0 | J20: =generacion_bruta!J35 -> 0 | K20: =generacion_bruta!K35 -> 0 | L20: =generacion_bruta!L35 -> 0 | M20: =generacion_bruta!M35 -> 201.959 | N20: =generacion_bruta!N35 -> 0 | O20: =generacion_bruta!O35 -> 0 | P20: =generacion_bruta!P35 -> 0 | Q20: =generacion_bruta!Q35 -> 0 | R20: =generacion_bruta!R35 -> 201.547 | S20: =generacion_bruta!S35 -> 0 | T20: =generacion_bruta!T35 -> 0 | U20: =generacion_bruta!U35 -> 0 | V20: =generacion_bruta!V35 -> 6573.794
B21: Ciclo combinado | C21: =generacion_bruta!C36 -> 5827.214 | D21: =generacion_bruta!D36 -> 89.443 | E21: =generacion_bruta!E36 -> 296.952 | F21: =generacion_bruta!F36 -> 413.575 | G21: =generacion_bruta!G36 -> 3940.293 | H21: =generacion_bruta!H36 -> 3052.68 | I21: =generacion_bruta!I36 -> 0 | J21: =generacion_bruta!J36 -> 1106.768 | K21: =generacion_bruta!K36 -> 0 | L21: =generacion_bruta!L36 -> 5685.038 | M21: =generacion_bruta!M36 -> 0 | N21: =generacion_bruta!N36 -> 0 | O21: =generacion_bruta!O36 -> 1157.169 | P21: =generacion_bruta!P36 -> 395.643 | Q21: =generacion_bruta!Q36 -> 0 | R21: =generacion_bruta!R36 -> 0 | S21: =generacion_bruta!S36 -> 2342.329 | T21: =generacion_bruta!T36 -> 361.286 | U21: =generacion_bruta!U36 -> 3158.445 | V21: =generacion_bruta!V36 -> 27826.835
B22: Hidroeólica | C22: =generacion_bruta!C37 -> 0 | D22: =generacion_bruta!D37 -> 0 | E22: =generacion_bruta!E37 -> 0 | F22: =generacion_bruta!F37 -> 0 | G22: =generacion_bruta!G37 -> 0 | H22: =generacion_bruta!H37 -> 0 | I22: =generacion_bruta!I37 -> 0 | J22: =generacion_bruta!J37 -> 0 | K22: =generacion_bruta!K37 -> 0 | L22: =generacion_bruta!L37 -> 0 | M22: =generacion_bruta!M37 -> 0 | N22: =generacion_bruta!N37 -> 0 | O22: =generacion_bruta!O37 -> 0 | P22: =generacion_bruta!P37 -> 0 | Q22: =generacion_bruta!Q37 -> 0 | R22: =generacion_bruta!R37 -> 0 | S22: =generacion_bruta!S37 -> 0 | T22: =generacion_bruta!T37 -> 0 | U22: =generacion_bruta!U37 -> 0 | V22: =generacion_bruta!V37 -> 0
B23: Eólica | C23: =generacion_bruta!C38 -> 6986.811481 | D23: =generacion_bruta!D38 -> 4869.472296 | E23: =generacion_bruta!E38 -> 1140.547903 | F23: =generacion_bruta!F38 -> 6.159468 | G23: =generacion_bruta!G38 -> 2594.854498 | H23: =generacion_bruta!H38 -> 362.733485 | I23: =generacion_bruta!I38 -> 74.550424 | J23: =generacion_bruta!J38 -> 8657.478624 | K23: =generacion_bruta!K38 -> 12684.69372 | L23: =generacion_bruta!L38 -> 3194.726668 | M23: =generacion_bruta!M38 -> 0 | N23: =generacion_bruta!N38 -> 0 | O23: =generacion_bruta!O38 -> 9497.906024 | P23: =generacion_bruta!P38 -> 1078.385075 | Q23: =generacion_bruta!Q38 -> 0 | R23: =generacion_bruta!R38 -> 0 | S23: =generacion_bruta!S38 -> 543.819978 | T23: =generacion_bruta!T38 -> 2664.752186 | U23: =generacion_bruta!U38 -> 356.35345 | V23: =generacion_bruta!V38 -> 54713.24529
B24: Solar fotovoltaica | C24: =generacion_bruta!C39 -> 1586.395935 | D24: =generacion_bruta!D39 -> 309.123951 | E24: =generacion_bruta!E39 -> 0.738135 | F24: =generacion_bruta!F39 -> 122.097173 | G24: =generacion_bruta!G39 -> 564.348676 | H24: =generacion_bruta!H39 -> 286.70133 | I24: =generacion_bruta!I39 -> 2.067143 | J24: =generacion_bruta!J39 -> 1697.856901 | K24: =generacion_bruta!K39 -> 848.076933 | L24: =generacion_bruta!L39 -> 431.350786 | M24: =generacion_bruta!M39 -> 0 | N24: =generacion_bruta!N39 -> 1110.442841 | O24: =generacion_bruta!O39 -> 20.475405 | P24: =generacion_bruta!P39 -> 130.107387 | Q24: =generacion_bruta!Q39 -> 92.065937 | R24: =generacion_bruta!R39 -> 0.082323 | S24: =generacion_bruta!S39 -> 801.930575 | T24: =generacion_bruta!T39 -> 295.442564 | U24: =generacion_bruta!U39 -> 27.615431 | V24: =generacion_bruta!V39 -> 8326.919426
B25: Solar térmica | C25: =generacion_bruta!C40 -> 1987.787339 | D25: =generacion_bruta!D40 -> 0 | E25: =generacion_bruta!E40 -> 0 | F25: =generacion_bruta!F40 -> 0 | G25: =generacion_bruta!G40 -> 9.833162 | H25: =generacion_bruta!H40 -> 0 | I25: =generacion_bruta!I40 -> 0 | J25: =generacion_bruta!J40 -> 678.244937 | K25: =generacion_bruta!K40 -> 0 | L25: =generacion_bruta!L40 -> 73.81801 | M25: =generacion_bruta!M40 -> 0 | N25: =generacion_bruta!N40 -> 1648.82012 | O25: =generacion_bruta!O40 -> 0 | P25: =generacion_bruta!P40 -> 0 | Q25: =generacion_bruta!Q40 -> 0 | R25: =generacion_bruta!R40 -> 0 | S25: =generacion_bruta!S40 -> 43.023967 | T25: =generacion_bruta!T40 -> 0 | U25: =generacion_bruta!U40 -> 0 | V25: =generacion_bruta!V40 -> 4441.527535
B26: Otras renovables | C26: =generacion_bruta!C41 -> 1764.006542 | D26: =generacion_bruta!D41 -> 228.211921 | E26: =generacion_bruta!E41 -> 666.235381 | F26: =generacion_bruta!F41 -> 0.74475 | G26: =generacion_bruta!G41 -> 52.924032 | H26: =generacion_bruta!H41 -> 8.386979 | I26: =generacion_bruta!I41 -> 81.926784 | J26: =generacion_bruta!J41 -> 239.06713 | K26: =generacion_bruta!K41 -> 181.366081 | L26: =generacion_bruta!L41 -> 258.64171 | M26: =generacion_bruta!M41 -> 0 | N26: =generacion_bruta!N41 -> 150.034926 | O26: =generacion_bruta!O41 -> 597.001972 | P26: =generacion_bruta!P41 -> 11.889307 | Q26: =generacion_bruta!Q41 -> 286.105782 | R26: =generacion_bruta!R41 -> 0 | S26: =generacion_bruta!S41 -> 57.71906 | T26: =generacion_bruta!T41 -> 303.593267 | U26: =generacion_bruta!U41 -> 186.841747 | V26: =generacion_bruta!V41 -> 5074.697371
B27: Cogeneración | C27: =generacion_bruta!C42 -> 5641.970907 | D27: =generacion_bruta!D42 -> 3287.808423 | E27: =generacion_bruta!E42 -> 756.72252 | F27: =generacion_bruta!F42 -> 251.614955 | G27: =generacion_bruta!G42 -> 2074.898626 | H27: =generacion_bruta!H42 -> 0 | I27: =generacion_bruta!I42 -> 1219.72415 | J27: =generacion_bruta!J42 -> 1145.635895 | K27: =generacion_bruta!K42 -> 2968.320088 | L27: =generacion_bruta!L42 -> 6131.311427 | M27: =generacion_bruta!M42 -> 0 | N27: =generacion_bruta!N42 -> 30.034799 | O27: =generacion_bruta!O42 -> 2441.242827 | P27: =generacion_bruta!P42 -> 149.740855 | Q27: =generacion_bruta!Q42 -> 1086.329052 | R27: =generacion_bruta!R42 -> 8.037797 | S27: =generacion_bruta!S42 -> 1960.369182 | T27: =generacion_bruta!T42 -> 981.567399 | U27: =generacion_bruta!U42 -> 2161.04884 | V27: =generacion_bruta!V42 -> 32296.37774
B28: Residuos no renovables
B29: Residuos renovables
A30: 2014 | B30: Hidráulica | C30: =generacion_bruta!C58 -> 936.3746776 | D30: =generacion_bruta!D58 -> 4039.786265 | E30: =generacion_bruta!E58 -> 1896.052339 | F30: =generacion_bruta!F58 -> 0 | G30: =generacion_bruta!G58 -> 607.1494165 | H30: =generacion_bruta!H58 -> 3.478906 | I30: =generacion_bruta!I58 -> 271.6123482 | J30: =generacion_bruta!J58 -> 1006.284682 | K30: =generacion_bruta!K58 -> 10365.32792 | L30: =generacion_bruta!L58 -> 5246.557073 | M30: =generacion_bruta!M58 -> 0 | N30: =generacion_bruta!N58 -> 3077.509924 | O30: =generacion_bruta!O58 -> 10108.64069 | P30: =generacion_bruta!P58 -> 159.6494475 | Q30: =generacion_bruta!Q58 -> 205.9635249 | R30: =generacion_bruta!R58 -> 0 | S30: =generacion_bruta!S58 -> 126.6779254 | T30: =generacion_bruta!T58 -> 663.1264668 | U30: =generacion_bruta!U58 -> 401.6864306 | V30: =generacion_bruta!V58 -> 39115.87804
B31: Turbinación bombeo | C31: =generacion_bruta!C59 -> 340.4861921 | D31: =generacion_bruta!D59 -> 327.190469 | E31: =generacion_bruta!E59 -> 53.9156891 | F31: =generacion_bruta!F59 -> 0 | G31: =generacion_bruta!G59 -> 1170.074173 | H31: =generacion_bruta!H59 -> 0 | I31: =generacion_bruta!I59 -> 606.802956 | J31: =generacion_bruta!J59 -> 61.01868 | K31: =generacion_bruta!K59 -> 497.2400575 | L31: =generacion_bruta!L59 -> 269.0966327 | M31: =generacion_bruta!M59 -> 0 | N31: =generacion_bruta!N59 -> 43.36111472 | O31: =generacion_bruta!O59 -> 46.8100626 | P31: =generacion_bruta!P59 -> 0 | Q31: =generacion_bruta!Q59 -> 0 | R31: =generacion_bruta!R59 -> 0 | S31: =generacion_bruta!S59 -> 0 | T31: =generacion_bruta!T59 -> 0 | U31: =generacion_bruta!U59 -> 0 | V31: =generacion_bruta!V59 -> 3415.996027
B32: Nuclear | C32: =generacion_bruta!C60 -> 0 | D32: =generacion_bruta!D60 -> 0 | E32: =generacion_bruta!E60 -> 0 | F32: =generacion_bruta!F60 -> 0 | G32: =generacion_bruta!G60 -> 9108.216 | H32: =generacion_bruta!H60 -> 0 | I32: =generacion_bruta!I60 -> 0 | J32: =generacion_bruta!J60 -> 7783.908 | K32: =generacion_bruta!K60 -> 0 | L32: =generacion_bruta!L60 -> 22776.108 | M32: =generacion_bruta!M60 -> 0 | N32: =generacion_bruta!N60 -> 15202.007 | O32: =generacion_bruta!O60 -> 0 | P32: =generacion_bruta!P60 -> 0 | Q32: =generacion_bruta!Q60 -> 0 | R32: =generacion_bruta!R60 -> 0 | S32: =generacion_bruta!S60 -> 0 | T32: =generacion_bruta!T60 -> 0 | U32: =generacion_bruta!U60 -> 0 | V32: =generacion_bruta!V60 -> 54870.239
B33: Carbón | C33: =generacion_bruta!C61 -> 9502.972 | D33: =generacion_bruta!D61 -> 4611.757 | E33: =generacion_bruta!E61 -> 8565.27 | F33: =generacion_bruta!F61 -> 2187.626 | G33: =generacion_bruta!G61 -> 0 | H33: =generacion_bruta!H61 -> 0 | I33: =generacion_bruta!I61 -> 0 | J33: =generacion_bruta!J61 -> 881.26 | K33: =generacion_bruta!K61 -> 8006.714 | L33: =generacion_bruta!L61 -> 0 | M33: =generacion_bruta!M61 -> 0 | N33: =generacion_bruta!N61 -> 0 | O33: =generacion_bruta!O61 -> 9564.704 | P33: =generacion_bruta!P61 -> 0 | Q33: =generacion_bruta!Q61 -> 0 | R33: =generacion_bruta!R61 -> 0 | S33: =generacion_bruta!S61 -> 0 | T33: =generacion_bruta!T61 -> 0 | U33: =generacion_bruta!U61 -> 0 | V33: =generacion_bruta!V61 -> 43320.303
B34: Fuel / gas | C34: =generacion_bruta!C62 -> 0 | D34: =generacion_bruta!D62 -> 0 | E34: =generacion_bruta!E62 -> 0 | F34: =generacion_bruta!F62 -> 1260.664 | G34: =generacion_bruta!G62 -> 0 | H34: =generacion_bruta!H62 -> 4582.909 | I34: =generacion_bruta!I62 -> 0 | J34: =generacion_bruta!J62 -> 0 | K34: =generacion_bruta!K62 -> 0 | L34: =generacion_bruta!L62 -> 0 | M34: =generacion_bruta!M62 -> 212.253 | N34: =generacion_bruta!N62 -> 0 | O34: =generacion_bruta!O62 -> 0 | P34: =generacion_bruta!P62 -> 0 | Q34: =generacion_bruta!Q62 -> 0 | R34: =generacion_bruta!R62 -> 200.881 | S34: =generacion_bruta!S62 -> 0 | T34: =generacion_bruta!T62 -> 0 | U34: =generacion_bruta!U62 -> 0 | V34: =generacion_bruta!V62 -> 6256.707
B35: Ciclo combinado | C35: =generacion_bruta!C63 -> 4403.777 | D35: =generacion_bruta!D63 -> 210.171 | E35: =generacion_bruta!E63 -> 289.476 | F35: =generacion_bruta!F63 -> 426.924 | G35: =generacion_bruta!G63 -> 4017.662 | H35: =generacion_bruta!H63 -> 3311.448 | I35: =generacion_bruta!I63 -> 0 | J35: =generacion_bruta!J63 -> 1045.816 | K35: =generacion_bruta!K63 -> 0 | L35: =generacion_bruta!L63 -> 5031.349 | M35: =generacion_bruta!M63 -> 0 | N35: =generacion_bruta!N63 -> 0 | O35: =generacion_bruta!O63 -> 509.427 | P35: =generacion_bruta!P63 -> 162.452 | Q35: =generacion_bruta!Q63 -> 0 | R35: =generacion_bruta!R63 -> 0 | S35: =generacion_bruta!S63 -> 2336.522 | T35: =generacion_bruta!T63 -> 369.635 | U35: =generacion_bruta!U63 -> 2960.466 | V35: =generacion_bruta!V63 -> 25075.125
B36: Hidroeólica | C36: =generacion_bruta!C64 -> 0 | D36: =generacion_bruta!D64 -> 0 | E36: =generacion_bruta!E64 -> 0 | F36: =generacion_bruta!F64 -> 0 | G36: =generacion_bruta!G64 -> 0 | H36: =generacion_bruta!H64 -> 1.071861 | I36: =generacion_bruta!I64 -> 0 | J36: =generacion_bruta!J64 -> 0 | K36: =generacion_bruta!K64 -> 0 | L36: =generacion_bruta!L64 -> 0 | M36: =generacion_bruta!M64 -> 0 | N36: =generacion_bruta!N64 -> 0 | O36: =generacion_bruta!O64 -> 0 | P36: =generacion_bruta!P64 -> 0 | Q36: =generacion_bruta!Q64 -> 0 | R36: =generacion_bruta!R64 -> 0 | S36: =generacion_bruta!S64 -> 0 | T36: =generacion_bruta!T64 -> 0 | U36: =generacion_bruta!U64 -> 0 | V36: =generacion_bruta!V64 -> 1.071861
B37: Eólica | C37: =generacion_bruta!C65 -> 6450.411707 | D37: =generacion_bruta!D65 -> 4314.413658 | E37: =generacion_bruta!E65 -> 1140.608134 | F37: =generacion_bruta!F65 -> 5.839578 | G37: =generacion_bruta!G65 -> 2577.391476 | H37: =generacion_bruta!H65 -> 389.963924 | I37: =generacion_bruta!I65 -> 76.30895 | J37: =generacion_bruta!J65 -> 8389.137337 | K37: =generacion_bruta!K65 -> 12274.49252 | L37: =generacion_bruta!L65 -> 2867.133966 | M37: =generacion_bruta!M65 -> 0 | N37: =generacion_bruta!N65 -> 0 | O37: =generacion_bruta!O65 -> 8316.470118 | P37: =generacion_bruta!P65 -> 947.718085 | Q37: =generacion_bruta!Q65 -> 0 | R37: =generacion_bruta!R65 -> 0 | S37: =generacion_bruta!S65 -> 512.017404 | T37: =generacion_bruta!T65 -> 2424.907764 | U37: =generacion_bruta!U65 -> 343.88037 | V37: =generacion_bruta!V65 -> 51030.69499
B38: Solar fotovoltaica | C38: =generacion_bruta!C66 -> 1574.750163 | D38: =generacion_bruta!D66 -> 297.545781 | E38: =generacion_bruta!E66 -> 0.666843 | F38: =generacion_bruta!F66 -> 122.773391 | G38: =generacion_bruta!G66 -> 549.127528 | H38: =generacion_bruta!H66 -> 282.290384 | I38: =generacion_bruta!I66 -> 2.218715 | J38: =generacion_bruta!J66 -> 1684.592289 | K38: =generacion_bruta!K66 -> 840.0779 | L38: =generacion_bruta!L66 -> 413.306628 | M38: =generacion_bruta!M66 -> 0 | N38: =generacion_bruta!N66 -> 1071.175215 | O38: =generacion_bruta!O66 -> 19.445383 | P38: =generacion_bruta!P66 -> 128.873369 | Q38: =generacion_bruta!Q66 -> 93.257066 | R38: =generacion_bruta!R66 -> 0.083833 | S38: =generacion_bruta!S66 -> 800.250034 | T38: =generacion_bruta!T66 -> 297.78241 | U38: =generacion_bruta!U66 -> 29.355719 | V38: =generacion_bruta!V66 -> 8207.572651
B39: Solar térmica | C39: =generacion_bruta!C67 -> 2124.235754 | D39: =generacion_bruta!D67 -> 0 | E39: =generacion_bruta!E67 -> 0 | F39: =generacion_bruta!F67 -> 0 | G39: =generacion_bruta!G67 -> 93.85092 | H39: =generacion_bruta!H67 -> 0 | I39: =generacion_bruta!I67 -> 0 | J39: =generacion_bruta!J67 -> 734.252687 | K39: =generacion_bruta!K67 -> 0 | L39: =generacion_bruta!L67 -> 65.812195 | M39: =generacion_bruta!M67 -> 0 | N39: =generacion_bruta!N67 -> 1899.40041 | O39: =generacion_bruta!O67 -> 0 | P39: =generacion_bruta!P67 -> 0 | Q39: =generacion_bruta!Q67 -> 0 | R39: =generacion_bruta!R67 -> 0 | S39: =generacion_bruta!S67 -> 41.36296 | T39: =generacion_bruta!T67 -> 0 | U39: =generacion_bruta!U67 -> 0 | V39: =generacion_bruta!V67 -> 4958.914926
B40: Otras renovables | C40: =generacion_bruta!C68 -> 1419.812004 | D40: =generacion_bruta!D68 -> 349.101284 | E40: =generacion_bruta!E68 -> 643.85856 | F40: =generacion_bruta!F68 -> 1.945659 | G40: =generacion_bruta!G68 -> 41.399133 | H40: =generacion_bruta!H68 -> 8.806584 | I40: =generacion_bruta!I68 -> 85.795958 | J40: =generacion_bruta!J68 -> 182.617011 | K40: =generacion_bruta!K68 -> 249.127088 | L40: =generacion_bruta!L68 -> 150.037289 | M40: =generacion_bruta!M68 -> 0 | N40: =generacion_bruta!N68 -> 215.011765 | O40: =generacion_bruta!O68 -> 574.685349 | P40: =generacion_bruta!P68 -> 7.290583 | Q40: =generacion_bruta!Q68 -> 269.701459 | R40: =generacion_bruta!R68 -> 0 | S40: =generacion_bruta!S68 -> 53.782084 | T40: =generacion_bruta!T68 -> 306.316933 | U40: =generacion_bruta!U68 -> 169.441833 | V40: =generacion_bruta!V68 -> 4728.730576
B41: Cogeneración | C41: =generacion_bruta!C69 -> 5244.119429 | D41: =generacion_bruta!D69 -> 2383.597542 | E41: =generacion_bruta!E69 -> 651.135688 | F41: =generacion_bruta!F69 -> 281.388233 | G41: =generacion_bruta!G69 -> 1795.944745 | H41: =generacion_bruta!H69 -> 0 | I41: =generacion_bruta!I69 -> 831.901583 | J41: =generacion_bruta!J69 -> 764.037102 | K41: =generacion_bruta!K69 -> 1682.016098 | L41: =generacion_bruta!L69 -> 4806.878171 | M41: =generacion_bruta!M69 -> 0 | N41: =generacion_bruta!N69 -> 13.840363 | O41: =generacion_bruta!O69 -> 2147.346433 | P41: =generacion_bruta!P69 -> 56.949525 | Q41: =generacion_bruta!Q69 -> 736.528251 | R41: =generacion_bruta!R69 -> 8.898314 | S41: =generacion_bruta!S69 -> 1496.429749 | T41: =generacion_bruta!T69 -> 710.155483 | U41: =generacion_bruta!U69 -> 2274.656536 | V41: =generacion_bruta!V69 -> 25885.82324
B42: Residuos no renovables
B43: Residuos renovables
A44: 2015 | B44: Hidráulica | C44: =generacion_bruta!C85 -> 704.4459754 | D44: =generacion_bruta!D85 -> 3155.793042 | E44: =generacion_bruta!E85 -> 1607.183758 | F44: =generacion_bruta!F85 -> 0 | G44: =generacion_bruta!G85 -> 588.7847786 | H44: =generacion_bruta!H85 -> 3.585851 | I44: =generacion_bruta!I85 -> 286.0598481 | J44: =generacion_bruta!J85 -> 715.3475134 | K44: =generacion_bruta!K85 -> 7537.966521 | L44: =generacion_bruta!L85 -> 4414.391449 | M44: =generacion_bruta!M85 -> 0 | N44: =generacion_bruta!N85 -> 1584.738022 | O44: =generacion_bruta!O85 -> 6424.048457 | P44: =generacion_bruta!P85 -> 122.8522502 | Q44: =generacion_bruta!Q85 -> 132.7728345 | R44: =generacion_bruta!R85 -> 0 | S44: =generacion_bruta!S85 -> 108.505957 | T44: =generacion_bruta!T85 -> 534.1834837 | U44: =generacion_bruta!U85 -> 405.3483536 | V44: =generacion_bruta!V85 -> 28326.00809
B45: Turbinación bombeo | C45: =generacion_bruta!C86 -> 263.7823678 | D45: =generacion_bruta!D86 -> 281.952085 | E45: =generacion_bruta!E86 -> 26.8631636 | F45: =generacion_bruta!F86 -> 0 | G45: =generacion_bruta!G86 -> 1018.291565 | H45: =generacion_bruta!H86 -> 0 | I45: =generacion_bruta!I86 -> 477.330023 | J45: =generacion_bruta!J86 -> 31.737669 | K45: =generacion_bruta!K86 -> 413.8450527 | L45: =generacion_bruta!L86 -> 321.1057216 | M45: =generacion_bruta!M86 -> 0 | N45: =generacion_bruta!N86 -> 27.01948198 | O45: =generacion_bruta!O86 -> 33.4386584 | P45: =generacion_bruta!P86 -> 0 | Q45: =generacion_bruta!Q86 -> 0 | R45: =generacion_bruta!R86 -> 0 | S45: =generacion_bruta!S86 -> 0 | T45: =generacion_bruta!T86 -> 0 | U45: =generacion_bruta!U86 -> 0 | V45: =generacion_bruta!V86 -> 2895.365788
B46: Nuclear | C46: =generacion_bruta!C87 -> 0 | D46: =generacion_bruta!D87 -> 0 | E46: =generacion_bruta!E87 -> 0 | F46: =generacion_bruta!F87 -> 0 | G46: =generacion_bruta!G87 -> 7430.802 | H46: =generacion_bruta!H87 -> 0 | I46: =generacion_bruta!I87 -> 0 | J46: =generacion_bruta!J87 -> 7926.359 | K46: =generacion_bruta!K87 -> 0 | L46: =generacion_bruta!L87 -> 23325.627 | M46: =generacion_bruta!M87 -> 0 | N46: =generacion_bruta!N87 -> 16072.051 | O46: =generacion_bruta!O87 -> 0 | P46: =generacion_bruta!P87 -> 0 | Q46: =generacion_bruta!Q87 -> 0 | R46: =generacion_bruta!R87 -> 0 | S46: =generacion_bruta!S87 -> 0 | T46: =generacion_bruta!T87 -> 0 | U46: =generacion_bruta!U87 -> 0 | V46: =generacion_bruta!V87 -> 54754.839
B47: Carbón | C47: =generacion_bruta!C88 -> 12701.04 | D47: =generacion_bruta!D88 -> 4459.456 | E47: =generacion_bruta!E88 -> 12480.174 | F47: =generacion_bruta!F88 -> 1865.27 | G47: =generacion_bruta!G88 -> 0 | H47: =generacion_bruta!H88 -> 0 | I47: =generacion_bruta!I88 -> 0 | J47: =generacion_bruta!J88 -> 906.899 | K47: =generacion_bruta!K88 -> 9310.097 | L47: =generacion_bruta!L88 -> 0 | M47: =generacion_bruta!M88 -> 0 | N47: =generacion_bruta!N88 -> 0 | O47: =generacion_bruta!O88 -> 11066.106 | P47: =generacion_bruta!P88 -> 0 | Q47: =generacion_bruta!Q88 -> 0 | R47: =generacion_bruta!R88 -> 0 | S47: =generacion_bruta!S88 -> 0 | T47: =generacion_bruta!T88 -> 0 | U47: =generacion_bruta!U88 -> 0 | V47: =generacion_bruta!V88 -> 52789.042
B48: Fuel / gas | C48: =generacion_bruta!C89 -> 0 | D48: =generacion_bruta!D89 -> 0 | E48: =generacion_bruta!E89 -> 0 | F48: =generacion_bruta!F89 -> 1322.478 | G48: =generacion_bruta!G89 -> 0 | H48: =generacion_bruta!H89 -> 4763.92 | I48: =generacion_bruta!I89 -> 0 | J48: =generacion_bruta!J89 -> 0 | K48: =generacion_bruta!K89 -> 0 | L48: =generacion_bruta!L89 -> 0 | M48: =generacion_bruta!M89 -> 205.438 | N48: =generacion_bruta!N89 -> 0 | O48: =generacion_bruta!O89 -> 0 | P48: =generacion_bruta!P89 -> 0 | Q48: =generacion_bruta!Q89 -> 0 | R48: =generacion_bruta!R89 -> 204.814 | S48: =generacion_bruta!S89 -> 0 | T48: =generacion_bruta!T89 -> 0 | U48: =generacion_bruta!U89 -> 0 | V48: =generacion_bruta!V89 -> 6496.65
B49: Ciclo combinado | C49: =generacion_bruta!C90 -> 5623.467 | D49: =generacion_bruta!D90 -> 177.911 | E49: =generacion_bruta!E90 -> 361.307 | F49: =generacion_bruta!F90 -> 809.239 | G49: =generacion_bruta!G90 -> 4858.863 | H49: =generacion_bruta!H90 -> 3213.044 | I49: =generacion_bruta!I90 -> 0 | J49: =generacion_bruta!J90 -> 1289.096 | K49: =generacion_bruta!K90 -> 0 | L49: =generacion_bruta!L90 -> 6831.698 | M49: =generacion_bruta!M90 -> 0 | N49: =generacion_bruta!N90 -> 0 | O49: =generacion_bruta!O90 -> 333.788 | P49: =generacion_bruta!P90 -> 590.159 | Q49: =generacion_bruta!Q90 -> 0 | R49: =generacion_bruta!R90 -> 0 | S49: =generacion_bruta!S90 -> 2072.432 | T49: =generacion_bruta!T90 -> 724.07 | U49: =generacion_bruta!U90 -> 2405.677 | V49: =generacion_bruta!V90 -> 29290.751
B50: Hidroeólica | C50: =generacion_bruta!C91 -> 0 | D50: =generacion_bruta!D91 -> 0 | E50: =generacion_bruta!E91 -> 0 | F50: =generacion_bruta!F91 -> 0 | G50: =generacion_bruta!G91 -> 0 | H50: =generacion_bruta!H91 -> 8.557066 | I50: =generacion_bruta!I91 -> 0 | J50: =generacion_bruta!J91 -> 0 | K50: =generacion_bruta!K91 -> 0 | L50: =generacion_bruta!L91 -> 0 | M50: =generacion_bruta!M91 -> 0 | N50: =generacion_bruta!N91 -> 0 | O50: =generacion_bruta!O91 -> 0 | P50: =generacion_bruta!P91 -> 0 | Q50: =generacion_bruta!Q91 -> 0 | R50: =generacion_bruta!R91 -> 0 | S50: =generacion_bruta!S91 -> 0 | T50: =generacion_bruta!T91 -> 0 | U50: =generacion_bruta!U91 -> 0 | V50: =generacion_bruta!V91 -> 8.557066
B51: Eólica | C51: =generacion_bruta!C92 -> 6363.837098 | D51: =generacion_bruta!D92 -> 4229.199223 | E51: =generacion_bruta!E92 -> 917.807752 | F51: =generacion_bruta!F92 -> 5.315563 | G51: =generacion_bruta!G92 -> 2195.993566 | H51: =generacion_bruta!H92 -> 396.660923 | I51: =generacion_bruta!I92 -> 70.740945 | J51: =generacion_bruta!J92 -> 7286.716406 | K51: =generacion_bruta!K92 -> 11135.29315 | L51: =generacion_bruta!L92 -> 2608.782257 | M51: =generacion_bruta!M92 -> 0 | N51: =generacion_bruta!N92 -> 0 | O51: =generacion_bruta!O92 -> 8554.758744 | P51: =generacion_bruta!P92 -> 934.741484 | Q51: =generacion_bruta!Q92 -> 0 | R51: =generacion_bruta!R92 -> 0 | S51: =generacion_bruta!S92 -> 435.397331 | T51: =generacion_bruta!T92 -> 2637.926023 | U51: =generacion_bruta!U92 -> 341.95555 | V51: =generacion_bruta!V92 -> 48115.12602
B52: Solar fotovoltaica | C52: =generacion_bruta!C93 -> 1570.07354 | D52: =generacion_bruta!D93 -> 304.325605 | E52: =generacion_bruta!E93 -> 0.651736 | F52: =generacion_bruta!F93 -> 122.646436 | G52: =generacion_bruta!G93 -> 523.085511 | H52: =generacion_bruta!H93 -> 275.555924 | I52: =generacion_bruta!I93 -> 2.05531 | J52: =generacion_bruta!J93 -> 1722.910268 | K52: =generacion_bruta!K93 -> 847.268851 | L52: =generacion_bruta!L93 -> 421.112084 | M52: =generacion_bruta!M93 -> 0 | N52: =generacion_bruta!N93 -> 1111.133989 | O52: =generacion_bruta!O93 -> 20.758184 | P52: =generacion_bruta!P93 -> 132.187662 | Q52: =generacion_bruta!Q93 -> 93.788112 | R52: =generacion_bruta!R93 -> 0.07996 | S52: =generacion_bruta!S93 -> 762.396862 | T52: =generacion_bruta!T93 -> 304.335307 | U52: =generacion_bruta!U93 -> 28.715117 | V52: =generacion_bruta!V93 -> 8243.080458
B53: Solar térmica | C53: =generacion_bruta!C94 -> 2110.236508 | D53: =generacion_bruta!D94 -> 0 | E53: =generacion_bruta!E94 -> 0 | F53: =generacion_bruta!F94 -> 0 | G53: =generacion_bruta!G94 -> 89.976464 | H53: =generacion_bruta!H94 -> 0 | I53: =generacion_bruta!I94 -> 0 | J53: =generacion_bruta!J94 -> 735.486298 | K53: =generacion_bruta!K94 -> 0 | L53: =generacion_bruta!L94 -> 75.591874 | M53: =generacion_bruta!M94 -> 0 | N53: =generacion_bruta!N94 -> 2037.844843 | O53: =generacion_bruta!O94 -> 0 | P53: =generacion_bruta!P94 -> 0 | Q53: =generacion_bruta!Q94 -> 0 | R53: =generacion_bruta!R94 -> 0 | S53: =generacion_bruta!S94 -> 36.099527 | T53: =generacion_bruta!T94 -> 0 | U53: =generacion_bruta!U94 -> 0 | V53: =generacion_bruta!V94 -> 5085.235514
B54: Otras renovables | C54: =generacion_bruta!C95 -> 1265.903382 | D54: =generacion_bruta!D95 -> 57.287431 | E54: =generacion_bruta!E95 -> 228.786063 | F54: =generacion_bruta!F95 -> 1.971492 | G54: =generacion_bruta!G95 -> 40.643071 | H54: =generacion_bruta!H95 -> 8.053126 | I54: =generacion_bruta!I95 -> 85.075816 | J54: =generacion_bruta!J95 -> 240.960016 | K54: =generacion_bruta!K95 -> 201.185116 | L54: =generacion_bruta!L95 -> 174.427152 | M54: =generacion_bruta!M95 -> 0 | N54: =generacion_bruta!N95 -> 199.312358 | O54: =generacion_bruta!O95 -> 235.937514 | P54: =generacion_bruta!P95 -> 0.55284 | Q54: =generacion_bruta!Q95 -> 156.870739 | R54: =generacion_bruta!R95 -> 0 | S54: =generacion_bruta!S95 -> 39.185057 | T54: =generacion_bruta!T95 -> 233.270322 | U54: =generacion_bruta!U95 -> 14.552711 | V54: =generacion_bruta!V95 -> 3183.974206
B55: Cogeneración | C55: =generacion_bruta!C96 -> 5207.042735 | D55: =generacion_bruta!D96 -> 2443.058358 | E55: =generacion_bruta!E96 -> 357.122571 | F55: =generacion_bruta!F96 -> 31.518989 | G55: =generacion_bruta!G96 -> 1531.552624 | H55: =generacion_bruta!H96 -> 0 | I55: =generacion_bruta!I96 -> 716.346056 | J55: =generacion_bruta!J96 -> 778.594478 | K55: =generacion_bruta!K96 -> 1850.746959 | L55: =generacion_bruta!L96 -> 4678.848313 | M55: =generacion_bruta!M96 -> 0 | N55: =generacion_bruta!N96 -> 69.638162 | O55: =generacion_bruta!O96 -> 2629.349461 | P55: =generacion_bruta!P96 -> 82.116107 | Q55: =generacion_bruta!Q96 -> 694.046949 | R55: =generacion_bruta!R96 -> 0 | S55: =generacion_bruta!S96 -> 1458.475687 | T55: =generacion_bruta!T96 -> 835.153377 | U55: =generacion_bruta!U96 -> 2085.884596 | V55: =generacion_bruta!V96 -> 25449.49542
B56: Residuos no renovables | C56: =generacion_bruta!C97 -> 0 | D56: =generacion_bruta!D97 -> 404.302174 | E56: =generacion_bruta!E97 -> 720.741036 | F56: =generacion_bruta!F97 -> 151.0977295 | G56: =generacion_bruta!G97 -> 365.328105 | H56: =generacion_bruta!H97 -> 0 | I56: =generacion_bruta!I97 -> 33.14212 | J56: =generacion_bruta!J97 -> 0 | K56: =generacion_bruta!K97 -> 0 | L56: =generacion_bruta!L97 -> 136.54451 | M56: =generacion_bruta!M97 -> 0 | N56: =generacion_bruta!N97 -> 0 | O56: =generacion_bruta!O97 -> 187.9840255 | P56: =generacion_bruta!P97 -> 0 | Q56: =generacion_bruta!Q97 -> 62.844877 | R56: =generacion_bruta!R97 -> 4.295929 | S56: =generacion_bruta!S97 -> 0 | T56: =generacion_bruta!T97 -> 0 | U56: =generacion_bruta!U97 -> 413.8278935 | V56: =generacion_bruta!V97 -> 2480.108399
B57: Residuos renovables | C57: =generacion_bruta!C98 -> 0 | D57: =generacion_bruta!D98 -> 0 | E57: =generacion_bruta!E98 -> 0 | F57: =generacion_bruta!F98 -> 151.0977295 | G57: =generacion_bruta!G98 -> 0 | H57: =generacion_bruta!H98 -> 0 | I57: =generacion_bruta!I98 -> 33.14212 | J57: =generacion_bruta!J98 -> 0 | K57: =generacion_bruta!K98 -> 0 | L57: =generacion_bruta!L98 -> 136.54451 | M57: =generacion_bruta!M98 -> 0 | N57: =generacion_bruta!N98 -> 0 | O57: =generacion_bruta!O98 -> 187.9840255 | P57: =generacion_bruta!P98 -> 0 | Q57: =generacion_bruta!Q98 -> 62.844877 | R57: =generacion_bruta!R98 -> 4.295929 | S57: =generacion_bruta!S98 -> 0 | T57: =generacion_bruta!T98 -> 0 | U57: =generacion_bruta!U98 -> 242.1399425 | V57: =generacion_bruta!V98 -> 818.0491335
A58: 2016 | B58: Hidráulica | C58: =generacion_bruta!C112 -> 697.5211918 | D58: =generacion_bruta!D112 -> 3016.223531 | E58: =generacion_bruta!E112 -> 1960.186463 | F58: =generacion_bruta!F112 -> 0 | G58: =generacion_bruta!G112 -> 591.2243805 | H58: =generacion_bruta!H112 -> 3.472392 | I58: =generacion_bruta!I112 -> 238.6145954 | J58: =generacion_bruta!J112 -> 828.8266062 | K58: =generacion_bruta!K112 -> 11213.74733 | L58: =generacion_bruta!L112 -> 3956.296841 | M58: =generacion_bruta!M112 -> 0 | N58: =generacion_bruta!N112 -> 2468.803023 | O58: =generacion_bruta!O112 -> 9814.382764 | P58: =generacion_bruta!P112 -> 174.4320363 | Q58: =generacion_bruta!Q112 -> 157.2971486 | R58: =generacion_bruta!R112 -> 0 | S58: =generacion_bruta!S112 -> 100.650005 | T58: =generacion_bruta!T112 -> 450.3620599 | U58: =generacion_bruta!U112 -> 370.5848097 | V58: =generacion_bruta!V112 -> 36042.62518
B59: Turbinación bombeo | C59: =generacion_bruta!C113 -> 258.1047681 | D59: =generacion_bruta!D113 -> 317.108091 | E59: =generacion_bruta!E113 -> 25.5490438 | F59: =generacion_bruta!F113 -> 0 | G59: =generacion_bruta!G113 -> 1403.096403 | H59: =generacion_bruta!H113 -> 0 | I59: =generacion_bruta!I113 -> 428.064668 | J59: =generacion_bruta!J113 -> 45.31706 | K59: =generacion_bruta!K113 -> 356.1963241 | L59: =generacion_bruta!L113 -> 223.8100497 | M59: =generacion_bruta!M113 -> 0 | N59: =generacion_bruta!N113 -> 49.88669062 | O59: =generacion_bruta!O113 -> 27.195812 | P59: =generacion_bruta!P113 -> 0 | Q59: =generacion_bruta!Q113 -> 0 | R59: =generacion_bruta!R113 -> 0 | S59: =generacion_bruta!S113 -> 0 | T59: =generacion_bruta!T113 -> 0 | U59: =generacion_bruta!U113 -> 0 | V59: =generacion_bruta!V113 -> 3134.32891
B60: Nuclear | C60: =generacion_bruta!C114 -> 0 | D60: =generacion_bruta!D114 -> 0 | E60: =generacion_bruta!E114 -> 0 | F60: =generacion_bruta!F114 -> 0 | G60: =generacion_bruta!G114 -> 9178.263 | H60: =generacion_bruta!H114 -> 0 | I60: =generacion_bruta!I114 -> 0 | J60: =generacion_bruta!J114 -> 8002.642 | K60: =generacion_bruta!K114 -> 0 | L60: =generacion_bruta!L114 -> 23743.211 | M60: =generacion_bruta!M114 -> 0 | N60: =generacion_bruta!N114 -> 15174.856 | O60: =generacion_bruta!O114 -> 0 | P60: =generacion_bruta!P114 -> 0 | Q60: =generacion_bruta!Q114 -> 0 | R60: =generacion_bruta!R114 -> 0 | S60: =generacion_bruta!S114 -> 0 | T60: =generacion_bruta!T114 -> 0 | U60: =generacion_bruta!U114 -> 0 | V60: =generacion_bruta!V114 -> 56098.972
B61: Carbón | C61: =generacion_bruta!C115 -> 8273.448 | D61: =generacion_bruta!D115 -> 3317.603 | E61: =generacion_bruta!E115 -> 7573.062 | F61: =generacion_bruta!F115 -> 2303.769 | G61: =generacion_bruta!G115 -> 0 | H61: =generacion_bruta!H115 -> 0 | I61: =generacion_bruta!I115 -> 0 | J61: =generacion_bruta!J115 -> 0.077 | K61: =generacion_bruta!K115 -> 6554.315 | L61: =generacion_bruta!L115 -> 0 | M61: =generacion_bruta!M115 -> 0 | N61: =generacion_bruta!N115 -> 0 | O61: =generacion_bruta!O115 -> 9468.999 | P61: =generacion_bruta!P115 -> 0 | Q61: =generacion_bruta!Q115 -> 0 | R61: =generacion_bruta!R115 -> 0 | S61: =generacion_bruta!S115 -> 0 | T61: =generacion_bruta!T115 -> 0 | U61: =generacion_bruta!U115 -> 0 | V61: =generacion_bruta!V115 -> 37491.273
B62: Fuel / gas | C62: =generacion_bruta!C116 -> 0 | D62: =generacion_bruta!D116 -> 0 | E62: =generacion_bruta!E116 -> 0 | F62: =generacion_bruta!F116 -> 1311.771 | G62: =generacion_bruta!G116 -> 0 | H62: =generacion_bruta!H116 -> 5043.461 | I62: =generacion_bruta!I116 -> 0 | J62: =generacion_bruta!J116 -> 0 | K62: =generacion_bruta!K116 -> 0 | L62: =generacion_bruta!L116 -> 0 | M62: =generacion_bruta!M116 -> 210.736 | N62: =generacion_bruta!N116 -> 0 | O62: =generacion_bruta!O116 -> 0 | P62: =generacion_bruta!P116 -> 0 | Q62: =generacion_bruta!Q116 -> 0 | R62: =generacion_bruta!R116 -> 198.57 | S62: =generacion_bruta!S116 -> 0 | T62: =generacion_bruta!T116 -> 0 | U62: =generacion_bruta!U116 -> 0 | V62: =generacion_bruta!V116 -> 6764.538
B63: Ciclo combinado | C63: =generacion_bruta!C117 -> 6185.609 | D63: =generacion_bruta!D117 -> 175.51 | E63: =generacion_bruta!E117 -> 354.817 | F63: =generacion_bruta!F117 -> 542.55 | G63: =generacion_bruta!G117 -> 4695.019 | H63: =generacion_bruta!H117 -> 3031.7 | I63: =generacion_bruta!I117 -> 0 | J63: =generacion_bruta!J117 -> 1266.46 | K63: =generacion_bruta!K117 -> 0 | L63: =generacion_bruta!L117 -> 6989.706 | M63: =generacion_bruta!M117 -> 0 | N63: =generacion_bruta!N117 -> 0 | O63: =generacion_bruta!O117 -> 670.215 | P63: =generacion_bruta!P117 -> 1015.822 | Q63: =generacion_bruta!Q117 -> 0 | R63: =generacion_bruta!R117 -> 0 | S63: =generacion_bruta!S117 -> 1114.862 | T63: =generacion_bruta!T117 -> 1287.686 | U63: =generacion_bruta!U117 -> 1930.442 | V63: =generacion_bruta!V117 -> 29260.398
B64: Hidroeólica | C64: =generacion_bruta!C118 -> 0 | D64: =generacion_bruta!D118 -> 0 | E64: =generacion_bruta!E118 -> 0 | F64: =generacion_bruta!F118 -> 0 | G64: =generacion_bruta!G118 -> 0 | H64: =generacion_bruta!H118 -> 18.102639 | I64: =generacion_bruta!I118 -> 0 | J64: =generacion_bruta!J118 -> 0 | K64: =generacion_bruta!K118 -> 0 | L64: =generacion_bruta!L118 -> 0 | M64: =generacion_bruta!M118 -> 0 | N64: =generacion_bruta!N118 -> 0 | O64: =generacion_bruta!O118 -> 0 | P64: =generacion_bruta!P118 -> 0 | Q64: =generacion_bruta!Q118 -> 0 | R64: =generacion_bruta!R118 -> 0 | S64: =generacion_bruta!S118 -> 0 | T64: =generacion_bruta!T118 -> 0 | U64: =generacion_bruta!U118 -> 0 | V64: =generacion_bruta!V118 -> 18.102639
B65: Eólica | C65: =generacion_bruta!C119 -> 7060.264593 | D65: =generacion_bruta!D119 -> 4225.959252 | E65: =generacion_bruta!E119 -> 798.145695 | F65: =generacion_bruta!F119 -> 5.416058 | G65: =generacion_bruta!G119 -> 2224.688286 | H65: =generacion_bruta!H119 -> 393.085554 | I65: =generacion_bruta!I119 -> 70.502809 | J65: =generacion_bruta!J119 -> 7680.537222 | K65: =generacion_bruta!K119 -> 10939.94373 | L65: =generacion_bruta!L119 -> 2683.941945 | M65: =generacion_bruta!M119 -> 0 | N65: =generacion_bruta!N119 -> 0 | O65: =generacion_bruta!O119 -> 7318.713076 | P65: =generacion_bruta!P119 -> 933.709781 | Q65: =generacion_bruta!Q119 -> 0 | R65: =generacion_bruta!R119 -> 0 | S65: =generacion_bruta!S119 -> 457.421152 | T65: =generacion_bruta!T119 -> 2571.923076 | U65: =generacion_bruta!U119 -> 332.418067 | V65: =generacion_bruta!V119 -> 47696.6703
B66: Solar fotovoltaica | C66: =generacion_bruta!C120 -> 1525.683551 | D66: =generacion_bruta!D120 -> 295.295939 | E66: =generacion_bruta!E120 -> 0.58737 | F66: =generacion_bruta!F120 -> 120.534661 | G66: =generacion_bruta!G120 -> 514.061468 | H66: =generacion_bruta!H120 -> 277.674761 | I66: =generacion_bruta!I120 -> 2.095262 | J66: =generacion_bruta!J120 -> 1624.757124 | K66: =generacion_bruta!K120 -> 829.744469 | L66: =generacion_bruta!L120 -> 413.621431 | M66: =generacion_bruta!M120 -> 0 | N66: =generacion_bruta!N120 -> 1061.744123 | O66: =generacion_bruta!O120 -> 20.147258 | P66: =generacion_bruta!P120 -> 131.425654 | Q66: =generacion_bruta!Q120 -> 88.527027 | R66: =generacion_bruta!R120 -> 0.078082 | S66: =generacion_bruta!S120 -> 747.019136 | T66: =generacion_bruta!T120 -> 294.940998 | U66: =generacion_bruta!U120 -> 29.661534 | V66: =generacion_bruta!V120 -> 7977.599848
B67: Solar térmica | C67: =generacion_bruta!C121 -> 2194.631009 | D67: =generacion_bruta!D121 -> 0 | E67: =generacion_bruta!E121 -> 0 | F67: =generacion_bruta!F121 -> 0 | G67: =generacion_bruta!G121 -> 70.150953 | H67: =generacion_bruta!H121 -> 0 | I67: =generacion_bruta!I121 -> 0 | J67: =generacion_bruta!J121 -> 721.879998 | K67: =generacion_bruta!K121 -> 0 | L67: =generacion_bruta!L121 -> 70.319427 | M67: =generacion_bruta!M121 -> 0 | N67: =generacion_bruta!N121 -> 1973.457652 | O67: =generacion_bruta!O121 -> 0 | P67: =generacion_bruta!P121 -> 0 | Q67: =generacion_bruta!Q121 -> 0 | R67: =generacion_bruta!R121 -> 0 | S67: =generacion_bruta!S121 -> 40.762663 | T67: =generacion_bruta!T121 -> 0 | U67: =generacion_bruta!U121 -> 0 | V67: =generacion_bruta!V121 -> 5071.201702
B68: Otras renovables | C68: =generacion_bruta!C122 -> 1367.772666 | D68: =generacion_bruta!D122 -> 53.330302 | E68: =generacion_bruta!E122 -> 245.265981 | F68: =generacion_bruta!F122 -> 1.309715 | G68: =generacion_bruta!G122 -> 38.907042 | H68: =generacion_bruta!H122 -> 9.335775 | I68: =generacion_bruta!I122 -> 76.573037 | J68: =generacion_bruta!J122 -> 238.410359 | K68: =generacion_bruta!K122 -> 246.51016 | L68: =generacion_bruta!L122 -> 174.026421 | M68: =generacion_bruta!M122 -> 0 | N68: =generacion_bruta!N122 -> 235.610537 | O68: =generacion_bruta!O122 -> 232.034116 | P68: =generacion_bruta!P122 -> 7.593838 | Q68: =generacion_bruta!Q122 -> 137.921649 | R68: =generacion_bruta!R122 -> 0 | S68: =generacion_bruta!S122 -> 55.348953 | T68: =generacion_bruta!T122 -> 273.716822 | U68: =generacion_bruta!U122 -> 30.889806 | V68: =generacion_bruta!V122 -> 3424.557179
B69: Cogeneración | C69: =generacion_bruta!C123 -> 5102.743263 | D69: =generacion_bruta!D123 -> 2498.912457 | E69: =generacion_bruta!E123 -> 369.745856 | F69: =generacion_bruta!F123 -> 34.701317 | G69: =generacion_bruta!G123 -> 1579.402809 | H69: =generacion_bruta!H123 -> 0 | I69: =generacion_bruta!I123 -> 831.309878 | J69: =generacion_bruta!J123 -> 988.741079 | K69: =generacion_bruta!K123 -> 1857.917275 | L69: =generacion_bruta!L123 -> 4689.194371 | M69: =generacion_bruta!M123 -> 0 | N69: =generacion_bruta!N123 -> 50.701283 | O69: =generacion_bruta!O123 -> 2801.991939 | P69: =generacion_bruta!P123 -> 65.604554 | Q69: =generacion_bruta!Q123 -> 709.290259 | R69: =generacion_bruta!R123 -> 0 | S69: =generacion_bruta!S123 -> 1446.650791 | T69: =generacion_bruta!T123 -> 850.04066 | U69: =generacion_bruta!U123 -> 2029.668237 | V69: =generacion_bruta!V123 -> 25906.61603
B70: Residuos no renovables | C70: =generacion_bruta!C124 -> 181.57978 | D70: =generacion_bruta!D124 -> 366.541587 | E70: =generacion_bruta!E124 -> 707.87569 | F70: =generacion_bruta!F124 -> 130.8051835 | G70: =generacion_bruta!G124 -> 344.800935 | H70: =generacion_bruta!H124 -> 0 | I70: =generacion_bruta!I124 -> 39.0922205 | J70: =generacion_bruta!J124 -> 0 | K70: =generacion_bruta!K124 -> 0 | L70: =generacion_bruta!L124 -> 136.458882 | M70: =generacion_bruta!M124 -> 0 | N70: =generacion_bruta!N124 -> 0 | O70: =generacion_bruta!O124 -> 169.1174265 | P70: =generacion_bruta!P124 -> 0 | Q70: =generacion_bruta!Q124 -> 67.762207 | R70: =generacion_bruta!R124 -> 4.8499525 | S70: =generacion_bruta!S124 -> 0 | T70: =generacion_bruta!T124 -> 0 | U70: =generacion_bruta!U124 -> 458.0799175 | V70: =generacion_bruta!V124 -> 2606.963782
B71: Residuos renovables | C71: =generacion_bruta!C125 -> 0 | D71: =generacion_bruta!D125 -> 0 | E71: =generacion_bruta!E125 -> 0 | F71: =generacion_bruta!F125 -> 130.8050665 | G71: =generacion_bruta!G125 -> 0 | H71: =generacion_bruta!H125 -> 0 | I71: =generacion_bruta!I125 -> 39.0922205 | J71: =generacion_bruta!J125 -> 0 | K71: =generacion_bruta!K125 -> 0 | L71: =generacion_bruta!L125 -> 134.043918 | M71: =generacion_bruta!M125 -> 0 | N71: =generacion_bruta!N125 -> 0 | O71: =generacion_bruta!O125 -> 169.1174265 | P71: =generacion_bruta!P125 -> 0 | Q71: =generacion_bruta!Q125 -> 67.762207 | R71: =generacion_bruta!R125 -> 4.8500525 | S71: =generacion_bruta!S125 -> 0 | T71: =generacion_bruta!T125 -> 0 | U71: =generacion_bruta!U125 -> 239.7241385 | V71: =generacion_bruta!V125 -> 785.3950295
A72: 2017 | B72: Hidráulica | C72: =generacion_bruta!C139 -> 559.7154546 | D72: =generacion_bruta!D139 -> 2411.79845 | E72: =generacion_bruta!E139 -> 981.0889161 | F72: =generacion_bruta!F139 -> 0 | G72: =generacion_bruta!G139 -> 377.6633678 | H72: =generacion_bruta!H139 -> 3.281487 | I72: =generacion_bruta!I139 -> 160.9890272 | J72: =generacion_bruta!J139 -> 409.4536188 | K72: =generacion_bruta!K139 -> 4138.013162 | L72: =generacion_bruta!L139 -> 3720.153158 | M72: =generacion_bruta!M139 -> 0 | N72: =generacion_bruta!N139 -> 1358.708115 | O72: =generacion_bruta!O139 -> 3307.962658 | P72: =generacion_bruta!P139 -> 101.2904004 | Q72: =generacion_bruta!Q139 -> 135.6823106 | R72: =generacion_bruta!R139 -> 0 | S72: =generacion_bruta!S139 -> 72.45690006 | T72: =generacion_bruta!T139 -> 339.680209 | U72: =generacion_bruta!U139 -> 285.8442551 | V72: =generacion_bruta!V139 -> 18363.78149
B73: Turbinación bombeo | C73: =generacion_bruta!C140 -> 146.5207041 | D73: =generacion_bruta!D140 -> 148.838275 | E73: =generacion_bruta!E140 -> 12.6857136 | F73: =generacion_bruta!F140 -> 0 | G73: =generacion_bruta!G140 -> 1011.231914 | H73: =generacion_bruta!H140 -> 0 | I73: =generacion_bruta!I140 -> 400.064735 | J73: =generacion_bruta!J140 -> 41.51776 | K73: =generacion_bruta!K140 -> 331.8822021 | L73: =generacion_bruta!L140 -> 113.5452056 | M73: =generacion_bruta!M140 -> 0 | N73: =generacion_bruta!N140 -> 19.64006648 | O73: =generacion_bruta!O140 -> 23.067282 | P73: =generacion_bruta!P140 -> 0 | Q73: =generacion_bruta!Q140 -> 0 | R73: =generacion_bruta!R140 -> 0 | S73: =generacion_bruta!S140 -> 0 | T73: =generacion_bruta!T140 -> 0 | U73: =generacion_bruta!U140 -> 0 | V73: =generacion_bruta!V140 -> 2248.993858
B74: Nuclear | C74: =generacion_bruta!C141 -> 0 | D74: =generacion_bruta!D141 -> 0 | E74: =generacion_bruta!E141 -> 0 | F74: =generacion_bruta!F141 -> 0 | G74: =generacion_bruta!G141 -> 7050.499 | H74: =generacion_bruta!H141 -> 0 | I74: =generacion_bruta!I141 -> 0 | J74: =generacion_bruta!J141 -> 7980.991 | K74: =generacion_bruta!K141 -> 0 | L74: =generacion_bruta!L141 -> 24232.649 | M74: =generacion_bruta!M141 -> 0 | N74: =generacion_bruta!N141 -> 16344.783 | O74: =generacion_bruta!O141 -> 0 | P74: =generacion_bruta!P141 -> 0 | Q74: =generacion_bruta!Q141 -> 0 | R74: =generacion_bruta!R141 -> 0 | S74: =generacion_bruta!S141 -> 0 | T74: =generacion_bruta!T141 -> 0 | U74: =generacion_bruta!U141 -> 0 | V74: =generacion_bruta!V141 -> 55608.922
B75: Carbón | C75: =generacion_bruta!C142 -> 10550.373 | D75: =generacion_bruta!D142 -> 4711.257 | E75: =generacion_bruta!E142 -> 10104.345 | F75: =generacion_bruta!F142 -> 2603.342 | G75: =generacion_bruta!G142 -> 0 | H75: =generacion_bruta!H142 -> 0 | I75: =generacion_bruta!I142 -> 0 | J75: =generacion_bruta!J142 -> 0 | K75: =generacion_bruta!K142 -> 6409.889 | L75: =generacion_bruta!L142 -> 0 | M75: =generacion_bruta!M142 -> 0 | N75: =generacion_bruta!N142 -> 0 | O75: =generacion_bruta!O142 -> 10817.06 | P75: =generacion_bruta!P142 -> 0 | Q75: =generacion_bruta!Q142 -> 0 | R75: =generacion_bruta!R142 -> 0 | S75: =generacion_bruta!S142 -> 0 | T75: =generacion_bruta!T142 -> 0 | U75: =generacion_bruta!U142 -> 0 | V75: =generacion_bruta!V142 -> 45196.266
B76: Fuel / gas | C76: =generacion_bruta!C143 -> 0 | D76: =generacion_bruta!D143 -> 0 | E76: =generacion_bruta!E143 -> 0 | F76: =generacion_bruta!F143 -> 1367.754 | G76: =generacion_bruta!G143 -> 0 | H76: =generacion_bruta!H143 -> 5239.887 | I76: =generacion_bruta!I143 -> 0 | J76: =generacion_bruta!J143 -> 0 | K76: =generacion_bruta!K143 -> 0 | L76: =generacion_bruta!L143 -> 0 | M76: =generacion_bruta!M143 -> 202.862 | N76: =generacion_bruta!N143 -> 0 | O76: =generacion_bruta!O143 -> 0 | P76: =generacion_bruta!P143 -> 0 | Q76: =generacion_bruta!Q143 -> 0 | R76: =generacion_bruta!R143 -> 200.564 | S76: =generacion_bruta!S143 -> 0 | T76: =generacion_bruta!T143 -> 0 | U76: =generacion_bruta!U143 -> 0 | V76: =generacion_bruta!V143 -> 7011.067
B77: Ciclo combinado | C77: =generacion_bruta!C144 -> 7767.905 | D77: =generacion_bruta!D144 -> 1099.596 | E77: =generacion_bruta!E144 -> 685.076 | F77: =generacion_bruta!F144 -> 426.186 | G77: =generacion_bruta!G144 -> 4173.693 | H77: =generacion_bruta!H144 -> 3015.773 | I77: =generacion_bruta!I144 -> 0 | J77: =generacion_bruta!J144 -> 1666.529 | K77: =generacion_bruta!K144 -> 0 | L77: =generacion_bruta!L144 -> 7892.601 | M77: =generacion_bruta!M144 -> 0 | N77: =generacion_bruta!N144 -> 0 | O77: =generacion_bruta!O144 -> 1762.76 | P77: =generacion_bruta!P144 -> 1689.878 | Q77: =generacion_bruta!Q144 -> 0 | R77: =generacion_bruta!R144 -> 0 | S77: =generacion_bruta!S144 -> 3446.795 | T77: =generacion_bruta!T144 -> 1405.111 | U77: =generacion_bruta!U144 -> 2264.584 | V77: =generacion_bruta!V144 -> 37296.487
B78: Hidroeólica | C78: =generacion_bruta!C145 -> 0 | D78: =generacion_bruta!D145 -> 0 | E78: =generacion_bruta!E145 -> 0 | F78: =generacion_bruta!F145 -> 0 | G78: =generacion_bruta!G145 -> 0 | H78: =generacion_bruta!H145 -> 20.398516 | I78: =generacion_bruta!I145 -> 0 | J78: =generacion_bruta!J145 -> 0 | K78: =generacion_bruta!K145 -> 0 | L78: =generacion_bruta!L145 -> 0 | M78: =generacion_bruta!M145 -> 0 | N78: =generacion_bruta!N145 -> 0 | O78: =generacion_bruta!O145 -> 0 | P78: =generacion_bruta!P145 -> 0 | Q78: =generacion_bruta!Q145 -> 0 | R78: =generacion_bruta!R145 -> 0 | S78: =generacion_bruta!S145 -> 0 | T78: =generacion_bruta!T145 -> 0 | U78: =generacion_bruta!U145 -> 0 | V78: =generacion_bruta!V145 -> 20.398516
B79: Eólica | C79: =generacion_bruta!C146 -> 7189.701545 | D79: =generacion_bruta!D146 -> 4478.169687 | E79: =generacion_bruta!E146 -> 826.673782 | F79: =generacion_bruta!F146 -> 2.924276 | G79: =generacion_bruta!G146 -> 2175.513937 | H79: =generacion_bruta!H146 -> 395.943068 | I79: =generacion_bruta!I146 -> 65.882128 | J79: =generacion_bruta!J146 -> 7504.434283 | K79: =generacion_bruta!K146 -> 10988.59327 | L79: =generacion_bruta!L146 -> 2825.1245 | M79: =generacion_bruta!M146 -> 0 | N79: =generacion_bruta!N146 -> 0 | O79: =generacion_bruta!O146 -> 7001.676526 | P79: =generacion_bruta!P146 -> 976.655417 | Q79: =generacion_bruta!Q146 -> 0 | R79: =generacion_bruta!R146 -> 0 | S79: =generacion_bruta!S146 -> 434.662 | T79: =generacion_bruta!T146 -> 2703.405309 | U79: =generacion_bruta!U146 -> 327.650205 | V79: =generacion_bruta!V146 -> 47897.00993
B80: Solar fotovoltaica | C80: =generacion_bruta!C147 -> 1579.890905 | D80: =generacion_bruta!D147 -> 311.32922 | E80: =generacion_bruta!E147 -> 0.595457 | F80: =generacion_bruta!F147 -> 123.205418 | G80: =generacion_bruta!G147 -> 543.183977 | H80: =generacion_bruta!H147 -> 273.540098 | I80: =generacion_bruta!I147 -> 1.94555 | J80: =generacion_bruta!J147 -> 1742.016914 | K80: =generacion_bruta!K147 -> 895.315233 | L80: =generacion_bruta!L147 -> 420.488717 | M80: =generacion_bruta!M147 -> 0 | N80: =generacion_bruta!N147 -> 1118.869162 | O80: =generacion_bruta!O147 -> 20.79275 | P80: =generacion_bruta!P147 -> 139.475496 | Q80: =generacion_bruta!Q147 -> 91.85357 | R80: =generacion_bruta!R147 -> 0.075193 | S80: =generacion_bruta!S147 -> 773.359442 | T80: =generacion_bruta!T147 -> 317.864443 | U80: =generacion_bruta!U147 -> 31.235193 | V80: =generacion_bruta!V147 -> 8385.036738
B81: Solar térmica | C81: =generacion_bruta!C148 -> 2319.75783 | D81: =generacion_bruta!D148 -> 0 | E81: =generacion_bruta!E148 -> 0 | F81: =generacion_bruta!F148 -> 0 | G81: =generacion_bruta!G148 -> 98.825012 | H81: =generacion_bruta!H148 -> 0 | I81: =generacion_bruta!I148 -> 0 | J81: =generacion_bruta!J148 -> 742.678029 | K81: =generacion_bruta!K148 -> 0 | L81: =generacion_bruta!L148 -> 87.196205 | M81: =generacion_bruta!M148 -> 0 | N81: =generacion_bruta!N148 -> 2056.387518 | O81: =generacion_bruta!O148 -> 0 | P81: =generacion_bruta!P148 -> 0 | Q81: =generacion_bruta!Q148 -> 0 | R81: =generacion_bruta!R148 -> 0 | S81: =generacion_bruta!S148 -> 43.106292 | T81: =generacion_bruta!T148 -> 0 | U81: =generacion_bruta!U148 -> 0 | V81: =generacion_bruta!V148 -> 5347.950886
B82: Otras renovables | C82: =generacion_bruta!C149 -> 1388.417699 | D82: =generacion_bruta!D149 -> 57.833376 | E82: =generacion_bruta!E149 -> 271.442845 | F82: =generacion_bruta!F149 -> 1.626741 | G82: =generacion_bruta!G149 -> 32.430802 | H82: =generacion_bruta!H149 -> 9.565259 | I82: =generacion_bruta!I149 -> 83.494891 | J82: =generacion_bruta!J149 -> 265.550596 | K82: =generacion_bruta!K149 -> 263.332669 | L82: =generacion_bruta!L149 -> 190.729997 | M82: =generacion_bruta!M149 -> 0 | N82: =generacion_bruta!N149 -> 233.859795 | O82: =generacion_bruta!O149 -> 252.743776 | P82: =generacion_bruta!P149 -> 9.109402 | Q82: =generacion_bruta!Q149 -> 150.125387 | R82: =generacion_bruta!R149 -> 0 | S82: =generacion_bruta!S149 -> 53.861952 | T82: =generacion_bruta!T149 -> 305.447179 | U82: =generacion_bruta!U149 -> 44.531423 | V82: =generacion_bruta!V149 -> 3614.103789
B83: Cogeneración | C83: =generacion_bruta!C150 -> 5274.82428 | D83: =generacion_bruta!D150 -> 2967.775543 | E83: =generacion_bruta!E150 -> 392.172133 | F83: =generacion_bruta!F150 -> 36.169351 | G83: =generacion_bruta!G150 -> 1590.502917 | H83: =generacion_bruta!H150 -> 0 | I83: =generacion_bruta!I150 -> 1165.282101 | J83: =generacion_bruta!J150 -> 1088.043923 | K83: =generacion_bruta!K150 -> 2333.151669 | L83: =generacion_bruta!L150 -> 5082.4916 | M83: =generacion_bruta!M150 -> 0 | N83: =generacion_bruta!N150 -> 53.094291 | O83: =generacion_bruta!O150 -> 2825.64776 | P83: =generacion_bruta!P150 -> 74.725204 | Q83: =generacion_bruta!Q150 -> 704.239024 | R83: =generacion_bruta!R150 -> 0 | S83: =generacion_bruta!S150 -> 1688.406075 | T83: =generacion_bruta!T150 -> 903.281042 | U83: =generacion_bruta!U150 -> 1990.638419 | V83: =generacion_bruta!V150 -> 28170.44533
B84: Residuos no renovables | C84: =generacion_bruta!C151 -> 298.960653 | D84: =generacion_bruta!D151 -> 413.402689 | E84: =generacion_bruta!E151 -> 733.90796 | F84: =generacion_bruta!F151 -> 143.878668 | G84: =generacion_bruta!G151 -> 53.738847 | H84: =generacion_bruta!H151 -> 0 | I84: =generacion_bruta!I151 -> 36.8432765 | J84: =generacion_bruta!J151 -> 0 | K84: =generacion_bruta!K151 -> 0 | L84: =generacion_bruta!L151 -> 145.2090725 | M84: =generacion_bruta!M151 -> 0 | N84: =generacion_bruta!N151 -> 0 | O84: =generacion_bruta!O151 -> 178.464568 | P84: =generacion_bruta!P151 -> 0 | Q84: =generacion_bruta!Q151 -> 70.7030845 | R84: =generacion_bruta!R151 -> 4.976986 | S84: =generacion_bruta!S151 -> 0 | T84: =generacion_bruta!T151 -> 0 | U84: =generacion_bruta!U151 -> 527.5821415 | V84: =generacion_bruta!V151 -> 2607.667946
B85: Residuos renovables | C85: =generacion_bruta!C152 -> 0 | D85: =generacion_bruta!D152 -> 0 | E85: =generacion_bruta!E152 -> 0 | F85: =generacion_bruta!F152 -> 143.878668 | G85: =generacion_bruta!G152 -> 0 | H85: =generacion_bruta!H152 -> 0 | I85: =generacion_bruta!I152 -> 36.8432765 | J85: =generacion_bruta!J152 -> 0 | K85: =generacion_bruta!K152 -> 0 | L85: =generacion_bruta!L152 -> 141.3955805 | M85: =generacion_bruta!M152 -> 0 | N85: =generacion_bruta!N152 -> 0 | O85: =generacion_bruta!O152 -> 178.464568 | P85: =generacion_bruta!P152 -> 0 | Q85: =generacion_bruta!Q152 -> 70.7030845 | R85: =generacion_bruta!R152 -> 4.976986 | S85: =generacion_bruta!S152 -> 0 | T85: =generacion_bruta!T152 -> 0 | U85: =generacion_bruta!U152 -> 300.7439235 | V85: =generacion_bruta!V152 -> 877.006087

Sheet datos_RdT (hidden)
B1: 2012
B2: CCAA | C2: Andalucía | D2: Aragón | E2: Asturias | F2: Baleares | G2: C. Valenciana | H2: Canarias | I2: Cantabria | J2: Castilla-La Mancha | K2: Castilla y León | L2: Cataluña | M2: Ceuta | N2: Extremadura | O2: Galicia | P2: La Rioja | Q2: Madrid | R2: Melilla | S2: Murcia | T2: Navarra | U2: País Vasco | V2: TOTAL | W2: MÓVILES | X2: PENINSULAR | Y2: NO PENINSULAR
B3: km líneas 400 kV | C3: 2693.820078 | D3: 1287.54794 | E3: 423.5111643 | G3: 1010.000472 | I3: 238.8627043 | J3: 2538.284496 | K3: 4571.073032 | L3: 2038.357192 | N3: 1676.543958 | O3: 1200.592727 | P3: 114.9490595 | Q3: 915.3560257 | S3: 708.1121371 | T3: 175.9700702 | U3: 515.9183434 | V3: 20108.8994 | X3: 20108.8994 | Y3: 0
B4: km líneas 220 kV | C4: 2978.804155 | D4: 1848.840817 | E4: 420.2268202 | F4: 430.382 | G4: 1116.58226 | H4: 163.353 | I4: 276.5377929 | J4: 1496.730639 | K4: 3206.358862 | L4: 2455.433254 | N4: 740.3378674 | O4: 1318.563 | P4: 156.3322424 | Q4: 1163.770551 | S4: 107.27374 | T4: 318.8290202 | U4: 690.2796786 | V4: 18888.6357 | X4: 18294.9007 | Y4: 593.735
B5: km líneas <220 kV | F5: 1113.149 | H5: 1125.697 | L5: 39.44 | N5: 23 | O5: 12.3 | V5: 2313.586 | X5: 74.74 | Y5: 2238.846
B6: Total km líneas | C6: 5672.624233 | D6: 3136.388758 | E6: 843.7379845 | F6: 1543.531 | G6: 2126.582732 | H6: 1289.05 | I6: 515.4004973 | J6: 4035.015136 | K6: 7777.431894 | L6: 4533.230446 | M6: 0 | N6: 2439.881825 | O6: 2531.455727 | P6: 271.2813019 | Q6: 2079.126577 | R6: 0 | S6: 815.3858771 | T6: 494.7990904 | U6: 1206.198022 | V6: 41311.1211 | X6: 38478.5401 | Y6: 2832.581
B7: =CONCATENATE("Δ" & $B$1 & "/" & $B$1-1) -> Δ2012/2011 | C7: 1.918084185 | D7: 5.313509345 | E7: 0 | F7: 0.1950632446 | G7: 2.51443446 | H7: 0 | I7: 0 | J7: 7.989883223 | K7: 0.3115327521 | L7: 0.0736441001 | N7: 0.1989702968 | O7: 4.709637708 | P7: 6.383738785 | Q7: 0.6615467235 | S7: 1.814308968 | T7: 0 | U7: 0 | V7: 1.998369878 | X7: 2.140491751 | Y7: 0.1061996568
B8: Posiciones 400 kV | C8: 182 | D8: 84 | E8: 43 | G8: 143 | I8: 10 | J8: 104 | K8: 199 | L8: 122 | N8: 84 | O8: 65 | P8: 8 | Q8: 103 | S8: 67 | T8: 27 | U8: 78 | V8: 1319 | X8: 1319 | Y8: 0
B9: Posiciones 220 kV | C9: 401 | D9: 211 | E9: 45 | F9: 69 | G9: 245 | H9: 40 | I9: 46 | J9: 136 | K9: 234 | L9: 575 | N9: 80 | O9: 206 | P9: 30 | Q9: 496 | S9: 34 | T9: 48 | U9: 146 | V9: 3049 | W9: 7 | X9: 2940 | Y9: 109
B10: Posiciones <220 kV | F10: 435 | H10: 363 | L10: 3 | O10: 1 | V10: 802 | X10: 4 | Y10: 798
B11: Total posiciones | C11: 583 | D11: 295 | E11: 88 | F11: 504 | G11: 388 | H11: 403 | I11: 56 | J11: 240 | K11: 433 | L11: 700 | M11: 0 | N11: 164 | O11: 272 | P11: 38 | Q11: 599 | R11: 0 | S11: 101 | T11: 75 | U11: 224 | V11: 5170 | W11: 7 | X11: 4263 | Y11: 907
B12: =CONCATENATE("Δ" & $B$1 & "/" & $B$1-1) -> Δ2012/2011 | C12: 1.745200698 | D12: 3.146853147 | E12: 0 | F12: 0 | G12: 7.182320442 | H12: 0 | I12: 7.692307692 | J12: 12.14953271 | K12: 2.364066194 | L12: 4.166666667 | N12: 12.32876712 | O12: 2.641509434 | P12: 26.66666667 | Q12: 4.355400697 | S12: 16.09195402 | T12: 0 | U12: 1.818181818 | V12: 3.794418791 | W12: 0 | X12: 4.639175258 | Y12: 0
B13: Transformadores | C13: 14420 | D13: 4674 | E13: 1299.2 | F13: 2408 | G13: 7525 | H13: 1625 | I13: 1500 | J13: 1200 | K13: 6131 | L13: 10450 | N13: 1798.875 | O13: 5700 | P13: 600 | Q13: 10348.4 | S13: 3150 | T13: 1000 | U13: 4300 | V13: 78629.475 | W13: 500 | X13: 74596.475 | Y13: 4033
B14: =CONCATENATE("Δ" & $B$1 & "/" & $B$1-1) -> Δ2012/2011 | C14: 5.873715125 | D14: 14.7275405 | E14: 0 | F14: 7.117437722 | G14: 8.664259928 | H14: 0 | I14: 0 | K14: 0 | L14: 11.76470588 | N14: 0 | O14: 0 | Q14: 0 | S14: 0 | T14: 0 | U14: 34.375 | V14: 7.904544393 | W14: 66.66666667 | X14: 8.116356669 | Y14: 4.131164472
B15: 2013
B16: CCAA | C16: Andalucía | D16: Aragón | E16: Asturias | F16: Baleares | G16: C. Valenciana | H16: Canarias | I16: Cantabria | J16: Castilla-La Mancha | K16: Castilla y León | L16: Cataluña | M16: Ceuta | N16: Extremadura | O16: Galicia | P16: La Rioja | Q16: Madrid | R16: Melilla | S16: Murcia | T16: Navarra | U16: País Vasco | V16: TOTAL | W16: MÓVILES | X16: PENINSULAR | Y16: NO PENINSULAR
B17: km líneas 400 kV | C17: 2693.820078 | D17: 1288.14794 | E17: 491.6751643 | G17: 1010.000472 | I17: 238.8627043 | J17: 2538.284496 | K17: 4571.073032 | L17: 2038.357192 | N17: 2094.405958 | O17: 1200.592727 | P17: 114.9490595 | Q17: 915.3560257 | S17: 708.1121371 | T17: 175.9700702 | U17: 559.8823434 | V17: =SUM(C17:U17)+W17 -> 20639.4894 | X17: =V17-F17-H17-M17-R17 -> 20639.4894 | Y17: =F17+H17+M17+R17 -> 0
B18: km líneas 220 kV | C18: 3137.746795 | D18: 1848.840817 | E18: 420.2268202 | F18: 430.382 | G18: 1223.09026 | H18: 163.353 | I18: 276.5377929 | J18: 1496.730639 | K18: 3206.358862 | L18: 2455.433254 | N18: 741.3038674 | O18: 1318.563 | P18: 156.3322424 | Q18: 1170.656551 | S18: 107.27374 | T18: 318.8290202 | U18: 690.2796786 | V18: =SUM(C18:U18)+W18 -> 19161.93834 | X18: =V18-F18-H18-M18-R18 -> 18568.20334 | Y18: =F18+H18+M18+R18 -> 593.735
B19: km líneas <220 kV | F19: 1113.149 | H19: 1125.697 | L19: 39.44 | N19: 23 | O19: 12.3 | V19: 2313.586 | X19: =V19-F19-H19-M19-R19 -> 74.74 | Y19: =F19+H19+M19+R19 -> 2238.846
B20: Total km líneas | C20: 5831.566873 | D20: 3136.988758 | E20: 911.9019845 | F20: 1543.531 | G20: 2233.090732 | H20: 1289.05 | I20: 515.4004973 | J20: 4035.015136 | K20: 7777.431894 | L20: 4533.230446 | M20: 0 | N20: 2858.709825 | O20: 2531.455727 | P20: 271.2813019 | Q20: 2086.012577 | R20: 0 | S20: 815.3858771 | T20: 494.7990904 | U20: 1250.162022 | V20: =SUM(V17:V19) -> 42115.01374 | X20: =SUM(X17:X19) -> 39282.43274 | Y20: 2832.581
B21: =CONCATENATE("Δ" & $B$15 & "/" & $B$15-1) -> Δ2013/2012 | C21: 2.801924356 | D21: 0.01913028156 | E21: 8.078811344 | F21: 0 | G21: 5.008410838 | H21: 0 | I21: 0 | J21: 0 | K21: 0 | L21: 0 | N21: 17.16591335 | O21: -2.220446049e-14 | P21: 0 | Q21: 0.3311967668 | S21: 0 | T21: 0 | U21: 3.644840996 | V21: =(V20/V6-1)*100 -> 1.945947286 | X21: 2.08919735 | Y21: 0
B22: Posiciones 400 kV | C22: 195 | D22: 89 | E22: 52 | G22: 143 | I22: 10 | J22: 106 | K22: 199 | L22: 122 | N22: 103 | O22: 71 | P22: 8 | Q22: 103 | S22: 67 | T22: 28 | U22: 78 | V22: =SUM(C22:U22)+W22 -> 1374 | X22: =V22-F22-H22-M22-R22 -> 1374 | Y22: =F22+H22+M22+R22 -> 0
B23: Posiciones 220 kV | C23: 412 | D23: 213 | E23: 45 | F23: 69 | G23: 271 | H23: 40 | I23: 46 | J23: 137 | K23: 234 | L23: 583 | N23: 87 | O23: 213 | P23: 30 | Q23: 517 | S23: 40 | T23: 49 | U23: 146 | V23: 3139 | W23: 7 | X23: =V23-F23-H23-M23-R23 -> 3030 | Y23: =F23+H23+M23+R23 -> 109
B24: Posiciones <220 kV | F24: 437 | H24: 363 | L24: 3 | O24: 1 | V24: 804 | X24: =V24-F24-H24-M24-R24 -> 4 | Y24: =F24+H24+M24+R24 -> 800
B25: Total posiciones | C25: 607 | D25: 302 | E25: 97 | F25: 506 | G25: 414 | H25: 403 | I25: 56 | J25: 243 | K25: 433 | L25: 708 | M25: 0 | N25: 190 | O25: 285 | P25: 38 | Q25: 620 | R25: 0 | S25: 107 | T25: 77 | U25: 224 | V25: =SUM(V22:V24) -> 5317 | W25: =SUM(W22:W24) -> 7 | X25: =SUM(X22:X24) -> 4408 | Y25: 909
B26: =CONCATENATE("Δ" & $B$15 & "/" & $B$15-1) -> Δ2013/2012 | C26: 4.116638079 | D26: 2.372881356 | E26: 10.22727273 | F26: 0.3968253968 | G26: 6.701030928 | H26: 0 | I26: 0 | J26: 1.25 | K26: 0 | L26: 1.142857143 | N26: 15.85365854 | O26: 4.779411765 | P26: 0 | Q26: 3.505843072 | S26: 5.940594059 | T26: 2.666666667 | U26: 0 | V26: =(V25/V11-1)*100 -> 2.843326886 | W26: 0 | X26: 3.401360544 | Y26: 0.2205071665
B27: Transformadores | C27: 14420 | D27: 4674 | E27: 1299.2 | F27: 2793 | G27: 7600 | H27: 1625 | I27: 2100 | J27: 1200 | K27: 6131 | L27: 10450 | N27: 2398.875 | O27: 5700 | P27: 600 | Q27: 10348.4 | S27: 3150 | T27: 1600 | U27: 4300 | V27: =SUM(C27:U27)+W27 -> 81289.475 | W27: 900 | X27: =V27-F27-H27-M27-R27 -> 76871.475 | Y27: =F27+H27+M27+R27 -> 4418
B28: =CONCATENATE("Δ" & $B$15 & "/" & $B$15-1) -> Δ2013/2012 | C28: =(C27/C13-1)*100 -> 0 | D28: =(D27/D13-1)*100 -> 0 | E28: 0 | F28: 15.98837209 | G28: 0.9966777409 | H28: 0 | I28: 40 | K28: 0 | L28: 0 | N28: 33.3541797 | O28: 0 | Q28: 0 | S28: 0 | T28: 60 | U28: 0 | V28: 3.38295531 | W28: 80 | X28: =(X27/X13-1)*100 -> 3.049741962 | Y28: 9.546243491
B29: 2014
B30: CCAA | C30: Andalucía | D30: Aragón | E30: Asturias | F30: Baleares | G30: C. Valenciana | H30: Canarias | I30: Cantabria | J30: Castilla-La Mancha | K30: Castilla y León | L30: Cataluña | M30: Ceuta | N30: Extremadura | O30: Galicia | P30: La Rioja | Q30: Madrid | R30: Melilla | S30: Murcia | T30: Navarra | U30: País Vasco | V30: TOTAL | W30: MÓVILES | X30: PENINSULAR | Y30: NO PENINSULAR
B31: km líneas 400 kV | C31: 2769.149578 | D31: 1288.14794 | E31: 491.6751643 | F31: 0 | G31: 1010.000472 | H31: 0 | I31: 238.8627043 | J31: 2578.534496 | K31: 4571.073032 | L31: 2185.196192 | N31: 2285.508458 | O31: 1201.105727 | P31: 114.9490595 | Q31: 915.3560257 | S31: 708.1121371 | T31: 175.9700702 | U31: 559.8823434 | V31: =SUM(C31:U31)+W31 -> 21093.5234 | X31: =V31-F31-H31-M31-R31 -> 21093.5234 | Y31: =F31+H31+M31+R31 -> 0
B32: km líneas 220 kV | C32: 3168.957795 | D32: 1848.840817 | E32: 420.2268202 | F32: 431.098 | G32: 1264.01826 | H32: 163.353 | I32: 276.5377929 | J32: 1496.730639 | K32: 3206.358862 | L32: 2463.693254 | N32: 787.3738674 | O32: 1324.479 | P32: 156.3322424 | Q32: 1177.349551 | S32: 107.27374 | T32: 318.8290202 | U32: 690.2796786 | V32: =SUM(C32:U32)+W32 -> 19301.73234 | X32: =V32-F32-H32-M32-R32 -> 18707.28134 | Y32: =F32+H32+M32+R32 -> 594.451
B33: km líneas <220 kV | F33: 1113.884 | H33: 1125.782 | L33: 39.44 | N33: 23 | O33: 12.3 | V33: 2314.406 | X33: =V33-F33-H33-M33-R33 -> 74.74 | Y33: =F33+H33+M33+R33 -> 2239.666
B34: Total km líneas | C34: 5938.107373 | D34: 3136.988758 | E34: 911.9019845 | F34: 1544.982 | G34: 2274.018732 | H34: 1289.135 | I34: 515.4004973 | J34: 4075.265136 | K34: 7777.431894 | L34: 4688.329446 | M34: 0 | N34: 3095.882325 | O34: 2537.884727 | P34: 271.2813019 | Q34: 2092.705577 | R34: 0 | S34: 815.3858771 | T34: 494.7990904 | U34: 1250.162022 | V34: =SUM(V31:V33) -> 42709.66174 | X34: =SUM(X31:X33) -> 39875.54474 | Y34: 2834.117
B35: =CONCATENATE("Δ" & $B$29 & "/" & $B$29-1) -> Δ2014/2013 | C35: 1.826961815 | D35: 0 | E35: 0 | F35: 0.09400523864 | G35: 1.832796107 | H35: 0.006594003336 | I35: 0 | J35: 0.9975179435 | K35: 0 | L35: 3.421379121 | N35: 8.296487383 | O35: 0.2539645442 | P35: 0 | Q35: 0.3208513734 | S35: 0 | T35: 0 | U35: 0 | V35: =(V34/V20-1)*100 -> 1.411962023 | X35: 1.509865756 | Y35: 0.05422616335
B36: Posiciones 400 kV | C36: 195 | D36: 89 | E36: 52 | G36: 143 | I36: 10 | J36: 112 | K36: 200 | L36: 133 | N36: 103 | O36: 71 | P36: 8 | Q36: 103 | S36: 69 | T36: 28 | U36: 78 | V36: =SUM(C36:U36)+W36 -> 1394 | X36: =V36-F36-H36-M36-R36 -> 1394 | Y36: =F36+H36+M36+R36 -> 0
B37: Posiciones 220 kV | C37: 416 | D37: 213 | E37: 45 | F37: 75 | G37: 291 | H37: 40 | I37: 46 | J37: 137 | K37: 234 | L37: 589 | N37: 88 | O37: 216 | P37: 30 | Q37: 521 | S37: 46 | T37: 49 | U37: 147 | V37: 3190 | W37: 7 | X37: =V37-F37-H37-M37-R37 -> 3075 | Y37: =F37+H37+M37+R37 -> 115
B38: Posiciones <220 kV | F38: 455 | H38: 369 | L38: 3 | O38: 1 | V38: 828 | X38: =V38-F38-H38-M38-R38 -> 4 | Y38: =F38+H38+M38+R38 -> 824
B39: Total posiciones | C39: 611 | D39: 302 | E39: 97 | F39: 530 | G39: 434 | H39: 409 | I39: 56 | J39: 249 | K39: 434 | L39: 725 | M39: 0 | N39: 191 | O39: 288 | P39: 38 | Q39: 624 | R39: 0 | S39: 115 | T39: 77 | U39: 225 | V39: =SUM(V36:V38) -> 5412 | W39: =SUM(W36:W38) -> 7 | X39: =SUM(X36:X38) -> 4473 | Y39: 939
B40: =CONCATENATE("Δ" & $B$29 & "/" & $B$29-1) -> Δ2014/2013 | C40: 0.6589785832 | D40: 0 | E40: 0 | F40: 4.743083004 | G40: 4.830917874 | H40: 1.488833747 | I40: 0 | J40: 2.469135802 | K40: 0.2309468822 | L40: 2.401129944 | N40: 0.5263157895 | O40: 1.052631579 | P40: 0 | Q40: 0.6451612903 | S40: 7.476635514 | T40: 0 | U40: 0.4464285714 | V40: =(V39/V25-1)*100 -> 1.786721836 | W40: 0 | X40: 1.474591652 | Y40: 3.300330033
B41: Transformadores | C41: 14420 | D41: 4674 | E41: 1299.2 | F41: 2793 | G41: 7600 | H41: 1875 | I41: 2100 | J41: 1200 | K41: 6131 | L41: 11650 | N41: 2398.875 | O41: 5700 | P41: 600 | Q41: 11548.4 | S41: 3150 | T41: 1600 | U41: 4300 | V41: =SUM(C41:U41)+W41 -> 83939.475 | W41: 900 | X41: =V41-F41-H41-M41-R41 -> 79271.475 | Y41: =F41+H41+M41+R41 -> 4668
B42: =CONCATENATE("Δ" & $B$29 & "/" & $B$29-1) -> Δ2014/2013 | C42: =(C41/C27-1)*100 -> 0 | D42: =(D41/D27-1)*100 -> 0 | E42: 0 | F42: 0 | G42: 0 | H42: 15.38461538 | I42: 0 | J42: 0 | K42: 0 | L42: 11.48325359 | N42: 0 | O42: 0 | Q42: 11.59599552 | S42: 0 | T42: 0 | U42: 0 | V42: 3.259954625 | W42: 0 | X42: 3.122094379 | Y42: 5.658669081
B43: 2015
B44: CCAA | C44: Andalucía | D44: Aragón | E44: Asturias | F44: Baleares | G44: C. Valenciana | H44: Canarias | I44: Cantabria | J44: Castilla-La Mancha | K44: Castilla y León | L44: Cataluña | M44: Ceuta | N44: Extremadura | O44: Galicia | P44: La Rioja | Q44: Madrid | R44: Melilla | S44: Murcia | T44: Navarra | U44: País Vasco | V44: TOTAL | W44: MÓVILES | X44: PENINSULAR | Y44: NO PENINSULAR
B45: km líneas 400 kV | C45: 2769.149578 | D45: 1331.49794 | E45: 491.6751643 | F45: 0 | G45: 1018.009472 | H45: 0 | I45: 240.5127043 | J45: 2578.534496 | K45: 4572.484032 | L45: 2185.196192 | N45: 2285.508458 | O45: 1201.105727 | P45: 114.9490595 | Q45: 915.3560257 | S45: 708.1121371 | T45: 175.9700702 | U45: 595.7783434 | V45: =SUM(C45:U45)+W45 -> 21183.8394 | X45: =V45-F45-H45-M45-R45 -> 21183.8394 | Y45: =F45+H45+M45+R45 -> 0
B46: km líneas 220 kV | C46: 3201.047795 | D46: 1848.840817 | E46: 420.2268202 | F46: 431.37 | G46: 1264.14826 | H46: 215.867 | I46: 293.0877929 | J46: 1496.730639 | K46: 3206.358862 | L46: 2481.353254 | N46: 861.2438674 | O46: 1324.479 | P46: 156.3322424 | Q46: 1177.349551 | S46: 107.27374 | T46: 318.8290202 | U46: 690.2796786 | V46: =SUM(C46:U46)+W46 -> 19494.81834 | X46: =V46-F46-H46-M46-R46 -> 18847.58134 | Y46: =F46+H46+M46+R46 -> 647.237
B47: km líneas <220 kV | F47: 1242.324 | H47: 1131.092 | L47: 39.44 | N47: 23 | O47: 12.3 | V47: 2448.156 | X47: =V47-F47-H47-M47-R47 -> 74.74 | Y47: =F47+H47+M47+R47 -> 2373.416
B48: Total km líneas | C48: 5970.197373 | D48: 3180.338758 | E48: 911.9019845 | F48: 1673.694 | G48: 2282.157732 | H48: 1346.959 | I48: 533.6004973 | J48: 4075.265136 | K48: 7778.842894 | L48: 4705.989446 | M48: 0 | N48: 3169.752325 | O48: 2537.884727 | P48: 271.2813019 | Q48: 2092.705577 | R48: 0 | S48: 815.3858771 | T48: 494.7990904 | U48: 1286.058022 | V48: =SUM(V45:V47) -> 43126.81374 | X48: =SUM(X45:X47) -> 40106.16074 | Y48: 3020.653
B49: =CONCATENATE("Δ" & $B$43 & "/" & $B$43-1) -> Δ2015/2014 | C49: 0.5404078772 | D49: 1.381898481 | E49: 0 | F49: 8.330970846 | G49: 0.3579126191 | H49: 4.485488331 | I49: 3.531234467 | J49: 0 | K49: 0.01814223537 | L49: 0.3766800137 | N49: 2.386072603 | O49: 0 | P49: 0 | Q49: 0 | S49: 0 | T49: 0 | U49: 2.871307828 | V49: =(V48/V34-1)*100 -> 0.9767157664 | X49: =(X48/X34-1)*100 -> 0.5783394346 | Y49: 6.58180308
B50: Posiciones 400 kV | C50: 195 | D50: 98 | E50: 52 | G50: 153 | I50: 15 | J50: 112 | K50: 219 | L50: 136 | N50: 103 | O50: 71 | P50: 8 | Q50: 103 | S50: 69 | T50: 28 | U50: 79 | V50: =SUM(C50:U50)+W50 -> 1441 | X50: =V50-F50-H50-M50-R50 -> 1441 | Y50: =F50+H50+M50+R50 -> 0
B51: Posiciones 220 kV | C51: 436 | D51: 214 | E51: 45 | F51: 75 | G51: 291 | H51: 46 | I51: 50 | J51: 137 | K51: 242 | L51: 595 | N51: 88 | O51: 216 | P51: 30 | Q51: 521 | S51: 48 | T51: 49 | U51: 147 | V51: 3237 | W51: 7 | X51: =V51-F51-H51-M51-R51 -> 3116 | Y51: =F51+H51+M51+R51 -> 121
B52: Posiciones <220 kV | F52: 488 | H52: 378 | L52: 3 | O52: 1 | V52: 870 | X52: =V52-F52-H52-M52-R52 -> 4 | Y52: =F52+H52+M52+R52 -> 866
B53: Total posiciones | C53: 631 | D53: 312 | E53: 97 | F53: 563 | G53: 444 | H53: 424 | I53: 65 | J53: 249 | K53: 461 | L53: 734 | M53: 0 | N53: 191 | O53: 288 | P53: 38 | Q53: 624 | R53: 0 | S53: 117 | T53: 77 | U53: 226 | V53: =SUM(V50:V52) -> 5548 | W53: =SUM(W50:W52) -> 7 | X53: =SUM(X50:X52) -> 4561 | Y53: 987
B54: =CONCATENATE("Δ" & $B$43 & "/" & $B$43-1) -> Δ2015/2014 | C54: 3.273322422 | D54: 3.311258278 | E54: 0 | F54: 6.226415094 | G54: 2.304147465 | H54: 3.667481663 | I54: 16.07142857 | J54: 0 | K54: 6.221198157 | L54: 1.24137931 | N54: 0 | O54: 0 | P54: 0 | Q54: 0 | S54: 1.739130435 | T54: 0 | U54: 0.4444444444 | V54: =(V53/V39-1)*100 -> 2.51293422 | W54: 0 | X54: 1.967359714 | Y54: 5.111821086
B55: Transformadores | C55: 14420 | D55: 4674 | E55: 1299.2 | F55: 3273 | G55: 7600 | H55: 2000 | I55: 2100 | J55: 1200 | K55: 6131 | L55: 11650 | N55: 2398.875 | O55: 5700 | P55: 600 | Q55: 11548.4 | S55: 3150 | T55: 1600 | U55: 4300 | V55: =SUM(C55:U55)+W55 -> 84544.475 | W55: 900 | X55: =V55-F55-H55-M55-R55 -> 79271.475 | Y55: =F55+H55+M55+R55 -> 5273
B56: =CONCATENATE("Δ" & $B$43 & "/" & $B$43-1) -> Δ2015/2014 | C56: =(C55/C41-1)*100 -> 0 | D56: =(D55/D41-1)*100 -> 0 | E56: 0 | F56: 17.1858217 | G56: 0 | H56: 6.666666667 | I56: 0 | J56: 0 | K56: 0 | L56: 0 | N56: 0 | O56: 0 | P56: 0 | Q56: 0 | S56: 0 | T56: 0 | U56: 0 | V56: 0.7207574267 | W56: 0 | X56: 0 | Y56: =(Y55/Y41-1)*100 -> 12.96058269
B57: 2016
B58: CCAA | C58: Andalucía | D58: Aragón | E58: Asturias | F58: Baleares | G58: C. Valenciana | H58: Canarias | I58: Cantabria | J58: Castilla-La Mancha | K58: Castilla y León | L58: Cataluña | M58: Ceuta | N58: Extremadura | O58: Galicia | P58: La Rioja | Q58: Madrid | R58: Melilla | S58: Murcia | T58: Navarra | U58: País Vasco | V58: TOTAL | W58: MÓVILES | X58: PENINSULAR | Y58: NO PENINSULAR
B59: km líneas 400 kV | C59: 2769.149578 | D59: 1520.63494 | E59: 529.2951643 | F59: 0 | G59: 1100.562472 | H59: 0 | I59: 240.5127043 | J59: 2578.534496 | K59: 4572.484032 | L59: 2185.196192 | N59: 2285.508458 | O59: 1326.937727 | P59: 114.9490595 | Q59: 915.3560257 | S59: 708.1121371 | T59: 175.9700702 | U59: 595.7783434 | V59: =SUM(C59:U59)+W59 -> 21618.9814 | X59: =V59-F59-H59-M59-R59 -> 21618.9814 | Y59: =F59+H59+M59+R59 -> 0
B60: km líneas 220 kV | C60: 3225.994 | D60: 1848.84 | E60: 420.226 | F60: 432.224 | G60: 1291.975 | H60: 220.243 | I60: 293.087 | J60: 1496.73 | K60: 3206.358862 | L60: 2499.21 | N60: 861.24 | O60: 1325.179 | P60: 156.3322424 | Q60: 1177.34 | S60: 123.86974 | T60: 318.82 | U60: 690.309 | V60: =SUM(C60:U60)+W60 -> 19587.97784 | X60: =V60-F60-H60-M60-R60 -> 18935.51084 | Y60: =F60+H60+M60+R60 -> 652.467
B61: km líneas <220 kV | F61: 1367.809 | H61: 1133.922 | L61: 39.44 | N61: 23 | O61: 12.3 | V61: 2576.471 | X61: =V61-F61-H61-M61-R61 -> 74.74 | Y61: =F61+H61+M61+R61 -> 2501.731
B62: Total km líneas | C62: 5995.143578 | D62: 3369.47494 | E62: 949.5211643 | F62: 1800.033 | G62: 2392.537472 | H62: 1354.165 | I62: 533.5997043 | J62: 4075.264496 | K62: 7778.842894 | L62: 4723.846192 | M62: 0 | N62: 3169.748458 | O62: 2664.416727 | P62: 271.2813019 | Q62: 2092.696026 | R62: 0 | S62: 831.9818771 | T62: 494.7900702 | U62: 1286.087343 | V62: =SUM(V59:V61) -> 43783.43024 | X62: =SUM(X59:X61) -> 40629.23224 | Y62: 3154.198
B63: =CONCATENATE("Δ" & $B$57 & "/" & $B$57-1) -> Δ2016/2015 | C63: 0.4178455667 | D63: 5.947045186 | E63: 4.12535343 | F63: 7.548512452 | G63: 4.836639399 | H63: 0.5349828762 | I63: -0.000148599804 | J63: -1.569217195e-05 | K63: 0 | L63: 0.3794472157 | N63: -0.0001220102962 | O63: 4.985726839 | P63: 0 | Q63: -0.0004563879442 | S63: 2.035355341 | T63: -0.001823002951 | U63: 0.002279944526 | V63: =(V62/V48-1)*100 -> 1.522524961 | X63: 1.304217344 | Y63: 4.421063922
B64: Posiciones 400 kV | C64: 196 | D64: 98 | E64: 52 | G64: 167 | I64: 15 | J64: 113 | K64: 219 | L64: 136 | N64: 103 | O64: 71 | P64: 8 | Q64: 103 | S64: 69 | T64: 28 | U64: 80 | V64: =SUM(C64:U64)+W64 -> 1458 | X64: =V64-F64-H64-M64-R64 -> 1458 | Y64: =F64+H64+M64+R64 -> 0
B65: Posiciones 220 kV | C65: 438 | D65: 214 | E65: 45 | F65: 76 | G65: 297 | H65: 55 | I65: 50 | J65: 137 | K65: 243 | L65: 595 | N65: 88 | O65: 222 | P65: 30 | Q65: 523 | S65: 48 | T65: 49 | U65: 148 | V65: =SUM(C65:U65)+W65 -> 3265 | W65: 7 | X65: =V65-F65-H65-M65-R65 -> 3134 | Y65: =F65+H65+M65+R65 -> 131
B66: Posiciones <220 kV | F66: 495 | H66: 389 | L66: 3 | O66: 1 | V66: 888 | X66: =V66-F66-H66-M66-R66 -> 4 | Y66: =F66+H66+M66+R66 -> 884
B67: Total posiciones | C67: 634 | D67: 312 | E67: 97 | F67: 571 | G67: 464 | H67: 444 | I67: 65 | J67: 250 | K67: 462 | L67: 734 | M67: 0 | N67: 191 | O67: 294 | P67: 38 | Q67: 626 | R67: 0 | S67: 117 | T67: 77 | U67: 228 | V67: =SUM(V64:V66) -> 5611 | W67: =SUM(W64:W66) -> 7 | X67: =SUM(X64:X66) -> 4596 | Y67: 1015
B68: =CONCATENATE("Δ" & $B$57 & "/" & $B$57-1) -> Δ2016/2015 | C68: 0.4754358162 | D68: 0 | E68: 0 | F68: 1.420959147 | G68: 4.504504505 | H68: 4.716981132 | I68: 0 | J68: 0.4016064257 | K68: 0.2169197397 | L68: 0 | N68: 0 | O68: 2.083333333 | P68: 0 | Q68: 0.3205128205 | S68: 0 | T68: 0 | U68: 0.8849557522 | V68: =(V67/V53-1)*100 -> 1.13554434 | W68: 0 | X68: 0.7673755755 | Y68: 2.836879433
B69: Transformadores | C69: 14420 | D69: 4974 | E69: 1299.2 | F69: 3273 | G69: 8200 | H69: 2000 | I69: 2100 | J69: 1200 | K69: 6131 | L69: 11650 | N69: 2398.875 | O69: 5700 | P69: 600 | Q69: 11548.4 | S69: 3150 | T69: 1600 | U69: 4300 | V69: =SUM(C69:U69)+W69 -> 85444.475 | W69: 900 | X69: =V69-F69-H69-M69-R69 -> 80171.475 | Y69: =F69+H69+M69+R69 -> 5273
B70: =CONCATENATE("Δ" & $B$57 & "/" & $B$57-1) -> Δ2016/2015 | C70: =(C69/C55-1)*100 -> 0 | D70: =(D69/D55-1)*100 -> 6.418485237 | E70: 0 | F70: 0 | G70: 7.894736842 | H70: 0 | I70: 0 | J70: 0 | K70: 0 | L70: 0 | N70: 0 | O70: 0 | P70: 0 | Q70: 0 | S70: 0 | T70: 0 | U70: 0 | V70: 1.064528463 | W70: 0 | X70: 1.135339036 | Y70: 0
B71: 2017
B72: CCAA | C72: Andalucía | D72: Aragón | E72: Asturias | F72: Baleares | G72: C. Valenciana | H72: Canarias | I72: Cantabria | J72: Castilla-La Mancha | K72: Castilla y León | L72: Cataluña | M72: Ceuta | N72: Extremadura | O72: Galicia | P72: La Rioja | Q72: Madrid | R72: Melilla | S72: Murcia | T72: Navarra | U72: País Vasco | V72: TOTAL | W72: MÓVILES | X72: PENINSULAR | Y72: NO PENINSULAR
B73: km líneas 400 kV | C73: 2769.149578 | D73: 1520.63494 | E73: 529.2951643 | F73: 0 | G73: 1100.562472 | H73: 0 | I73: 240.5127043 | J73: 2612.814496 | K73: 4620.178032 | L73: 2185.665192 | N73: 2285.508458 | O73: 1326.937727 | P73: 114.9490595 | Q73: 942.1000257 | S73: 708.1121371 | T73: 175.9700702 | U73: 595.7783434 | V73: =SUM(C73:U73)+W73 -> 21728.1684 | X73: =V73-F73-H73-M73-R73 -> 21728.1684 | Y73: =F73+H73+M73+R73 -> 0
B74: km líneas 220 kV | C74: 3225.994 | D74: 1858.52 | E74: 420.226 | F74: 432.224 | G74: 1307.602 | H74: 220.243 | I74: 293.087 | J74: 1496.73 | K74: 3206.358862 | L74: 2502.11 | N74: 861.24 | O74: 1325.219 | P74: 156.3322424 | Q74: 1177.38 | S74: 123.86974 | T74: 318.82 | U74: 690.423 | V74: =SUM(C74:U74)+W74 -> 19616.37884 | X74: =V74-F74-H74-M74-R74 -> 18963.91184 | Y74: =F74+H74+M74+R74 -> 652.467
B75: km líneas <220 kV | F75: 1376.092 | H75: 1134.854 | L75: 39.44 | N75: 23 | O75: 12.3 | V75: 2585.686 | X75: =V75-F75-H75-M75-R75 -> 74.74 | Y75: =F75+H75+M75+R75 -> 2510.946
B76: Total km líneas | C76: =SUM(C73:C75) -> 5995.143578 | D76: =SUM(D73:D75) -> 3379.15494 | E76: 949.5211643 | F76: 1808.316 | G76: 2408.164472 | H76: 1355.097 | I76: 533.5997043 | J76: 4109.544496 | K76: 7826.536894 | L76: 4727.215192 | M76: 0 | N76: 3169.748458 | O76: 2664.456727 | P76: 271.2813019 | Q76: 2119.480026 | R76: 0 | S76: 831.9818771 | T76: 494.7900702 | U76: 1286.201343 | V76: =SUM(V73:V75) -> 43930.23324 | X76: =SUM(X73:X75) -> 40766.82024 | Y76: 3163.413
B77: =CONCATENATE("Δ" & $B$71 & "/" & $B$71-1) -> Δ2017/2016 | C77: =(C76/C62-1)*100 -> 0 | D77: =(D76/D62-1)*100 -> 0.2872851163 | E77: 0 | F77: 0.4601582304 | G77: 0.6531559144 | H77: 0.06882470009 | I77: 0 | J77: 0.8411723959 | K77: 0.613124608 | L77: 0.07131900285 | N77: 0 | O77: 0.00150126666 | P77: 0 | Q77: 1.279880101 | S77: 0 | T77: 0 | U77: 0.008864094696 | V77: =(V76/V62-1)*100 -> 0.3352935099 | X77: =(X76/X62-1)*100 -> 0.3386428746 | Y77: 0.2921503343
B78: Posiciones 400 kV | C78: 196 | D78: 99 | E78: 52 | G78: 171 | I78: 15 | J78: 113 | K78: 233 | L78: 142 | N78: 103 | O78: 71 | P78: 8 | Q78: 104 | S78: 69 | T78: 28 | U78: 80 | V78: =SUM(C78:U78)+W78 -> 1484 | X78: =V78-F78-H78-M78-R78 -> 1484 | Y78: =F78+H78+M78+R78 -> 0
B79: Posiciones 220 kV | C79: 438 | D79: 215 | E79: 45 | F79: 76 | G79: 310 | H79: 55 | I79: 50 | J79: 139 | K79: 243 | L79: 602 | N79: 88 | O79: 222 | P79: 30 | Q79: 523 | S79: 48 | T79: 50 | U79: 150 | V79: =SUM(C79:U79)+W79 -> 3291 | W79: 7 | X79: =V79-F79-H79-M79-R79 -> 3160 | Y79: =F79+H79+M79+R79 -> 131
B80: Posiciones <220 kV | F80: 501 | H80: 439 | L80: 3 | O80: 1 | V80: 944 | X80: =V80-F80-H80-M80-R80 -> 4 | Y80: =F80+H80+M80+R80 -> 940
B81: Total posiciones | C81: =SUM(C78:C80) -> 634 | D81: =SUM(D78:D80) -> 314 | E81: 97 | F81: 577 | G81: 481 | H81: 494 | I81: 65 | J81: 252 | K81: 476 | L81: 747 | M81: 0 | N81: 191 | O81: 294 | P81: 38 | Q81: 627 | R81: 0 | S81: 117 | T81: 78 | U81: 230 | V81: =SUM(V78:V80) -> 5719 | W81: =SUM(W78:W80) -> 7 | X81: =SUM(X78:X80) -> 4648 | Y81: 1071
B82: =CONCATENATE("Δ" & $B$71 & "/" & $B$71-1) -> Δ2017/2016 | C82: =(C81/C67-1)*100 -> 0 | D82: =(D81/D67-1)*100 -> 0.641025641 | E82: 0 | F82: 1.050788091 | G82: 3.663793103 | H82: 11.26126126 | I82: 0 | J82: 0.8 | K82: 3.03030303 | L82: 1.771117166 | N82: 0 | O82: 0 | P82: 0 | Q82: 0.1597444089 | S82: 0 | T82: 1.298701299 | U82: 0.8771929825 | V82: =(V81/V67-1)*100 -> 1.92479059 | W82: 0 | X82: 1.131418625 | Y82: 5.517241379
B83: Transformadores | C83: 14420 | D83: 4974 | E83: 1299.2 | F83: 3273 | G83: 8200 | H83: 2560 | I83: 2100 | J83: 1200 | K83: 6131 | L83: 11750 | N83: 2398.875 | O83: 5700 | P83: 600 | Q83: 11548.4 | S83: 3150 | T83: 1600 | U83: 4850 | V83: =SUM(C83:U83)+W83 -> 86654.475 | W83: 900 | X83: =V83-F83-H83-M83-R83 -> 80821.475 | Y83: =F83+H83+M83+R83 -> 5833
B84: =CONCATENATE("Δ" & $B$71 & "/" & $B$71-1) -> Δ2017/2016 | C84: =(C83/C69-1)*100 -> 0 | D84: =(D83/D69-1)*100 -> 0 | E84: 0 | F84: 0 | G84: 0 | H84: 28 | I84: 0 | J84: 0 | K84: 0 | L84: 0.8583690987 | N84: 0 | O84: 0 | P84: 0 | Q84: 0 | S84: 0 | T84: 0 | U84: 12.79069767 | V84: =(V83/V69-1)*100 -> 1.416124331 | W84: 0 | X84: 0.8107621819 | Y84: 10.62014034

Sheet EVOLUCION_RdT (hidden)
B2: evolución líneas | C2: Andalucía | D2: Aragón | E2: Asturias | F2: Baleares | G2: C. Valenciana | H2: Canarias | I2: Cantabria | J2: Castilla-La Mancha | K2: Castilla y León | L2: Cataluña | M2: Ceuta | N2: Extremadura | O2: Galicia | P2: La Rioja | Q2: Madrid | R2: Melilla | S2: Murcia | T2: Navarra | U2: País Vasco | V2: TOTAL | W2: MÓVILES | X2: Resto nacional
A3: 2012 | B3: líneas | C3: =datos_RdT!C6 -> 5672.624233 | D3: =datos_RdT!D6 -> 3136.388758 | E3: =datos_RdT!E6 -> 843.7379845 | F3: =datos_RdT!F6 -> 1543.531 | G3: =datos_RdT!G6 -> 2126.582732 | H3: =datos_RdT!H6 -> 1289.05 | I3: =datos_RdT!I6 -> 515.4004973 | J3: =datos_RdT!J6 -> 4035.015136 | K3: =datos_RdT!K6 -> 7777.431894 | L3: =datos_RdT!L6 -> 4533.230446 | M3: =datos_RdT!M6 -> 0 | N3: =datos_RdT!N6 -> 2439.881825 | O3: =datos_RdT!O6 -> 2531.455727 | P3: =datos_RdT!P6 -> 271.2813019 | Q3: =datos_RdT!Q6 -> 2079.126577 | R3: =datos_RdT!R6 -> 0 | S3: =datos_RdT!S6 -> 815.3858771 | T3: =datos_RdT!T6 -> 494.7990904 | U3: =datos_RdT!U6 -> 1206.198022 | V3: =SUM(C3:U3) -> 41311.1211 | X3: =V3-Q3 -> 39231.99452
A4: 2012 | B4: posiciones | C4: =datos_RdT!C11 -> 583 | D4: =datos_RdT!D11 -> 295 | E4: =datos_RdT!E11 -> 88 | F4: =datos_RdT!F11 -> 504 | G4: =datos_RdT!G11 -> 388 | H4: =datos_RdT!H11 -> 403 | I4: =datos_RdT!I11 -> 56 | J4: =datos_RdT!J11 -> 240 | K4: =datos_RdT!K11 -> 433 | L4: =datos_RdT!L11 -> 700 | M4: =datos_RdT!M11 -> 0 | N4: =datos_RdT!N11 -> 164 | O4: =datos_RdT!O11 -> 272 | P4: =datos_RdT!P11 -> 38 | Q4: =datos_RdT!Q11 -> 599 | R4: =datos_RdT!R11 -> 0 | S4: =datos_RdT!S11 -> 101 | T4: =datos_RdT!T11 -> 75 | U4: =datos_RdT!U11 -> 224 | V4: =SUM(C4:U4)+W4 -> 5170 | W4: =datos_RdT!W11 -> 7 | X4: =V4-Q4 -> 4571
A5: 2012 | B5: transformadores | C5: =datos_RdT!C13 -> 14420 | D5: =datos_RdT!D13 -> 4674 | E5: =datos_RdT!E13 -> 1299.2 | F5: =datos_RdT!F13 -> 2408 | G5: =datos_RdT!G13 -> 7525 | H5: =datos_RdT!H13 -> 1625 | I5: =datos_RdT!I13 -> 1500 | J5: =datos_RdT!J13 -> 1200 | K5: =datos_RdT!K13 -> 6131 | L5: =datos_RdT!L13 -> 10450 | M5: =datos_RdT!M13 -> 0 | N5: =datos_RdT!N13 -> 1798.875 | O5: =datos_RdT!O13 -> 5700 | P5: =datos_RdT!P13 -> 600 | Q5: =datos_RdT!Q13 -> 10348.4 | R5: =datos_RdT!R13 -> 0 | S5: =datos_RdT!S13 -> 3150 | T5: =datos_RdT!T13 -> 1000 | U5: =datos_RdT!U13 -> 4300 | V5: =SUM(C5:U5) -> 78129.475 | W5: =datos_RdT!W13 -> 500 | X5: =V5-Q5 -> 67781.075
A6: 2012 | B6: líneas | C6: =datos_RdT!C7/100 -> 0.01918084185 | D6: =datos_RdT!D7/100 -> 0.05313509345 | E6: =datos_RdT!E7/100 -> 0 | F6: =datos_RdT!F7/100 -> 0.001950632446 | G6: =datos_RdT!G7/100 -> 0.0251443446 | H6: =datos_RdT!H7/100 -> 0 | I6: =datos_RdT!I7/100 -> 0 | J6: =datos_RdT!J7/100 -> 0.07989883223 | K6: =datos_RdT!K7/100 -> 0.003115327521 | L6: =datos_RdT!L7/100 -> 0.000736441001 | M6: =datos_RdT!M7/100 -> 0 | N6: =datos_RdT!N7/100 -> 0.001989702968 | O6: =datos_RdT!O7/100 -> 0.04709637708 | P6: =datos_RdT!P7/100 -> 0.06383738785 | Q6: =datos_RdT!Q7/100 -> 0.006615467235 | R6: =datos_RdT!R7/100 -> 0 | S6: =datos_RdT!S7/100 -> 0.01814308968 | T6: =datos_RdT!T7/100 -> 0 | U6: =datos_RdT!U7/100 -> 0 | V6: =datos_RdT!V7/100 -> 0.01998369878
A7: 2012 | B7: posiciones | C7: =datos_RdT!C12/100 -> 0.01745200698 | D7: =datos_RdT!D12/100 -> 0.03146853147 | E7: =datos_RdT!E12/100 -> 0 | F7: =datos_RdT!F12/100 -> 0 | G7: =datos_RdT!G12/100 -> 0.07182320442 | H7: =datos_RdT!H12/100 -> 0 | I7: =datos_RdT!I12/100 -> 0.07692307692 | J7: =datos_RdT!J12/100 -> 0.1214953271 | K7: =datos_RdT!K12/100 -> 0.02364066194 | L7: =datos_RdT!L12/100 -> 0.04166666667 | M7: =datos_RdT!M12/100 -> 0 | N7: =datos_RdT!N12/100 -> 0.1232876712 | O7: =datos_RdT!O12/100 -> 0.02641509434 | P7: =datos_RdT!P12/100 -> 0.2666666667 | Q7: =datos_RdT!Q12/100 -> 0.04355400697 | R7: =datos_RdT!R12/100 -> 0 | S7: =datos_RdT!S12/100 -> 0.1609195402 | T7: =datos_RdT!T12/100 -> 0 | U7: =datos_RdT!U12/100 -> 0.01818181818 | V7: =datos_RdT!V12/100 -> 0.03794418791
A8: 2012 | B8: transformadores | C8: =datos_RdT!C14/100 -> 0.05873715125 | D8: =datos_RdT!D14/100 -> 0.147275405 | E8: =datos_RdT!E14/100 -> 0 | F8: =datos_RdT!F14/100 -> 0.07117437722 | G8: =datos_RdT!G14/100 -> 0.08664259928 | H8: =datos_RdT!H14/100 -> 0 | I8: =datos_RdT!I14/100 -> 0 | J8: =datos_RdT!J14/100 -> 0 | K8: =datos_RdT!K14/100 -> 0 | L8: =datos_RdT!L14/100 -> 0.1176470588 | M8: =datos_RdT!M14/100 -> 0 | N8: =datos_RdT!N14/100 -> 0 | O8: =datos_RdT!O14/100 -> 0 | P8: =datos_RdT!P14/100 -> 0 | Q8: =datos_RdT!Q14/100 -> 0 | R8: =datos_RdT!R14/100 -> 0 | S8: =datos_RdT!S14/100 -> 0 | T8: =datos_RdT!T14/100 -> 0 | U8: =datos_RdT!U14/100 -> 0.34375 | V8: =datos_RdT!V14/100 -> 0.07904544393
A9: 2013 | B9: líneas | C9: =datos_RdT!C20 -> 5831.566873 | D9: =datos_RdT!D20 -> 3136.988758 | E9: =datos_RdT!E20 -> 911.9019845 | F9: =datos_RdT!F20 -> 1543.531 | G9: =datos_RdT!G20 -> 2233.090732 | H9: =datos_RdT!H20 -> 1289.05 | I9: =datos_RdT!I20 -> 515.4004973 | J9: =datos_RdT!J20 -> 4035.015136 | K9: =datos_RdT!K20 -> 7777.431894 | L9: =datos_RdT!L20 -> 4533.230446 | M9: =datos_RdT!M20 -> 0 | N9: =datos_RdT!N20 -> 2858.709825 | O9: =datos_RdT!O20 -> 2531.455727 | P9: =datos_RdT!P20 -> 271.2813019 | Q9: =datos_RdT!Q20 -> 2086.012577 | R9: =datos_RdT!R20 -> 0 | S9: =datos_RdT!S20 -> 815.3858771 | T9: =datos_RdT!T20 -> 494.7990904 | U9: =datos_RdT!U20 -> 1250.162022 | V9: =SUM(C9:U9) -> 42115.01374 | X9: =V9-Q9 -> 40029.00116
A10: 2013 | B10: posiciones | C10: =datos_RdT!C25 -> 607 | D10: =datos_RdT!D25 -> 302 | E10: =datos_RdT!E25 -> 97 | F10: =datos_RdT!F25 -> 506 | G10: =datos_RdT!G25 -> 414 | H10: =datos_RdT!H25 -> 403 | I10: =datos_RdT!I25 -> 56 | J10: =datos_RdT!J25 -> 243 | K10: =datos_RdT!K25 -> 433 | L10: =datos_RdT!L25 -> 708 | M10: =datos_RdT!M25 -> 0 | N10: =datos_RdT!N25 -> 190 | O10: =datos_RdT!O25 -> 285 | P10: =datos_RdT!P25 -> 38 | Q10: =datos_RdT!Q25 -> 620 | R10: =datos_RdT!R25 -> 0 | S10: =datos_RdT!S25 -> 107 | T10: =datos_RdT!T25 -> 77 | U10: =datos_RdT!U25 -> 224 | V10: =SUM(C10:U10)+W10 -> 5317 | W10: =datos_RdT!W25 -> 7 | X10: =V10-Q10 -> 4697
A11: 2013 | B11: transformadores | C11: =datos_RdT!C27 -> 14420 | D11: =datos_RdT!D27 -> 4674 | E11: =datos_RdT!E27 -> 1299.2 | F11: =datos_RdT!F27 -> 2793 | G11: =datos_RdT!G27 -> 7600 | H11: =datos_RdT!H27 -> 1625 | I11: =datos_RdT!I27 -> 2100 | J11: =datos_RdT!J27 -> 1200 | K11: =datos_RdT!K27 -> 6131 | L11: =datos_RdT!L27 -> 10450 | M11: =datos_RdT!M27 -> 0 | N11: =datos_RdT!N27 -> 2398.875 | O11: =datos_RdT!O27 -> 5700 | P11: =datos_RdT!P27 -> 600 | Q11: =datos_RdT!Q27 -> 10348.4 | R11: =datos_RdT!R27 -> 0 | S11: =datos_RdT!S27 -> 3150 | T11: =datos_RdT!T27 -> 1600 | U11: =datos_RdT!U27 -> 4300 | V11: =SUM(C11:U11) -> 80389.475 | W11: =datos_RdT!W27 -> 900 | X11: =V11-Q11 -> 70041.075
A12: 2013 | B12: líneas | C12: =(C9/C3-1) -> 0.02801924356 | D12: =(D9/D3-1) -> 0.0001913028156 | E12: =(E9/E3-1) -> 0.08078811344 | F12: =(F9/F3-1) -> 0 | G12: 0.05008410838 | H12: 0 | I12: 0 | J12: 0 | K12: 0 | L12: 0 | N12: 0.1716591335 | O12: -2.220446049e-16 | P12: 0 | Q12: 0.003311967668 | S12: 0 | T12: 0 | U12: 0.03644840996 | V12: 0.01945947286
A13: 2013 | B13: posiciones | C13: =(C10/C4-1) -> 0.04116638079 | D13: =(D10/D4-1) -> 0.02372881356 | E13: 0.1022727273 | F13: 0.003968253968 | G13: 0.06701030928 | H13: 0 | I13: 0 | J13: 0.0125 | K13: 0 | L13: 0.01142857143 | N13: 0.1585365854 | O13: 0.04779411765 | P13: 0 | Q13: 0.03505843072 | S13: 0.05940594059 | T13: 0.02666666667 | U13: 0 | V13: 0.02843326886
A14: 2013 | B14: transformadores | C14: =(C11/C5-1) -> 0 | D14: =(D11/D5-1) -> 0 | E14: 0 | F14: 0.1598837209 | G14: 0.009966777409 | H14: 0 | I14: 0.4 | K14: 0 | L14: 0 | N14: 0.333541797 | O14: 0 | Q14: 0 | S14: 0 | T14: 0.6 | U14: 0 | V14: 0.0289263431
A15: 2014 | B15: líneas | C15: =datos_RdT!C34 -> 5938.107373 | D15: =datos_RdT!D34 -> 3136.988758 | E15: =datos_RdT!E34 -> 911.9019845 | F15: =datos_RdT!F34 -> 1544.982 | G15: =datos_RdT!G34 -> 2274.018732 | H15: =datos_RdT!H34 -> 1289.135 | I15: =datos_RdT!I34 -> 515.4004973 | J15: =datos_RdT!J34 -> 4075.265136 | K15: =datos_RdT!K34 -> 7777.431894 | L15: =datos_RdT!L34 -> 4688.329446 | M15: =datos_RdT!M34 -> 0 | N15: =datos_RdT!N34 -> 3095.882325 | O15: =datos_RdT!O34 -> 2537.884727 | P15: =datos_RdT!P34 -> 271.2813019 | Q15: =datos_RdT!Q34 -> 2092.705577 | R15: =datos_RdT!R34 -> 0 | S15: =datos_RdT!S34 -> 815.3858771 | T15: =datos_RdT!T34 -> 494.7990904 | U15: =datos_RdT!U34 -> 1250.162022 | V15: =SUM(C15:U15) -> 42709.66174 | X15: =V15-Q15 -> 40616.95616
A16: 2014 | B16: posiciones | C16: =datos_RdT!C39 -> 611 | D16: =datos_RdT!D39 -> 302 | E16: =datos_RdT!E39 -> 97 | F16: =datos_RdT!F39 -> 530 | G16: =datos_RdT!G39 -> 434 | H16: =datos_RdT!H39 -> 409 | I16: =datos_RdT!I39 -> 56 | J16: =datos_RdT!J39 -> 249 | K16: =datos_RdT!K39 -> 434 | L16: =datos_RdT!L39 -> 725 | M16: =datos_RdT!M39 -> 0 | N16: =datos_RdT!N39 -> 191 | O16: =datos_RdT!O39 -> 288 | P16: =datos_RdT!P39 -> 38 | Q16: =datos_RdT!Q39 -> 624 | R16: =datos_RdT!R39 -> 0 | S16: =datos_RdT!S39 -> 115 | T16: =datos_RdT!T39 -> 77 | U16: =datos_RdT!U39 -> 225 | V16: =SUM(C16:U16)+W16 -> 5412 | W16: =datos_RdT!W39 -> 7 | X16: =V16-Q16 -> 4788
A17: 2014 | B17: transformadores | C17: =datos_RdT!C41 -> 14420 | D17: =datos_RdT!D41 -> 4674 | E17: =datos_RdT!E41 -> 1299.2 | F17: =datos_RdT!F41 -> 2793 | G17: =datos_RdT!G41 -> 7600 | H17: =datos_RdT!H41 -> 1875 | I17: =datos_RdT!I41 -> 2100 | J17: =datos_RdT!J41 -> 1200 | K17: =datos_RdT!K41 -> 6131 | L17: =datos_RdT!L41 -> 11650 | M17: =datos_RdT!M41 -> 0 | N17: =datos_RdT!N41 -> 2398.875 | O17: =datos_RdT!O41 -> 5700 | P17: =datos_RdT!P41 -> 600 | Q17: =datos_RdT!Q41 -> 11548.4 | R17: =datos_RdT!R41 -> 0 | S17: =datos_RdT!S41 -> 3150 | T17: =datos_RdT!T41 -> 1600 | U17: =datos_RdT!U41 -> 4300 | V17: =SUM(C17:U17) -> 83039.475 | W17: =datos_RdT!W41 -> 900 | X17: =V17-Q17 -> 71491.075
A18: 2014 | B18: líneas | C18: =(C15/C9-1) -> 0.01826961815 | D18: =(D15/D9-1) -> 0 | E18: 0 | F18: 0.0009400523864 | G18: 0.01832796107 | H18: 6.594003336e-05 | I18: 0 | J18: 0.009975179435 | K18: 0 | L18: 0.03421379121 | N18: 0.08296487383 | O18: 0.002539645442 | P18: 0 | Q18: 0.003208513734 | S18: 0 | T18: 0 | U18: 0 | V18: 0.01411962023
A19: 2014 | B19: posiciones | C19: =(C16/C10-1) -> 0.006589785832 | D19: =(D16/D10-1) -> 0 | E19: 0 | F19: 0.04743083004 | G19: 0.04830917874 | H19: 0.01488833747 | I19: 0 | J19: 0.02469135802 | K19: 0.002309468822 | L19: 0.02401129944 | N19: 0.005263157895 | O19: 0.01052631579 | P19: 0 | Q19: 0.006451612903 | S19: 0.07476635514 | T19: 0 | U19: 0.004464285714 | V19: 0.01786721836
A20: 2014 | B20: transformadores | C20: =(C17/C11-1) -> 0 | D20: =(D17/D11-1) -> 0 | E20: 0 | F20: 0 | G20: 0 | H20: 0.1538461538 | I20: 0 | J20: =(J17/J11-1) -> 0 | K20: 0 | L20: 0.1148325359 | N20: 0 | O20: 0 | Q20: 0.1159599552 | S20: 0 | T20: 0 | U20: 0 | V20: 0.03296451432
A21: 2015 | B21: líneas | C21: =datos_RdT!C48 -> 5970.197373 | D21: =datos_RdT!D48 -> 3180.338758 | E21: =datos_RdT!E48 -> 911.9019845 | F21: =datos_RdT!F48 -> 1673.694 | G21: =datos_RdT!G48 -> 2282.157732 | H21: =datos_RdT!H48 -> 1346.959 | I21: =datos_RdT!I48 -> 533.6004973 | J21: =datos_RdT!J48 -> 4075.265136 | K21: =datos_RdT!K48 -> 7778.842894 | L21: =datos_RdT!L48 -> 4705.989446 | M21: =datos_RdT!M48 -> 0 | N21: =datos_RdT!N48 -> 3169.752325 | O21: =datos_RdT!O48 -> 2537.884727 | P21: =datos_RdT!P48 -> 271.2813019 | Q21: =datos_RdT!Q48 -> 2092.705577 | R21: =datos_RdT!R48 -> 0 | S21: =datos_RdT!S48 -> 815.3858771 | T21: =datos_RdT!T48 -> 494.7990904 | U21: =datos_RdT!U48 -> 1286.058022 | V21: =SUM(C21:U21) -> 43126.81374 | X21: =V21-Q21 -> 41034.10816
A22: 2015 | B22: posiciones | C22: =datos_RdT!C53 -> 631 | D22: =datos_RdT!D53 -> 312 | E22: =datos_RdT!E53 -> 97 | F22: =datos_RdT!F53 -> 563 | G22: =datos_RdT!G53 -> 444 | H22: =datos_RdT!H53 -> 424 | I22: =datos_RdT!I53 -> 65 | J22: =datos_RdT!J53 -> 249 | K22: =datos_RdT!K53 -> 461 | L22: =datos_RdT!L53 -> 734 | M22: =datos_RdT!M53 -> 0 | N22: =datos_RdT!N53 -> 191 | O22: =datos_RdT!O53 -> 288 | P22: =datos_RdT!P53 -> 38 | Q22: =datos_RdT!Q53 -> 624 | R22: =datos_RdT!R53 -> 0 | S22: =datos_RdT!S53 -> 117 | T22: =datos_RdT!T53 -> 77 | U22: =datos_RdT!U53 -> 226 | V22: =SUM(C22:U22)+W22 -> 5548 | W22: =datos_RdT!W53 -> 7 | X22: =V22-Q22 -> 4924
A23: 2015 | B23: transformadores | C23: =datos_RdT!C55 -> 14420 | D23: =datos_RdT!D55 -> 4674 | E23: =datos_RdT!E55 -> 1299.2 | F23: =datos_RdT!F55 -> 3273 | G23: =datos_RdT!G55 -> 7600 | H23: =datos_RdT!H55 -> 2000 | I23: =datos_RdT!I55 -> 2100 | J23: =datos_RdT!J55 -> 1200 | K23: =datos_RdT!K55 -> 6131 | L23: =datos_RdT!L55 -> 11650 | M23: =datos_RdT!M55 -> 0 | N23: =datos_RdT!N55 -> 2398.875 | O23: =datos_RdT!O55 -> 5700 | P23: =datos_RdT!P55 -> 600 | Q23: =datos_RdT!Q55 -> 11548.4 | R23: =datos_RdT!R55 -> 0 | S23: =datos_RdT!S55 -> 3150 | T23: =datos_RdT!T55 -> 1600 | U23: =datos_RdT!U55 -> 4300 | V23: =SUM(C23:U23) -> 83644.475 | W23: =datos_RdT!W55 -> 900 | X23: =V23-Q23 -> 72096.075
A24: 2015 | B24: líneas | C24: =(C21/C15-1) -> 0.005404078772 | D24: =(D21/D15-1) -> 0.01381898481 | E24: 0 | F24: 0.08330970846 | G24: 0.003579126191 | H24: 0.04485488331 | I24: 0.03531234467 | J24: 0 | K24: 0.0001814223537 | L24: 0.003766800137 | N24: 0.02386072603 | O24: 0 | P24: 0 | Q24: 0 | S24: 0 | T24: 0 | U24: 0.02871307828 | V24: 0.009767157664
A25: 2015 | B25: posiciones | C25: =(C22/C16-1) -> 0.03273322422 | D25: =(D22/D16-1) -> 0.03311258278 | E25: 0 | F25: 0.06226415094 | G25: 0.02304147465 | H25: 0.03667481663 | I25: 0.1607142857 | J25: 0 | K25: 0.06221198157 | L25: 0.0124137931 | N25: 0 | O25: 0 | P25: 0 | Q25: 0 | S25: 0.01739130435 | T25: 0 | U25: 0.004444444444 | V25: 0.0251293422
A26: 2015 | B26: transformadores | C26: =(C23/C17-1) -> 0 | D26: =(D23/D17-1) -> 0 | E26: 0 | F26: 0.171858217 | G26: 0 | H26: 0.06666666667 | I26: 0 | J26: 0 | K26: 0 | L26: 0 | N26: 0 | O26: 0 | P26: 0 | Q26: 0 | S26: 0 | T26: 0 | U26: 0 | V26: 0.007285691534
A27: 2016 | B27: líneas | C27: =datos_RdT!C62 -> 5995.143578 | D27: =datos_RdT!D62 -> 3369.47494 | E27: =datos_RdT!E62 -> 949.5211643 | F27: =datos_RdT!F62 -> 1800.033 | G27: =datos_RdT!G62 -> 2392.537472 | H27: =datos_RdT!H62 -> 1354.165 | I27: =datos_RdT!I62 -> 533.5997043 | J27: =datos_RdT!J62 -> 4075.264496 | K27: =datos_RdT!K62 -> 7778.842894 | L27: =datos_RdT!L62 -> 4723.846192 | M27: =datos_RdT!M62 -> 0 | N27: =datos_RdT!N62 -> 3169.748458 | O27: =datos_RdT!O62 -> 2664.416727 | P27: =datos_RdT!P62 -> 271.2813019 | Q27: =datos_RdT!Q62 -> 2092.696026 | R27: =datos_RdT!R62 -> 0 | S27: =datos_RdT!S62 -> 831.9818771 | T27: =datos_RdT!T62 -> 494.7900702 | U27: =datos_RdT!U62 -> 1286.087343 | V27: 43783.43024 | X27: =V27-Q27 -> 41690.73422
A28: 2016 | B28: posiciones | C28: =datos_RdT!C67 -> 634 | D28: =datos_RdT!D67 -> 312 | E28: =datos_RdT!E67 -> 97 | F28: =datos_RdT!F67 -> 571 | G28: =datos_RdT!G67 -> 464 | H28: =datos_RdT!H67 -> 444 | I28: =datos_RdT!I67 -> 65 | J28: =datos_RdT!J67 -> 250 | K28: =datos_RdT!K67 -> 462 | L28: =datos_RdT!L67 -> 734 | M28: =datos_RdT!M67 -> 0 | N28: =datos_RdT!N67 -> 191 | O28: =datos_RdT!O67 -> 294 | P28: =datos_RdT!P67 -> 38 | Q28: =datos_RdT!Q67 -> 626 | R28: =datos_RdT!R67 -> 0 | S28: =datos_RdT!S67 -> 117 | T28: =datos_RdT!T67 -> 77 | U28: =datos_RdT!U67 -> 228 | V28: =SUM(C28:U28)+W28 -> 5611 | W28: =datos_RdT!W67 -> 7 | X28: =V28-Q28 -> 4985
A29: 2016 | B29: transformadores | C29: =datos_RdT!C69 -> 14420 | D29: =datos_RdT!D69 -> 4974 | E29: =datos_RdT!E69 -> 1299.2 | F29: =datos_RdT!F69 -> 3273 | G29: =datos_RdT!G69 -> 8200 | H29: =datos_RdT!H69 -> 2000 | I29: =datos_RdT!I69 -> 2100 | J29: =datos_RdT!J69 -> 1200 | K29: =datos_RdT!K69 -> 6131 | L29: =datos_RdT!L69 -> 11650 | M29: =datos_RdT!M69 -> 0 | N29: =datos_RdT!N69 -> 2398.875 | O29: =datos_RdT!O69 -> 5700 | P29: =datos_RdT!P69 -> 600 | Q29: =datos_RdT!Q69 -> 11548.4 | R29: =datos_RdT!R69 -> 0 | S29: =datos_RdT!S69 -> 3150 | T29: =datos_RdT!T69 -> 1600 | U29: =datos_RdT!U69 -> 4300 | V29: =SUM(C29:U29) -> 84544.475 | W29: =datos_RdT!W69 -> 900 | X29: =V29-Q29 -> 72996.075
A30: 2016 | B30: líneas | C30: =(C27/C21-1) -> 0.004178455667 | D30: =(D27/D21-1) -> 0.05947045186 | E30: 0.0412535343 | F30: 0.07548512452 | G30: 0.04836639399 | H30: 0.005349828762 | I30: -1.48599804e-06 | J30: -1.569217195e-07 | K30: 0 | L30: 0.003794472157 | N30: -1.220102962e-06 | O30: 0.04985726839 | P30: 0 | Q30: -4.563879442e-06 | S30: 0.02035355341 | T30: -1.823002951e-05 | U30: 2.279944526e-05 | V30: 0.01522524961
A31: 2016 | B31: posiciones | C31: =(C28/C22-1) -> 0.004754358162 | D31: =(D28/D22-1) -> 0 | E31: 0 | F31: 0.01420959147 | G31: 0.04504504505 | H31: 0.04716981132 | I31: 0 | J31: 0.004016064257 | K31: 0.002169197397 | L31: 0 | N31: 0 | O31: 0.02083333333 | P31: 0 | Q31: 0.003205128205 | S31: 0 | T31: 0 | U31: 0.008849557522 | V31: 0.0113554434
A32: 2016 | B32: transformadores | C32: =(C29/C23-1) -> 0 | D32: =(D29/D23-1) -> 0.06418485237 | E32: 0 | F32: 0 | G32: 0.07894736842 | H32: 0 | I32: 0 | J32: 0 | K32: 0 | L32: 0 | N32: 0 | O32: 0 | P32: 0 | Q32: 0 | S32: 0 | T32: 0 | U32: 0 | V32: 0.01075982604
A33: 2017 | B33: líneas | C33: =datos_RdT!C76 -> 5995.143578 | D33: =datos_RdT!D76 -> 3379.15494 | E33: =datos_RdT!E76 -> 949.5211643 | F33: =datos_RdT!F76 -> 1808.316 | G33: =datos_RdT!G76 -> 2408.164472 | H33: =datos_RdT!H76 -> 1355.097 | I33: =datos_RdT!I76 -> 533.5997043 | J33: =datos_RdT!J76 -> 4109.544496 | K33: =datos_RdT!K76 -> 7826.536894 | L33: =datos_RdT!L76 -> 4727.215192 | M33: =datos_RdT!M76 -> 0 | N33: =datos_RdT!N76 -> 3169.748458 | O33: =datos_RdT!O76 -> 2664.456727 | P33: =datos_RdT!P76 -> 271.2813019 | Q33: =datos_RdT!Q76 -> 2119.480026 | R33: =datos_RdT!R76 -> 0 | S33: =datos_RdT!S76 -> 831.9818771 | T33: =datos_RdT!T76 -> 494.7900702 | U33: =datos_RdT!U76 -> 1286.201343 | V33: =datos_RdT!V76 -> 43930.23324 | X33: =V33-Q33 -> 41810.75322
A34: 2017 | B34: posiciones | C34: =datos_RdT!C81 -> 634 | D34: =datos_RdT!D81 -> 314 | E34: =datos_RdT!E81 -> 97 | F34: =datos_RdT!F81 -> 577 | G34: =datos_RdT!G81 -> 481 | H34: =datos_RdT!H81 -> 494 | I34: =datos_RdT!I81 -> 65 | J34: =datos_RdT!J81 -> 252 | K34: =datos_RdT!K81 -> 476 | L34: =datos_RdT!L81 -> 747 | M34: =datos_RdT!M81 -> 0 | N34: =datos_RdT!N81 -> 191 | O34: =datos_RdT!O81 -> 294 | P34: =datos_RdT!P81 -> 38 | Q34: =datos_RdT!Q81 -> 627 | R34: =datos_RdT!R81 -> 0 | S34: =datos_RdT!S81 -> 117 | T34: =datos_RdT!T81 -> 78 | U34: =datos_RdT!U81 -> 230 | V34: =datos_RdT!V81 -> 5719 | W34: =datos_RdT!W81 -> 7 | X34: =V34-Q34 -> 5092
A35: 2017 | B35: transformadores | C35: =datos_RdT!C83 -> 14420 | D35: =datos_RdT!D83 -> 4974 | E35: =datos_RdT!E83 -> 1299.2 | F35: =datos_RdT!F83 -> 3273 | G35: =datos_RdT!G83 -> 8200 | H35: =datos_RdT!H83 -> 2560 | I35: =datos_RdT!I83 -> 2100 | J35: =datos_RdT!J83 -> 1200 | K35: =datos_RdT!K83 -> 6131 | L35: =datos_RdT!L83 -> 11750 | M35: =datos_RdT!M83 -> 0 | N35: =datos_RdT!N83 -> 2398.875 | O35: =datos_RdT!O83 -> 5700 | P35: =datos_RdT!P83 -> 600 | Q35: =datos_RdT!Q83 -> 11548.4 | R35: =datos_RdT!R83 -> 0 | S35: =datos_RdT!S83 -> 3150 | T35: =datos_RdT!T83 -> 1600 | U35: =datos_RdT!U83 -> 4850 | V35: =datos_RdT!V83 -> 86654.475 | W35: =datos_RdT!W83 -> 900 | X35: =V35-Q35 -> 75106.075
A36: 2017 | B36: líneas | C36: =(C33/C27-1) -> 0 | D36: =(D33/D27-1) -> 0.002872851163 | E36: 0 | F36: 0.004601582304 | G36: 0.006531559144 | H36: 0.0006882470009 | I36: 0 | J36: 0.008411723959 | K36: 0.00613124608 | L36: 0.0007131900285 | N36: 0 | O36: 1.50126666e-05 | P36: 0 | Q36: 0.01279880101 | S36: 0 | T36: 0 | U36: 8.864094696e-05 | V36: 0.003352935099
A37: 2017 | B37: posiciones | C37: =(C34/C28-1) -> 0 | D37: =(D34/D28-1) -> 0.00641025641 | E37: 0 | F37: 0.01050788091 | G37: 0.03663793103 | H37: 0.1126126126 | I37: 0 | J37: 0.008 | K37: 0.0303030303 | L37: 0.01771117166 | N37: 0 | O37: 0 | P37: 0 | Q37: 0.001597444089 | S37: 0 | T37: 0.01298701299 | U37: 0.008771929825 | V37: 0.0192479059
A38: 2017 | B38: transformadores | C38: =(C35/C29-1) -> 0 | D38: =(D35/D29-1) -> 0 | E38: 0 | F38: 0 | G38: 0 | H38: 0.28 | I38: 0 | J38: 0 | K38: 0 | L38: 0.008583690987 | N38: 0 | O38: 0 | P38: 0 | Q38: 0 | S38: 0 | T38: 0 | U38: 0.1279069767 | V38: 0.0249572784

Sheet Año (hidden)
B2: 2012
B3: 2013
B4: 2014
B5: 2015
B6: 2016
B7: 2017

Sheet datos_anual (hidden)
B2: CCAA | C2: Andalucía | D2: Aragón | E2: Asturias | F2: Baleares | G2: C. Valenciana | H2: Canarias | I2: Cantabria | J2: Castilla-La Mancha | K2: Castilla y León | L2: Cataluña | M2: Ceuta | N2: Extremadura | O2: Galicia | P2: La Rioja | Q2: Madrid | R2: Melilla | S2: Murcia | T2: Navarra | U2: País Vasco | V2: España
A3: 2012 | B3: Generación neta | C3: =generacion_bruta!C18 -> 38034.55808 | D3: =generacion_bruta!D18 -> 16619.00326 | E3: =generacion_bruta!E18 -> 14352.79512 | F3: =generacion_bruta!F18 -> 5252.35054 | G3: =generacion_bruta!G18 -> 20250.40817 | H3: =generacion_bruta!H18 -> 8892.540459 | I3: =generacion_bruta!I18 -> 2627.778026 | J3: =generacion_bruta!J18 -> 24866.88303 | K3: =generacion_bruta!K18 -> 35310.08241 | L3: =generacion_bruta!L18 -> 44093.2426 | M3: =generacion_bruta!M18 -> 212.075 | N3: =generacion_bruta!N18 -> 18509.40218 | O3: =generacion_bruta!O18 -> 29240.85546 | P3: =generacion_bruta!P18 -> 2765.164941 | Q3: =generacion_bruta!Q18 -> 1670.499509 | R3: =generacion_bruta!R18 -> 217.353072 | S3: =generacion_bruta!S18 -> 6413.758441 | T3: =generacion_bruta!T18 -> 5550.978807 | U3: =generacion_bruta!U18 -> 8501.565002 | V3: =SUM(C3:U3) -> 283381.2941
B4: Consumos en bombeo | C4: =generacion_bruta!C19 -> -434.632 | D4: =generacion_bruta!D19 -> -351.542 | E4: =generacion_bruta!E19 -> -52.418 | F4: =generacion_bruta!F19 -> 0 | G4: =generacion_bruta!G19 -> -1114.342 | H4: =generacion_bruta!H19 -> 0 | I4: =generacion_bruta!I19 -> -795.603 | J4: =generacion_bruta!J19 -> -156.032 | K4: =generacion_bruta!K19 -> -1401.482 | L4: =generacion_bruta!L19 -> -381.441 | M4: =generacion_bruta!M19 -> 0 | N4: =generacion_bruta!N19 -> -15.193 | O4: =generacion_bruta!O19 -> -319.864 | P4: =generacion_bruta!P19 -> 0 | Q4: =generacion_bruta!Q19 -> 0 | R4: =generacion_bruta!R19 -> 0 | S4: =generacion_bruta!S19 -> 0 | T4: =generacion_bruta!T19 -> 0 | U4: =generacion_bruta!U19 -> 0 | V4: =SUM(C4:U4) -> -5022.549
B5: Saldo Intercambios | C5: =generacion_bruta!C20 -> 2108.937 | D5: =generacion_bruta!D20 -> -6028.722 | E5: =generacion_bruta!E20 -> -3960.954 | F5: =generacion_bruta!F20 -> 570.251 | G5: =generacion_bruta!G20 -> 7340.41 | H5: =generacion_bruta!H20 -> 0 | I5: =generacion_bruta!I20 -> 2567.336 | J5: =generacion_bruta!J20 -> -12690.622 | K5: =generacion_bruta!K20 -> -20179.093 | L5: =generacion_bruta!L20 -> 4039.265 | M5: =generacion_bruta!M20 -> 0 | N5: =generacion_bruta!N20 -> -13604.637 | O5: =generacion_bruta!O20 -> -9270.303 | P5: =generacion_bruta!P20 -> -1032.283 | Q5: =generacion_bruta!Q20 -> 29330.89 | R5: =generacion_bruta!R20 -> 0 | S5: =generacion_bruta!S20 -> 2193.349 | T5: =generacion_bruta!T20 -> -752.15 | U5: =generacion_bruta!U20 -> 8168.372 | V5: -11199.954
B6: Demanda B.C | C6: =generacion_bruta!C21 -> 39708.86308 | D6: =generacion_bruta!D21 -> 10238.73926 | E6: =generacion_bruta!E21 -> 10339.42312 | F6: =generacion_bruta!F21 -> 5822.60154 | G6: =generacion_bruta!G21 -> 26476.47617 | H6: =generacion_bruta!H21 -> 8892.540459 | I6: =generacion_bruta!I21 -> 4399.511026 | J6: =generacion_bruta!J21 -> 12020.22903 | K6: =generacion_bruta!K21 -> 13729.50741 | L6: =generacion_bruta!L21 -> 47751.0666 | M6: =generacion_bruta!M21 -> 212.075 | N6: =generacion_bruta!N21 -> 4889.572184 | O6: =generacion_bruta!O21 -> 19650.68846 | P6: =generacion_bruta!P21 -> 1732.881941 | Q6: =generacion_bruta!Q21 -> 31001.38951 | R6: =generacion_bruta!R21 -> 217.353072 | S6: =generacion_bruta!S21 -> 8607.107441 | T6: =generacion_bruta!T21 -> 4798.828807 | U6: =generacion_bruta!U21 -> 16669.937 | V6: 267158.7911
B7: Renovable | C7: =generacion_bruta!C50 -> 13611.13346 | D7: =generacion_bruta!D23 -> 7320.701915 | E7: =generacion_bruta!E23 -> 2757.007835 | F7: =generacion_bruta!F23 -> 122.667798 | G7: =generacion_bruta!G23 -> 3520.225364 | H7: =generacion_bruta!H23 -> 628.122459 | I7: =generacion_bruta!I23 -> 383.0546904 | J7: =generacion_bruta!J23 -> 11164.09022 | K7: =generacion_bruta!K23 -> 17228.30649 | L7: =generacion_bruta!L23 -> 6628.15355 | M7: =generacion_bruta!M23 -> 0 | N7: =generacion_bruta!N23 -> 3423.140659 | O7: =generacion_bruta!O23 -> 13351.93851 | P7: =generacion_bruta!P23 -> 1286.1812 | Q7: =generacion_bruta!Q23 -> 443.978055 | R7: =generacion_bruta!R23 -> 0.083114 | S7: =generacion_bruta!S23 -> 1356.106968 | T7: =generacion_bruta!T23 -> 3757.611499 | U7: =generacion_bruta!U23 -> 891.3047836 | V7: =SUM(C7:U7) -> 87873.80856
B8: No renovable | C8: =generacion_bruta!C51 -> 21079.41129 | D8: =generacion_bruta!D24 -> 9298.301348 | E8: =generacion_bruta!E24 -> 11595.78729 | F8: =generacion_bruta!F24 -> 5129.682742 | G8: =generacion_bruta!G24 -> 16730.1828 | H8: =generacion_bruta!H24 -> 8264.418 | I8: =generacion_bruta!I24 -> 2244.723336 | J8: =generacion_bruta!J24 -> 13702.79281 | K8: =generacion_bruta!K24 -> 18081.77592 | L8: =generacion_bruta!L24 -> 37465.08905 | M8: =generacion_bruta!M24 -> 212.075 | N8: =generacion_bruta!N24 -> 15086.26153 | O8: =generacion_bruta!O24 -> 15888.91696 | P8: =generacion_bruta!P24 -> 1478.983741 | Q8: =generacion_bruta!Q24 -> 1226.521454 | R8: =generacion_bruta!R24 -> 217.269958 | S8: =generacion_bruta!S24 -> 5057.651473 | T8: =generacion_bruta!T24 -> 1793.367308 | U8: =generacion_bruta!U24 -> 7610.260218 | V8: =SUM(C8:U8) -> 192163.4722
A9: 2013 | B9: Generación neta | C9: =generacion_bruta!C45 -> 34690.54475 | D9: =generacion_bruta!D45 -> 16784.27478 | E9: =generacion_bruta!E45 -> 13645.93943 | F9: =generacion_bruta!F45 -> 4405.028346 | G9: =generacion_bruta!G45 -> 18832.58406 | H9: =generacion_bruta!H45 -> 8623.683298 | I9: =generacion_bruta!I45 -> 2261.070202 | J9: =generacion_bruta!J45 -> 22832.34745 | K9: =generacion_bruta!K45 -> 30891.43404 | L9: =generacion_bruta!L45 -> 45146.47728 | M9: =generacion_bruta!M45 -> 201.959 | N9: =generacion_bruta!N45 -> 20897.47577 | O9: =generacion_bruta!O45 -> 33085.09523 | P9: =generacion_bruta!P45 -> 1938.903748 | Q9: =generacion_bruta!Q45 -> 1632.487504 | R9: =generacion_bruta!R45 -> 209.66712 | S9: =generacion_bruta!S45 -> 5880.962342 | T9: =generacion_bruta!T45 -> 5377.429574 | U9: =generacion_bruta!U45 -> 6429.868964 | V9: 273767.2329
B10: Consumos en bombeo | C10: =generacion_bruta!C46 -> -470.705 | D10: =generacion_bruta!D46 -> -367.52 | E10: =generacion_bruta!E46 -> -77.28 | F10: =generacion_bruta!F46 -> 0 | G10: =generacion_bruta!G46 -> -1520.008 | H10: =generacion_bruta!H46 -> 0 | I10: =generacion_bruta!I46 -> -758.749 | J10: =generacion_bruta!J46 -> -206.83 | K10: =generacion_bruta!K46 -> -1728.923 | L10: =generacion_bruta!L46 -> -335.168 | M10: =generacion_bruta!M46 -> 0 | N10: =generacion_bruta!N46 -> -56.837 | O10: =generacion_bruta!O46 -> -435.826 | P10: =generacion_bruta!P46 -> 0 | Q10: =generacion_bruta!Q46 -> 0 | R10: =generacion_bruta!R46 -> 0 | S10: =generacion_bruta!S46 -> 0 | T10: =generacion_bruta!T46 -> 0 | U10: =generacion_bruta!U46 -> 0 | V10: -5957.846
B11: Saldo Intercambios | C11: =generacion_bruta!C47 -> 3967.898 | D11: =generacion_bruta!D47 -> -6311.901 | E11: =generacion_bruta!E47 -> -3153.97 | F11: =generacion_bruta!F47 -> 1268.509 | G11: =generacion_bruta!G47 -> 8582.518 | H11: =generacion_bruta!H47 -> 0 | I11: =generacion_bruta!I47 -> 2883.144 | J11: =generacion_bruta!J47 -> -10994.533 | K11: =generacion_bruta!K47 -> -15481.299 | L11: =generacion_bruta!L47 -> 1461.757 | M11: =generacion_bruta!M47 -> 0 | N11: =generacion_bruta!N47 -> -15974.309 | O11: =generacion_bruta!O47 -> -12778.904 | P11: =generacion_bruta!P47 -> -234.669 | Q11: =generacion_bruta!Q47 -> 28075.127 | R11: =generacion_bruta!R47 -> 0 | S11: =generacion_bruta!S47 -> 2433.707 | T11: =generacion_bruta!T47 -> -601.343 | U11: =generacion_bruta!U47 -> 10126.138 | V11: -6732.13
B12: Demanda B.C | C12: =generacion_bruta!C48 -> 38187.73775 | D12: =generacion_bruta!D48 -> 10104.85378 | E12: =generacion_bruta!E48 -> 10414.68943 | F12: =generacion_bruta!F48 -> 5673.537346 | G12: =generacion_bruta!G48 -> 25895.09406 | H12: =generacion_bruta!H48 -> 8623.683298 | I12: =generacion_bruta!I48 -> 4385.465202 | J12: =generacion_bruta!J48 -> 11630.98445 | K12: =generacion_bruta!K48 -> 13681.21204 | L12: =generacion_bruta!L48 -> 46273.06628 | M12: =generacion_bruta!M48 -> 201.959 | N12: =generacion_bruta!N48 -> 4866.329772 | O12: =generacion_bruta!O48 -> 19870.36523 | P12: =generacion_bruta!P48 -> 1704.234748 | Q12: =generacion_bruta!Q48 -> 29707.6145 | R12: =generacion_bruta!R48 -> 209.66712 | S12: =generacion_bruta!S48 -> 8314.669342 | T12: =generacion_bruta!T48 -> 4776.086574 | U12: =generacion_bruta!U48 -> 16556.00696 | V12: 261077.2569
B13: Renovable | C13: =generacion_bruta!C50 -> 13611.13346 | D13: =generacion_bruta!D50 -> 9679.418148 | E13: =generacion_bruta!E50 -> 3973.792505 | F13: =generacion_bruta!F50 -> 129.001391 | G13: =generacion_bruta!G50 -> 3696.335801 | H13: =generacion_bruta!H50 -> 660.871298 | I13: =generacion_bruta!I50 -> 503.5077715 | J13: =generacion_bruta!J50 -> 12195.57981 | K13: =generacion_bruta!K50 -> 21720.17815 | L13: =generacion_bruta!L50 -> 9365.383916 | M13: =generacion_bruta!M50 -> 0 | N13: =generacion_bruta!N50 -> 5736.130704 | O13: =generacion_bruta!O50 -> 20011.78887 | P13: =generacion_bruta!P50 -> 1393.519893 | Q13: =generacion_bruta!Q50 -> 546.1584524 | R13: =generacion_bruta!R50 -> 0.082323 | S13: =generacion_bruta!S50 -> 1578.26416 | T13: =generacion_bruta!T50 -> 4034.576175 | U13: =generacion_bruta!U50 -> 1110.375124 | V13: =generacion_bruta!V50 -> 109946.098
B14: No renovable | C14: =generacion_bruta!C51 -> 21079.41129 | D14: =generacion_bruta!D51 -> 7104.856628 | E14: =generacion_bruta!E51 -> 9672.146929 | F14: =generacion_bruta!F51 -> 4276.026955 | G14: =generacion_bruta!G51 -> 15136.24825 | H14: =generacion_bruta!H51 -> 7962.812 | I14: =generacion_bruta!I51 -> 1757.56243 | J14: =generacion_bruta!J51 -> 10636.76764 | K14: =generacion_bruta!K51 -> 9171.255891 | L14: =generacion_bruta!L51 -> 35781.09336 | M14: =generacion_bruta!M51 -> 201.959 | N14: =generacion_bruta!N51 -> 15161.34507 | O14: =generacion_bruta!O51 -> 13073.30636 | P14: =generacion_bruta!P51 -> 545.383855 | Q14: =generacion_bruta!Q51 -> 1086.329052 | R14: =generacion_bruta!R51 -> 209.584797 | S14: =generacion_bruta!S51 -> 4302.698182 | T14: =generacion_bruta!T51 -> 1342.853399 | U14: =generacion_bruta!U51 -> 5319.49384 | V14: =generacion_bruta!V51 -> 163821.1349
A15: 2014 | B15: Generación neta | C15: =generacion_bruta!C72 -> 31996.93893 | D15: =generacion_bruta!D72 -> 16533.563 | E15: =generacion_bruta!E72 -> 13240.98325 | F15: =generacion_bruta!F72 -> 4287.160861 | G15: =generacion_bruta!G72 -> 19960.81539 | H15: =generacion_bruta!H72 -> 8579.968659 | I15: =generacion_bruta!I72 -> 1874.64051 | J15: =generacion_bruta!J72 -> 22532.92379 | K15: =generacion_bruta!K72 -> 33914.99558 | L15: =generacion_bruta!L72 -> 41626.27895 | M15: =generacion_bruta!M72 -> 212.253 | N15: =generacion_bruta!N72 -> 21522.30579 | O15: =generacion_bruta!O72 -> 31287.52903 | P15: =generacion_bruta!P72 -> 1462.933009 | Q15: =generacion_bruta!Q72 -> 1305.450301 | R15: =generacion_bruta!R72 -> 209.863147 | S15: =generacion_bruta!S72 -> 5367.042156 | T15: =generacion_bruta!T72 -> 4771.924057 | U15: =generacion_bruta!U72 -> 6179.486889 | V15: 266867.0563
B16: Consumos en bombeo | C16: =generacion_bruta!C73 -> -480.846 | D16: =generacion_bruta!D73 -> -440.736 | E16: =generacion_bruta!E73 -> -78.978 | F16: =generacion_bruta!F73 -> 0 | G16: =generacion_bruta!G73 -> -1576.303 | H16: =generacion_bruta!H73 -> 0 | I16: =generacion_bruta!I73 -> -851.231 | J16: =generacion_bruta!J73 -> -100.736 | K16: =generacion_bruta!K73 -> -1107.249 | L16: =generacion_bruta!L73 -> -361.031 | M16: =generacion_bruta!M73 -> 0 | N16: =generacion_bruta!N73 -> -70.939 | O16: =generacion_bruta!O73 -> -261.542 | P16: =generacion_bruta!P73 -> 0 | Q16: =generacion_bruta!Q73 -> 0 | R16: =generacion_bruta!R73 -> 0 | S16: =generacion_bruta!S73 -> 0 | T16: =generacion_bruta!T73 -> 0 | U16: =generacion_bruta!U73 -> 0 | V16: -5329.591
B17: Saldo Intercambios | C17: =generacion_bruta!C74 -> 6021.988 | D17: =generacion_bruta!D74 -> -6003.143 | E17: =generacion_bruta!E74 -> -2849.358 | F17: =generacion_bruta!F74 -> 1298.266 | G17: =generacion_bruta!G74 -> 7501.359 | H17: =generacion_bruta!H74 -> 0 | I17: =generacion_bruta!I74 -> 3298.202 | J17: =generacion_bruta!J74 -> -10781.332 | K17: =generacion_bruta!K74 -> -19250.761 | L17: =generacion_bruta!L74 -> 4357.043 | M17: =generacion_bruta!M74 -> 0 | N17: =generacion_bruta!N74 -> -16813.589 | O17: =generacion_bruta!O74 -> -11276.998 | P17: =generacion_bruta!P74 -> 227.452 | Q17: =generacion_bruta!Q74 -> 27142.168 | R17: =generacion_bruta!R74 -> 0 | S17: =generacion_bruta!S74 -> 3101.626 | T17: =generacion_bruta!T74 -> 8.066 | U17: =generacion_bruta!U74 -> 10612.884 | V17: -3406.127
B18: Demanda B.C | C18: =generacion_bruta!C75 -> 37538.08093 | D18: =generacion_bruta!D75 -> 10089.684 | E18: =generacion_bruta!E75 -> 10312.64725 | F18: =generacion_bruta!F75 -> 5585.426861 | G18: =generacion_bruta!G75 -> 25885.87139 | H18: =generacion_bruta!H75 -> 8579.968659 | I18: =generacion_bruta!I75 -> 4321.61151 | J18: =generacion_bruta!J75 -> 11650.85579 | K18: =generacion_bruta!K75 -> 13556.98558 | L18: =generacion_bruta!L75 -> 45622.29095 | M18: =generacion_bruta!M75 -> 212.253 | N18: =generacion_bruta!N75 -> 4637.777792 | O18: =generacion_bruta!O75 -> 19748.98903 | P18: =generacion_bruta!P75 -> 1690.385009 | Q18: =generacion_bruta!Q75 -> 28447.6183 | R18: =generacion_bruta!R75 -> 209.863147 | S18: =generacion_bruta!S75 -> 8468.668156 | T18: =generacion_bruta!T75 -> 4779.990057 | U18: =generacion_bruta!U75 -> 16792.37089 | V18: 258131.3383
B19: Renovable | C19: =generacion_bruta!C77 -> 12505.58431 | D19: =generacion_bruta!D77 -> 9000.846988 | E19: =generacion_bruta!E77 -> 3681.185876 | F19: =generacion_bruta!F77 -> 130.558628 | G19: =generacion_bruta!G77 -> 3868.918474 | H19: =generacion_bruta!H77 -> 685.611659 | I19: =generacion_bruta!I77 -> 435.9359712 | J19: =generacion_bruta!J77 -> 11996.88401 | K19: =generacion_bruta!K77 -> 23729.02542 | L19: =generacion_bruta!L77 -> 8742.847151 | M19: =generacion_bruta!M77 -> 0 | N19: =generacion_bruta!N77 -> 6263.097314 | O19: =generacion_bruta!O77 -> 19019.24154 | P19: =generacion_bruta!P77 -> 1243.531484 | Q19: =generacion_bruta!Q77 -> 568.9220499 | R19: =generacion_bruta!R77 -> 0.083833 | S19: =generacion_bruta!S77 -> 1534.090407 | T19: =generacion_bruta!T77 -> 3692.133574 | U19: =generacion_bruta!U77 -> 944.3643526 | V19: 108042.863
B20: No renovable | C20: =generacion_bruta!C78 -> 19491.35462 | D20: =generacion_bruta!D78 -> 7532.716011 | E20: =generacion_bruta!E78 -> 9559.797377 | F20: =generacion_bruta!F78 -> 4156.602233 | G20: =generacion_bruta!G78 -> 16091.89692 | H20: =generacion_bruta!H78 -> 7894.357 | I20: =generacion_bruta!I78 -> 1438.704539 | J20: =generacion_bruta!J78 -> 10536.03978 | K20: =generacion_bruta!K78 -> 10185.97016 | L20: =generacion_bruta!L78 -> 32883.4318 | M20: =generacion_bruta!M78 -> 212.253 | N20: =generacion_bruta!N78 -> 15259.20848 | O20: =generacion_bruta!O78 -> 12268.2875 | P20: =generacion_bruta!P78 -> 219.401525 | Q20: =generacion_bruta!Q78 -> 736.528251 | R20: =generacion_bruta!R78 -> 209.779314 | S20: =generacion_bruta!S78 -> 3832.951749 | T20: =generacion_bruta!T78 -> 1079.790483 | U20: =generacion_bruta!U78 -> 5235.122536 | V20: 158824.1933
A21: 2015 | B21: Generación neta | C21: =generacion_bruta!C99 -> 35809.82861 | D21: =generacion_bruta!D99 -> 15513.28492 | E21: =generacion_bruta!E99 -> 16700.63708 | F21: =generacion_bruta!F99 -> 4460.634939 | G21: =generacion_bruta!G99 -> 18643.32068 | H21: =generacion_bruta!H99 -> 8669.37689 | I21: =generacion_bruta!I99 -> 1703.892238 | J21: =generacion_bruta!J99 -> 21634.10665 | K21: =generacion_bruta!K99 -> 31296.40265 | L21: =generacion_bruta!L99 -> 43124.67287 | M21: =generacion_bruta!M99 -> 205.438 | N21: =generacion_bruta!N99 -> 21101.73786 | O21: =generacion_bruta!O99 -> 29674.15307 | P21: =generacion_bruta!P99 -> 1862.609343 | Q21: =generacion_bruta!Q99 -> 1203.168389 | R21: =generacion_bruta!R99 -> 213.485818 | S21: =generacion_bruta!S99 -> 4912.492421 | T21: =generacion_bruta!T99 -> 5268.938513 | U21: =generacion_bruta!U99 -> 5938.101164 | V21: 267936.2821
B22: Consumos en bombeo | C22: =generacion_bruta!C100 -> -391.213 | D22: =generacion_bruta!D100 -> -410.178 | E22: =generacion_bruta!E100 -> -41.477 | F22: =generacion_bruta!F100 -> 0 | G22: =generacion_bruta!G100 -> -1352.201 | H22: =generacion_bruta!H100 -> 0 | I22: =generacion_bruta!I100 -> -684.933 | J22: =generacion_bruta!J100 -> -44.284 | K22: =generacion_bruta!K100 -> -854.155 | L22: =generacion_bruta!L100 -> -463.465 | M22: =generacion_bruta!M100 -> 0 | N22: =generacion_bruta!N100 -> -43.287 | O22: =generacion_bruta!O100 -> -234.901 | P22: =generacion_bruta!P100 -> 0 | Q22: =generacion_bruta!Q100 -> 0 | R22: =generacion_bruta!R100 -> 0 | S22: =generacion_bruta!S100 -> 0 | T22: =generacion_bruta!T100 -> 0 | U22: =generacion_bruta!U100 -> 0 | V22: -4520.094
B23: Saldo Intercambios | C23: =generacion_bruta!C101 -> 3241.863 | D23: =generacion_bruta!D101 -> -4802.101 | E23: =generacion_bruta!E101 -> -6191.354 | F23: =generacion_bruta!F101 -> 1335.783 | G23: =generacion_bruta!G101 -> 9454.445 | H23: =generacion_bruta!H101 -> 0 | I23: =generacion_bruta!I101 -> 3228.933 | J23: =generacion_bruta!J101 -> -10018.83 | K23: =generacion_bruta!K101 -> -16577.612 | L23: =generacion_bruta!L101 -> 3985.876 | M23: =generacion_bruta!M101 -> 0 | N23: =generacion_bruta!N101 -> -16222.839 | O23: =generacion_bruta!O101 -> -9721.055 | P23: =generacion_bruta!P101 -> -137.492 | Q23: =generacion_bruta!Q101 -> 27670.776 | R23: =generacion_bruta!R101 -> 0 | S23: =generacion_bruta!S101 -> 4007.705 | T23: =generacion_bruta!T101 -> -425.816 | U23: =generacion_bruta!U101 -> 11038.563 | V23: -133.155
B24: Demanda B.C | C24: =generacion_bruta!C102 -> 38660.47861 | D24: =generacion_bruta!D102 -> 10301.00592 | E24: =generacion_bruta!E102 -> 10467.80608 | F24: =generacion_bruta!F102 -> 5796.417939 | G24: =generacion_bruta!G102 -> 26745.56468 | H24: =generacion_bruta!H102 -> 8669.37689 | I24: =generacion_bruta!I102 -> 4247.892238 | J24: =generacion_bruta!J102 -> 11570.99265 | K24: =generacion_bruta!K102 -> 13864.63565 | L24: =generacion_bruta!L102 -> 46647.08387 | M24: =generacion_bruta!M102 -> 205.438 | N24: =generacion_bruta!N102 -> 4835.611856 | O24: =generacion_bruta!O102 -> 19718.19707 | P24: =generacion_bruta!P102 -> 1725.117343 | Q24: =generacion_bruta!Q102 -> 28873.94439 | R24: =generacion_bruta!R102 -> 213.485818 | S24: =generacion_bruta!S102 -> 8920.197421 | T24: =generacion_bruta!T102 -> 4843.122513 | U24: =generacion_bruta!U102 -> 16976.66416 | V24: 263283.0331
B25: Renovable | C25: =generacion_bruta!C104 -> 12014.4965 | D25: =generacion_bruta!D104 -> 7746.605301 | E25: =generacion_bruta!E104 -> 2754.429309 | F25: =generacion_bruta!F104 -> 281.0312205 | G25: =generacion_bruta!G104 -> 3438.483391 | H25: =generacion_bruta!H104 -> 692.41289 | I25: =generacion_bruta!I104 -> 477.0740391 | J25: =generacion_bruta!J104 -> 10701.4205 | K25: =generacion_bruta!K104 -> 19721.71364 | L25: =generacion_bruta!L104 -> 7830.849326 | M25: =generacion_bruta!M104 -> 0 | N25: =generacion_bruta!N104 -> 4933.029212 | O25: =generacion_bruta!O104 -> 15423.48692 | P25: =generacion_bruta!P104 -> 1190.334236 | Q25: =generacion_bruta!Q104 -> 446.2765625 | R25: =generacion_bruta!R104 -> 4.375889 | S25: =generacion_bruta!S104 -> 1381.584734 | T25: =generacion_bruta!T104 -> 3709.715136 | U25: =generacion_bruta!U104 -> 1032.711674 | V25: =generacion_bruta!V104 -> 93780.03049
B26: No renovable | C26: =generacion_bruta!C105 -> 23795.3321 | D26: =generacion_bruta!D105 -> 7766.679617 | E26: =generacion_bruta!E105 -> 13946.20777 | F26: =generacion_bruta!F105 -> 4179.603719 | G26: =generacion_bruta!G105 -> 15204.83729 | H26: =generacion_bruta!H105 -> 7976.964 | I26: =generacion_bruta!I105 -> 1226.818199 | J26: =generacion_bruta!J105 -> 10932.68615 | K26: =generacion_bruta!K105 -> 11574.68901 | L26: =generacion_bruta!L105 -> 35293.82354 | M26: =generacion_bruta!M105 -> 205.438 | N26: =generacion_bruta!N105 -> 16168.70864 | O26: =generacion_bruta!O105 -> 14250.66614 | P26: =generacion_bruta!P105 -> 672.275107 | Q26: =generacion_bruta!Q105 -> 756.891826 | R26: =generacion_bruta!R105 -> 209.109929 | S26: =generacion_bruta!S105 -> 3530.907687 | T26: =generacion_bruta!T105 -> 1559.223377 | U26: =generacion_bruta!U105 -> 4905.389489 | V26: =generacion_bruta!V105 -> 174156.2516
A27: 2016 | B27: Generación neta | C27: =generacion_bruta!C126 -> 32847.35782 | D27: =generacion_bruta!D126 -> 14266.48416 | E27: =generacion_bruta!E126 -> 12035.2351 | F27: =generacion_bruta!F126 -> 4581.662001 | G27: =generacion_bruta!G126 -> 20639.61428 | H27: =generacion_bruta!H126 -> 8776.832121 | I27: =generacion_bruta!I126 -> 1725.34469 | J27: =generacion_bruta!J126 -> 21397.64845 | K27: =generacion_bruta!K126 -> 31998.37429 | L27: =generacion_bruta!L126 -> 43214.63029 | M27: =generacion_bruta!M126 -> 210.736 | N27: =generacion_bruta!N126 -> 21015.05931 | O27: =generacion_bruta!O126 -> 30691.91382 | P27: =generacion_bruta!P126 -> 2328.587863 | Q27: =generacion_bruta!Q126 -> 1228.560498 | R27: =generacion_bruta!R126 -> 208.348087 | S27: =generacion_bruta!S126 -> 3962.7147 | T27: =generacion_bruta!T126 -> 5728.669616 | U27: =generacion_bruta!U126 -> 5421.46851 | V27: 262279.2416
B28: Consumos en bombeo | C28: =generacion_bruta!C127 -> -370.583 | D28: =generacion_bruta!D127 -> -421.737 | E28: =generacion_bruta!E127 -> -38.751 | F28: =generacion_bruta!F127 -> 0 | G28: =generacion_bruta!G127 -> -1830.747 | H28: =generacion_bruta!H127 -> 0 | I28: =generacion_bruta!I127 -> -611.804 | J28: =generacion_bruta!J127 -> -65.597 | K28: =generacion_bruta!K127 -> -919.611 | L28: =generacion_bruta!L127 -> -303.502 | M28: =generacion_bruta!M127 -> 0 | N28: =generacion_bruta!N127 -> -84.442 | O28: =generacion_bruta!O127 -> -172.642 | P28: =generacion_bruta!P127 -> 0 | Q28: =generacion_bruta!Q127 -> 0 | R28: =generacion_bruta!R127 -> 0 | S28: =generacion_bruta!S127 -> 0 | T28: =generacion_bruta!T127 -> 0 | U28: =generacion_bruta!U127 -> 0 | V28: -4819.416
B29: Saldo Intercambios | C29: =generacion_bruta!C128 -> 7129.363 | D29: =generacion_bruta!D128 -> -3406.842 | E29: =generacion_bruta!E128 -> -1487.886 | F29: =generacion_bruta!F128 -> 1250.582 | G29: =generacion_bruta!G128 -> 8043.827 | H29: =generacion_bruta!H128 -> 0 | I29: =generacion_bruta!I128 -> 3090.931 | J29: =generacion_bruta!J128 -> -9620.951 | K29: =generacion_bruta!K128 -> -17052.596 | L29: =generacion_bruta!L128 -> 3999.883 | M29: =generacion_bruta!M128 -> 0 | N29: =generacion_bruta!N128 -> -15961.991 | O29: =generacion_bruta!O128 -> -10557.892 | P29: =generacion_bruta!P128 -> -596.534 | Q29: =generacion_bruta!Q128 -> 27740.176 | R29: =generacion_bruta!R128 -> 0 | S29: =generacion_bruta!S128 -> 5090.398 | T29: =generacion_bruta!T128 -> -780.105 | U29: =generacion_bruta!U128 -> 10786.96 | V29: 7667.323
B30: Demanda B.C | C30: =generacion_bruta!C129 -> 39606.13782 | D30: =generacion_bruta!D129 -> 10437.90516 | E30: =generacion_bruta!E129 -> 10508.5981 | F30: =generacion_bruta!F129 -> 5832.244001 | G30: =generacion_bruta!G129 -> 26852.69428 | H30: =generacion_bruta!H129 -> 8776.832121 | I30: =generacion_bruta!I129 -> 4204.47169 | J30: =generacion_bruta!J129 -> 11711.10045 | K30: =generacion_bruta!K129 -> 14026.16729 | L30: =generacion_bruta!L129 -> 46911.01129 | M30: =generacion_bruta!M129 -> 210.736 | N30: =generacion_bruta!N129 -> 4968.626308 | O30: =generacion_bruta!O129 -> 19961.37982 | P30: =generacion_bruta!P129 -> 1732.053863 | Q30: =generacion_bruta!Q129 -> 28968.7365 | R30: =generacion_bruta!R129 -> 208.348087 | S30: =generacion_bruta!S129 -> 9053.1127 | T30: =generacion_bruta!T129 -> 4948.564616 | U30: =generacion_bruta!U129 -> 16208.42851 | V30: 265127.1486
B31: Renovable | C31: =generacion_bruta!C131 -> 12845.87301 | D31: =generacion_bruta!D131 -> 7590.809024 | E31: =generacion_bruta!E131 -> 3004.185509 | F31: =generacion_bruta!F131 -> 258.0655005 | G31: =generacion_bruta!G131 -> 3439.03213 | H31: =generacion_bruta!H131 -> 701.671121 | I31: =generacion_bruta!I131 -> 426.8779239 | J31: =generacion_bruta!J131 -> 11094.41131 | K31: =generacion_bruta!K131 -> 23229.94569 | L31: =generacion_bruta!L131 -> 7432.249983 | M31: =generacion_bruta!M131 -> 0 | N31: =generacion_bruta!N131 -> 5739.615335 | O31: =generacion_bruta!O131 -> 17554.39464 | P31: =generacion_bruta!P131 -> 1247.161309 | Q31: =generacion_bruta!Q131 -> 451.5080316 | R31: =generacion_bruta!R131 -> 4.9281345 | S31: =generacion_bruta!S131 -> 1401.201909 | T31: =generacion_bruta!T131 -> 3590.942956 | U31: =generacion_bruta!U131 -> 1003.278355 | V31: 101016.1519
B32: No renovable | C32: =generacion_bruta!C132 -> 20001.48481 | D32: =generacion_bruta!D132 -> 6675.675135 | E32: =generacion_bruta!E132 -> 9031.04959 | F32: =generacion_bruta!F132 -> 4323.5965 | G32: =generacion_bruta!G132 -> 17200.58215 | H32: =generacion_bruta!H132 -> 8075.161 | I32: =generacion_bruta!I132 -> 1298.466766 | J32: =generacion_bruta!J132 -> 10303.23714 | K32: =generacion_bruta!K132 -> 8768.428599 | L32: =generacion_bruta!L132 -> 35782.3803 | M32: =generacion_bruta!M132 -> 210.736 | N32: =generacion_bruta!N132 -> 15275.44397 | O32: =generacion_bruta!O132 -> 13137.51918 | P32: =generacion_bruta!P132 -> 1081.426554 | Q32: =generacion_bruta!Q132 -> 777.052466 | R32: =generacion_bruta!R132 -> 203.4199525 | S32: =generacion_bruta!S132 -> 2561.512791 | T32: =generacion_bruta!T132 -> 2137.72666 | U32: =generacion_bruta!U132 -> 4418.190155 | V32: 161263.0897
A33: 2017 | B33: Generación neta | C33: =generacion_bruta!C153 -> 37076.06707 | D33: =generacion_bruta!D153 -> 16600.00024 | E33: =generacion_bruta!E153 -> 14007.98781 | F33: =generacion_bruta!F153 -> 4848.965122 | G33: =generacion_bruta!G153 -> 17107.28277 | H33: =generacion_bruta!H153 -> 8958.388428 | I33: =generacion_bruta!I153 -> 1951.344985 | J33: =generacion_bruta!J153 -> 21441.21512 | K33: =generacion_bruta!K153 -> 25360.17721 | L33: =generacion_bruta!L153 -> 44851.58404 | M33: =generacion_bruta!M153 -> 202.862 | N33: =generacion_bruta!N153 -> 21185.34195 | O33: =generacion_bruta!O153 -> 26368.63989 | P33: =generacion_bruta!P153 -> 2991.133919 | Q33: =generacion_bruta!Q153 -> 1223.306461 | R33: =generacion_bruta!R153 -> 210.593165 | S33: =generacion_bruta!S153 -> 6512.647661 | T33: =generacion_bruta!T153 -> 5974.789182 | U33: =generacion_bruta!U153 -> 5772.80956 | V33: =generacion_bruta!V153 -> 262645.1366
B34: Consumos en bombeo | C34: =generacion_bruta!C154 -> -223.799 | D34: =generacion_bruta!D154 -> -205.806 | E34: =generacion_bruta!E154 -> -21.576 | F34: =generacion_bruta!F154 -> 0 | G34: =generacion_bruta!G154 -> -1345.953 | H34: =generacion_bruta!H154 -> 0 | I34: =generacion_bruta!I154 -> -666.737 | J34: =generacion_bruta!J154 -> -67.9 | K34: =generacion_bruta!K154 -> -748.069 | L34: =generacion_bruta!L154 -> -165.142 | M34: =generacion_bruta!M154 -> 0 | N34: =generacion_bruta!N154 -> -35.523 | O34: =generacion_bruta!O154 -> -194.734 | P34: =generacion_bruta!P154 -> 0 | Q34: =generacion_bruta!Q154 -> 0 | R34: =generacion_bruta!R154 -> 0 | S34: =generacion_bruta!S154 -> 0 | T34: =generacion_bruta!T154 -> 0 | U34: =generacion_bruta!U154 -> 0 | V34: =generacion_bruta!V154 -> -3675.239
B35: Saldo Intercambios | C35: =generacion_bruta!C155 -> 3420.023305 | D35: =generacion_bruta!D155 -> -5782.625277 | E35: =generacion_bruta!E155 -> -3403.460946 | F35: =generacion_bruta!F155 -> 1179.300653 | G35: =generacion_bruta!G155 -> 11261.93235 | H35: =generacion_bruta!H155 -> 0 | I35: =generacion_bruta!I155 -> 3083.68772 | J35: =generacion_bruta!J155 -> -9660.376389 | K35: =generacion_bruta!K155 -> -10501.9384 | L35: =generacion_bruta!L155 -> 2965.850536 | M35: =generacion_bruta!M155 -> 0 | N35: =generacion_bruta!N155 -> -16082.27538 | O35: =generacion_bruta!O155 -> -6315.664838 | P35: =generacion_bruta!P155 -> -1277.239209 | Q35: =generacion_bruta!Q155 -> 27544.33999 | R35: =generacion_bruta!R155 -> 0 | S35: =generacion_bruta!S155 -> 2886.859197 | T35: =generacion_bruta!T155 -> -918.2403623 | U35: =generacion_bruta!U155 -> 10770.40732 | V35: =generacion_bruta!V155 -> 9170.58027
B36: Demanda B.C | C36: =generacion_bruta!C156 -> 40272.29138 | D36: =generacion_bruta!D156 -> 10611.56896 | E36: =generacion_bruta!E156 -> 10582.95086 | F36: =generacion_bruta!F156 -> 6028.265775 | G36: =generacion_bruta!G156 -> 27023.26213 | H36: =generacion_bruta!H156 -> 8958.388428 | I36: =generacion_bruta!I156 -> 4368.295706 | J36: =generacion_bruta!J156 -> 11712.93873 | K36: =generacion_bruta!K156 -> 14110.1698 | L36: =generacion_bruta!L156 -> 47652.19257 | M36: =generacion_bruta!M156 -> 202.862 | N36: =generacion_bruta!N156 -> 5067.543563 | O36: =generacion_bruta!O156 -> 19858.24105 | P36: =generacion_bruta!P156 -> 1713.89471 | Q36: =generacion_bruta!Q156 -> 28767.64645 | R36: =generacion_bruta!R156 -> 210.593165 | S36: =generacion_bruta!S156 -> 9399.506858 | T36: =generacion_bruta!T156 -> 5056.54882 | U36: =generacion_bruta!U156 -> 16543.21688 | V36: =generacion_bruta!V156 -> 268140.4778
B37: Renovable | C37: =generacion_bruta!C158 -> 13037.48343 | D37: =generacion_bruta!D158 -> 7259.130733 | E37: =generacion_bruta!E158 -> 2079.801 | F37: =generacion_bruta!F158 -> 271.635103 | G37: =generacion_bruta!G158 -> 3227.617096 | H37: =generacion_bruta!H158 -> 702.728428 | I37: =generacion_bruta!I158 -> 349.1548727 | J37: =generacion_bruta!J158 -> 10664.13344 | K37: =generacion_bruta!K158 -> 16285.25433 | L37: =generacion_bruta!L158 -> 7385.088157 | M37: =generacion_bruta!M158 -> 0 | N37: =generacion_bruta!N158 -> 4767.82459 | O37: =generacion_bruta!O158 -> 10761.64028 | P37: =generacion_bruta!P158 -> 1226.530715 | Q37: =generacion_bruta!Q158 -> 448.3643521 | R37: =generacion_bruta!R158 -> 5.052179 | S37: =generacion_bruta!S158 -> 1377.446586 | T37: =generacion_bruta!T158 -> 3666.39714 | U37: =generacion_bruta!U158 -> 990.0049996 | V37: =generacion_bruta!V158 -> 84505.28744
B38: No renovable | C38: =generacion_bruta!C159 -> 24038.58364 | D38: =generacion_bruta!D159 -> 9340.869507 | E38: =generacion_bruta!E159 -> 11928.18681 | F38: =generacion_bruta!F159 -> 4577.330019 | G38: =generacion_bruta!G159 -> 13879.66568 | H38: =generacion_bruta!H159 -> 8255.66 | I38: =generacion_bruta!I159 -> 1602.190112 | J38: =generacion_bruta!J159 -> 10777.08168 | K38: =generacion_bruta!K159 -> 9074.922871 | L38: =generacion_bruta!L159 -> 37466.49588 | M38: =generacion_bruta!M159 -> 202.862 | N38: =generacion_bruta!N159 -> 16417.51736 | O38: =generacion_bruta!O159 -> 15606.99961 | P38: =generacion_bruta!P159 -> 1764.603204 | Q38: =generacion_bruta!Q159 -> 774.9421085 | R38: =generacion_bruta!R159 -> 205.540986 | S38: =generacion_bruta!S159 -> 5135.201075 | T38: =generacion_bruta!T159 -> 2308.392042 | U38: =generacion_bruta!U159 -> 4782.80456 | V38: =generacion_bruta!V159 -> 178139.8491
